{"text_format":"1","workbook":"xlsx","n_sheets":20,"sheets":["Caratula","Matriz","Resumen_Ejecutivo","Hoja1","ECG","EPC","PPI","A-PP","ADS-1","ADS-2","SAP","FIC","AP-FAFA","PPA20","PPA21","Formato 6d","CG","CAT_PPI","CAT_PP","CAT_CONSO"],"not_rendered":{"charts":0,"images":6,"macros":1,"external_links":11,"defined_names":527,"comments":0,"pivot_tables":0},"unopened":[],"bounds":{"document_bytes":16777216,"sheet_cells":100000,"rows_first":2000,"rows_last":500,"rows_between":2000,"halvings":0,"cell_chars":16384,"cell_head_chars":4096},"cells_cut":0,"cells_raw":0,"read":"whole","date_system":"1900"}

{"sheet":"Caratula","index":0,"n_rows":27,"n_cols":13,"rows_kept":27,"cut":false,"hidden":false,"merged":[[9,0,9,18],[1,0,1,18],[12,0,12,18],[26,4,26,7],[25,10,25,11],[26,12,26,15],[25,0,25,3],[16,5,16,14]]}
[]
["Informe de Avance Trimestral"]
[]
[]
[]
[]
[]
[]
[]
["Unidad Responsable del Gasto: 02CD14 Alcaldía Tlalpan"]
[]
[]
[]
[]
[]
[]
[null,null,null,null,null,"Período: Enero a Diciembre 2021"]
[]
[]
[]
[]
[]
[]
[]
[]
["Titular :",null,null,null,null,null,null,null,null,null,"Responsable  :"]
[null,null,null,null,"Lic. Natalia Guadalupe Márquez Codina\nDirectora General de Desarrollo Social",null,null,null,null,null,null,null,"Lic. Sebastían Vázquez García\nDirector de Atención a Grupos Prioritarios"]

{"sheet":"Matriz","index":1,"n_rows":26,"n_cols":8,"rows_kept":26,"cut":false,"hidden":false,"merged":[[25,5,25,7],[1,1,1,7],[6,1,8,1],[6,2,8,2],[6,3,6,6],[6,7,8,7],[7,3,7,4],[7,5,7,6],[4,2,4,7],[3,2,3,7],[2,2,2,7],[5,1,5,7]]}
[]
[null,"MATRIZ DE CONTROL DEL INFORME DE AVANCE TRIMESTRAL  "]
[null,"Unidad Responsable del Gasto:"]
[null,"Período:",{"$f":"Caratula!I17","v":0}]
[null,"Fecha de Elaboración:"]
[]
[null,"FORMATO","NOMBRE","ENTREGABLE ",null,null,null,"OBSERVACIÓN"]
[null,null,null,"FORMATOS FÍSICOS",null,"MEDIO MAGNÉTICO"]
[null,null,null,"APLICA","NO APLICA","EXCEL","PDF"]
[null,"CARÁTULA","CARATULA DEL INFORME DE AVANCE TRIMESTRAL"]
[null,"RESUMEN EJECUTIVO","RESUMEN EJECUTIVO DEL INFORME DE AVANCE TRIMESTRAL"]
[null,"ECG","EVOLUCIÓN PRESUPUESTAL POR CAPÍTULO DE GASTO"]
[null,"EPC","EVOLUCIÓN PRESUPUESTAL DE PARTIDAS CENTRALIZADAS O CONSOLIDADAS"]
[null,"PPI","PROGRAMAS Y PROYECTOS DE INVERSIÓN"]
[null,"A-PP","ADECUACIONES A  PROGRAMAS PRESUPUESTARIOS"]
[null,"ADS-1","AYUDAS, DONATIVOS Y SUBSIDIOS"]
[null,"ADS-2","AYUDAS, DONATIVOS Y SUBSIDIOS A FIDEICOMISOS"]
[null,"SAP","PROGRAMAS QUE OTORGAN SUBSIDIOS Y APOYOS A LA POBLACIÓN"]
[null,"FIC","FIDEICOMISOS CONSTITUIDOS"]
[null,"AP-FAFA","AVANCE PRESUPUESTAL DEL FONDO ADICIONAL DE FINANCIAMIENTO DE LAS ALCALDÍAS"]
[null,"PPA","PRESUPUESTO PARTICIPATIVO PARA LAS ALCALDÍAS"]
[null,"6d","ESTADO ANALÍTICO DEL EJERCICIO DEL PRESUPUESTO DE EGRESOS DETALLADO – LDF- (CLASIFICACIÓN DE SERVICIOS PERSONALES POR CATEGORÍA)"]
[]
[]
[null,"Elaboró:",null,null,"Autorizó :"]
[null,null,"Nombre, Cargo y Firma",null,null,"Nombre, Cargo y Firma"]

{"sheet":"Resumen_Ejecutivo","index":2,"n_rows":25,"n_cols":4,"rows_kept":25,"cut":false,"hidden":false,"merged":[[15,3,15,4],[18,3,18,4],[16,3,16,4],[17,3,17,4],[17,1,18,1],[17,2,18,2],[1,1,1,4],[14,3,14,4],[12,3,12,4],[11,3,11,4],[11,1,11,2],[9,1,9,2],[9,3,9,4],[2,1,5,4],[13,3,13,4],[10,1,10,2],[10,3,10,4]]}
[]
[null,"RESUMEN EJECUTIVO"]
[null,"INFORME DE AVANCE TRIMESTRAL  "]
[]
[]
[]
[]
[]
[]
[null,"Unidad Responsable del Gasto:"]
[null,"Período:",null,{"$f":"Caratula!I17","v":0}]
[null,"Fecha de Elaboración:"]
[]
[null,"DESCRIPCIÓN","IMPORTE","EXPLICACIÓN"]
[null,"1.- Explicación general a las variaciones del saldo comprometido y ejercido  respecto al presupuesto modificado al periodo"]
[null,"2.- Principales acciones realizadas durante el periodo"]
[null,"3.- Explicación general a las acciones realizadas con recurso de origen federal."]
[null,"4.- Acciones realizadas para prevención y atención del  COVID-19",null," (Eje de atención COVID 1)"]
[null,null,null," (Eje de atención COVID 2-Apoyos)"]
[]
[]
[]
[]
[null,"Elaboró :  _______________________________________________________________________________________________________                                                                                              Autorizó :______________________________________________________________________________"]
[null,"                                                                                               Nombre, Cargo y Firma                                                                                                                                                                                                                                                                                                    Nombre, Cargo y Firma  "]

{"sheet":"Hoja1","index":3,"n_rows":34,"n_cols":4,"rows_kept":34,"cut":false,"hidden":true,"merged":[]}
["UR","GCI","CAP","OPT SEL"]
[{"$f":"Caratula!$A$13","v":0},"C",{"$f":"ECG!B$10","v":1000},{"$f":"ECG!L10","v":0}]
[{"$f":"Caratula!$A$13","v":0},"C",{"$f":"ECG!B$10","v":1000},{"$f":"ECG!L11","v":0}]
[{"$f":"Caratula!$A$13","v":0},"C",{"$f":"ECG!B$10","v":1000},{"$f":"ECG!L12","v":0}]
[{"$f":"Caratula!$A$13","v":0},"C",{"$f":"ECG!B$13","v":2000},{"$f":"ECG!L13","v":0}]
[{"$f":"Caratula!$A$13","v":0},"C",{"$f":"ECG!B$13","v":2000},{"$f":"ECG!L14","v":0}]
[{"$f":"Caratula!$A$13","v":0},"C",{"$f":"ECG!B$13","v":2000},{"$f":"ECG!L15","v":0}]
[{"$f":"Caratula!$A$13","v":0},"C",{"$f":"ECG!B$16","v":3000},{"$f":"ECG!L16","v":0}]
[{"$f":"Caratula!$A$13","v":0},"C",{"$f":"ECG!B$16","v":3000},{"$f":"ECG!L17","v":0}]
[{"$f":"Caratula!$A$13","v":0},"C",{"$f":"ECG!B$16","v":3000},{"$f":"ECG!L18","v":0}]
[{"$f":"Caratula!$A$13","v":0},"C",{"$f":"ECG!B$19","v":4000},{"$f":"ECG!L19","v":0}]
[{"$f":"Caratula!$A$13","v":0},"C",{"$f":"ECG!B$19","v":4000},{"$f":"ECG!L20","v":0}]
[{"$f":"Caratula!$A$13","v":0},"C",{"$f":"ECG!B$19","v":4000},{"$f":"ECG!L21","v":0}]
[{"$f":"Caratula!$A$13","v":0},"C",{"$f":"ECG!B$31","v":8000},{"$f":"ECG!L32","v":0}]
[{"$f":"Caratula!$A$13","v":0},"C",{"$f":"ECG!B$33","v":9000},{"$f":"ECG!L35","v":0}]
[{"$f":"Caratula!$A$13","v":0},"I",{"$f":"ECG!B$37","v":1000},{"$f":"ECG!L37","v":0}]
[{"$f":"Caratula!$A$13","v":0},"I",{"$f":"ECG!B$37","v":1000},{"$f":"ECG!L38","v":0}]
[{"$f":"Caratula!$A$13","v":0},"I",{"$f":"ECG!B$37","v":1000},{"$f":"ECG!L39","v":0}]
[{"$f":"Caratula!$A$13","v":0},"I",{"$f":"ECG!B$40","v":2000},{"$f":"ECG!L40","v":0}]
[{"$f":"Caratula!$A$13","v":0},"I",{"$f":"ECG!B$40","v":2000},{"$f":"ECG!L41","v":0}]
[{"$f":"Caratula!$A$13","v":0},"I",{"$f":"ECG!B$40","v":2000},{"$f":"ECG!L42","v":0}]
[{"$f":"Caratula!$A$13","v":0},"I",{"$f":"ECG!B$43","v":3000},{"$f":"ECG!L43","v":0}]
[{"$f":"Caratula!$A$13","v":0},"I",{"$f":"ECG!B$43","v":3000},{"$f":"ECG!L44","v":0}]
[{"$f":"Caratula!$A$13","v":0},"I",{"$f":"ECG!B$43","v":3000},{"$f":"ECG!L45","v":0}]
[{"$f":"Caratula!$A$13","v":0},"I",{"$f":"ECG!B$46","v":4000},{"$f":"ECG!L46","v":0}]
[{"$f":"Caratula!$A$13","v":0},"I",{"$f":"ECG!B$46","v":4000},{"$f":"ECG!L47","v":0}]
[{"$f":"Caratula!$A$13","v":0},"I",{"$f":"ECG!B$46","v":4000},{"$f":"ECG!L48","v":0}]
[{"$f":"Caratula!$A$13","v":0},"I",{"$f":"ECG!B$49","v":5000},{"$f":"ECG!L49","v":0}]
[{"$f":"Caratula!$A$13","v":0},"I",{"$f":"ECG!B$49","v":5000},{"$f":"ECG!L50","v":0}]
[{"$f":"Caratula!$A$13","v":0},"I",{"$f":"ECG!B$49","v":5000},{"$f":"ECG!L51","v":0}]
[{"$f":"Caratula!$A$13","v":0},"I",{"$f":"ECG!B$52","v":6000},{"$f":"ECG!L52","v":0}]
[{"$f":"Caratula!$A$13","v":0},"I",{"$f":"ECG!B$52","v":6000},{"$f":"ECG!L54","v":0}]
[{"$f":"Caratula!$A$13","v":0},"I",{"$f":"ECG!B$55","v":7000},{"$f":"ECG!L55","v":0}]
[{"$f":"Caratula!$A$13","v":0},"I",{"$f":"ECG!B$58","v":8000},{"$f":"ECG!L59","v":0}]

{"sheet":"ECG","index":4,"n_rows":63,"n_cols":18,"rows_kept":63,"cut":false,"hidden":false,"merged":[[28,11,28,12],[30,1,31,1],[30,2,31,2],[30,3,31,3],[27,9,29,9],[27,8,29,8],[27,1,29,1],[27,2,29,2],[27,3,29,3],[27,4,29,4],[27,5,29,5],[27,6,29,6],[27,7,29,7],[27,11,27,12],[30,4,31,4],[30,5,31,5],[30,6,31,6],[30,7,31,7],[30,8,31,8],[30,9,31,9],[30,11,30,12],[32,11,32,12],[33,11,33,12],[32,1,34,1],[32,8,34,8],[32,7,34,7],[32,6,34,6],[32,5,34,5],[32,4,34,4],[32,3,34,3],[32,2,34,2],[35,11,35,12],[6,1,7,1],[8,11,8,12],[15,11,15,12],[31,11,31,12],[15,1,17,1],[16,11,16,12],[17,11,17,12],[19,11,19,12],[20,11,20,12],[18,1,20,1],[9,4,11,4],[12,4,14,4],[15,4,17,4],[18,4,20,4],[34,11,34,12],[18,6,20,6],[18,7,20,7],[18,8,20,8],[18,9,20,9],[15,2,17,2],[15,3,17,3],[15,5,17,5],[29,11,29,12],[62,11,62,12],[39,11,39,12],[42,11,42,12],[48,11,48,12],[51,11,51,12],[54,11,54,12],[47,11,47,12],[1,1,1,12],[6,11,7,12],[9,11,9,12],[12,11,12,12],[6,2,6,8],[3,1,3,3],[4,1,4,3],[3,5,3,12],[4,5,4,12],[9,1,11,1],[10,11,10,12],[11,11,11,12],[12,1,14,1],[13,11,13,12],[14,11,14,12],[9,2,11,2],[18,11,18,12],[45,1,47,1],[48,1,50,1],[51,1,53,1],[36,1,38,1],[39,1,41,1],[42,1,44,1],[9,9,11,9],[12,2,14,2],[12,3,14,3],[12,5,14,5],[12,6,14,6],[12,7,14,7],[12,8,14,8],[12,9,14,9],[9,3,11,3],[9,5,11,5],[9,6,11,6],[9,7,11,7],[9,8,11,8],[15,8,17,8],[15,9,17,9],[18,2,20,2],[36,4,38,4],[36,8,38,8],[36,9,38,9],[37,11,37,12],[38,11,38,12],[39,2,41,2],[39,3,41,3],[39,5,41,5],[39,6,41,6],[39,7,41,7],[39,8,41,8],[39,9,41,9],[40,11,40,12],[41,11,41,12],[36,2,38,2],[36,3,38,3],[36,5,38,5],[36,6,38,6],[36,7,38,7],[39,4,41,4],[36,11,36,12],[42,8,44,8],[42,9,44,9],[43,11,43,12],[44,11,44,12],[45,2,47,2],[45,3,47,3],[45,5,47,5],[45,6,47,6],[45,7,47,7],[45,8,47,8],[45,9,47,9],[45,11,45,12],[46,11,46,12],[42,2,44,2],[42,3,44,3],[42,5,44,5],[42,6,44,6],[42,7,44,7],[42,4,44,4],[45,4,47,4],[51,3,53,3],[51,5,53,5],[51,6,53,6],[51,7,53,7],[51,8,53,8],[51,9,53,9],[53,11,53,12],[48,2,50,2],[48,3,50,3],[48,5,50,5],[48,6,50,6],[48,7,50,7],[48,4,50,4],[51,4,53,4],[52,11,52,12],[48,8,50,8],[48,9,50,9],[49,11,49,12],[50,11,50,12],[51,2,53,2],[6,10,7,10],[21,1,23,1],[21,2,23,2],[21,3,23,3],[21,4,23,4],[21,5,23,5],[21,6,23,6],[21,7,23,7],[21,8,23,8],[21,9,23,9],[15,6,17,6],[15,7,17,7],[18,3,20,3],[18,5,20,5],[21,11,21,12],[22,11,22,12],[23,11,23,12],[24,1,26,1],[24,2,26,2],[24,3,26,3],[24,4,26,4],[24,5,26,5],[24,6,26,6],[24,7,26,7],[24,8,26,8],[24,9,26,9],[24,11,24,12],[25,11,25,12],[26,11,26,12],[54,1,56,1],[55,11,55,12],[56,11,56,12],[54,2,56,2],[54,3,56,3],[54,4,56,4],[54,5,56,5],[54,6,56,6],[54,7,56,7],[54,8,56,8],[54,9,56,9],[57,11,57,12],[59,1,61,1],[59,2,61,2],[59,3,61,3],[59,4,61,4],[59,5,61,5],[59,6,61,6],[59,7,61,7],[59,8,61,8],[59,11,59,12],[60,11,60,12],[61,11,61,12],[57,1,58,1],[57,2,58,2],[57,3,58,3],[57,4,58,4],[57,5,58,5],[57,6,58,6],[57,7,58,7],[57,8,58,8],[57,9,58,9],[58,11,58,12]]}
[]
[null,"ECG EVOLUCIÓN PRESUPUESTAL POR CAPÍTULO DE GASTO "]
[]
[null,"Unidad Responsable de Gasto: "]
[null,"Período:",null,null,null,{"$f":"Caratula!I17","v":0}]
[]
[null,"CAPÍTULO\n","PRESUPUESTO\n(Pesos con dos decimales)",null,null,null,null,null,null,"VARIACIÓN","%\nAVANCE\n","EXPLICACIÓN A LAS VARIACIONES DEL SALDO COMPROMETIDO Y EJERCIDO  RESPECTO AL PRESUPUESTO MODIFICADO AL PERIODO"]
[null,null,"APROBADO","MODIFICADO","EJERCIDO","SALDO DEL\nCOMPROMISO","DEVENGADO","PAGADO","EJERCIDO + COMPROMETIDO","(SALDO DEL COMPROMISO + EJERCIDO)-MODIFICADO"]
[null,"TOTAL GASTO CORRIENTE",{"$f":"SUM(C10:C34)","v":0},{"$f":"SUM(D10:D34)","v":0},{"$f":"SUM(E10:E34)","v":0},{"$f":"SUM(F10:F34)","v":0},{"$f":"SUM(G10:G35)","v":0},{"$f":"SUM(H10:H35)","v":0},{"$f":"SUM(I10:I34)","v":0},{"$f":"SUM(J10:J35)","v":0},null,null,null,null,null,null,"CAPITULO","EXPLICACION"]
[null,1000,null,null,null,null,null,null,null,null,null,null,null,null,null,null,1000,"Plazas vacantes"]
[null,null,null,null,null,null,null,null,null,null,null,null,null,null,null,null,1000,"Sueldos no cobrados"]
[null,null,null,null,null,null,null,null,null,null,null,null,null,null,null,null,1000,"Laudos no ejecutados o no concluidos"]
[null,2000,null,null,null,null,null,null,null,null,null,null,null,null,null,null,1000,"Otros"]
[null,null,null,null,null,null,null,null,null,null,null,null,null,null,null,null,2000,"Economías en procesos de adquisición"]
[null,null,null,null,null,null,null,null,null,null,null,null,null,null,null,null,2000,"Existencia de bienes en el almacén"]
[null,3000,null,null,null,null,null,null,null,null,null,null,null,null,null,null,2000,"Bienes no requeridos"]
[null,null,null,null,null,null,null,null,null,null,null,null,null,null,null,null,2000,"Recursos centralizados"]
[null,null,null,null,null,null,null,null,null,null,null,null,null,null,null,null,2000,"Licitación o Invitación Restringida desierta "]
[null,4000,null,null,null,null,null,null,null,null,null,null,null,null,null,null,2000,"Otros"]
[null,null,null,null,null,null,null,null,null,null,null,null,null,null,null,null,3000,"Economías en procesos de contratación"]
[null,null,null,null,null,null,null,null,null,null,null,null,null,null,null,null,3000,"No se requirieron los servicios programados"]
[null,5000,null,null,null,null,null,null,null,null,null,null,null,null,null,null,3000,"Licitación o Invitación Restringida desierta "]
[null,null,null,null,null,null,null,null,null,null,null,null,null,null,null,null,3000,"Otros"]
[null,null,null,null,null,null,null,null,null,null,null,null,null,null,null,null,4000,"No fueron cobradas las ayudas"]
[null,6000,null,null,null,null,null,null,null,null,null,null,null,null,null,null,4000,"Las reglas de operación no salieron en tiempo"]
[null,null,null,null,null,null,null,null,null,null,null,null,null,null,null,null,4000,"El número de beneficiarios inscritos fue menor al programado"]
[null,null,null,null,null,null,null,null,null,null,null,null,null,null,null,null,4000,"El programa social se canceló"]
[null,7000,null,null,null,null,null,null,null,null,null,null,null,null,null,null,4000,"Otros"]
[null,null,null,null,null,null,null,null,null,null,null,null,null,null,null,null,5000,"Existencia de bienes en el almacén"]
[null,null,null,null,null,null,null,null,null,null,null,null,null,null,null,null,5000,"Bienes no requeridos"]
[null,8000,null,null,null,null,null,null,null,null,null,null,null,null,null,null,5000,"Licitación o Invitación Restringida desierta "]
[null,null,null,null,null,null,null,null,null,null,null,null,null,null,null,null,5000,"Economías en procesos de adquisición"]
[null,9000,null,null,null,null,null,null,null,null,null,null,null,null,null,null,5000,"Otros"]
[null,null,null,null,null,null,null,null,null,null,null,null,null,null,null,null,6000,"Licitación Desierta"]
[null,null,null,null,null,null,null,null,null,null,null,null,null,null,null,null,6000,"Cancelación de obra por temas legales o sociales"]
[null,"TOTAL GASTO DE CAPITAL",{"$f":"SUM(C37:C58)","v":0},{"$f":"SUM(D37:D58)","v":0},{"$f":"SUM(E37:E58)","v":0},{"$f":"SUM(F37:F58)","v":0},{"$f":"SUM(G37:G59)","v":0},{"$f":"SUM(H37:H59)","v":0},{"$f":"SUM(I37:I58)","v":0},{"$f":"I36-D36","v":0},null,null,null,null,null,null,6000,"Otros"]
[null,1000,null,null,null,null,null,null,null,null,null,null,null,null,null,null,7000,"Los recursos se trasladaron a otros capítulos con la finalidad de fortalecer las políticas públicas"]
[null,null,null,null,null,null,null,null,null,null,null,null,null,null,null,null,7000," No se presento ninguna contingencia socioeconómica"]
[null,null,null,null,null,null,null,null,null,null,null,null,null,null,null,null,7000,"Otros"]
[null,2000,null,null,null,null,null,null,null,null,null,null,null,null,null,null,8000,"Los recursos se verán reflejados en el pasivo circulante"]
[null,null,null,null,null,null,null,null,null,null,null,null,null,null,null,null,8000,"Otros"]
[null,null,null,null,null,null,null,null,null,null,null,null,null,null,null,null,9000,"Incumplimiento de los contratos derivados de la emisión de certificados bursátiles por parte del GCDMX en el mercado de valores. "]
[null,3000,null,null,null,null,null,null,null,null,null,null,null,null,null,null,9000,"No se adquirieron insumos"]
[null,null,null,null,null,null,null,null,null,null,null,null,null,null,null,null,9000,"No se realizaron proyectos, acciones o programas públicos "]
[null,null,null,null,null,null,null,null,null,null,null,null,null,null,null,null,9000,"Otros"]
[null,4000]
[]
[]
[null,5000]
[]
[]
[null,6000]
[]
[]
[null,7000]
[]
[]
[null,8000]
[]
[null,9000]
[]
[]
[null,"TOTAL\nURG "]

{"sheet":"EPC","index":5,"n_rows":12,"n_cols":17,"rows_kept":12,"cut":false,"hidden":false,"merged":[[29,11,29,12],[1,1,1,12],[6,1,7,1],[6,2,6,8],[6,11,7,12],[5,1,5,12],[3,1,3,3],[4,1,4,3],[4,4,4,12],[3,4,3,12],[8,11,8,12],[9,11,9,12],[20,11,20,12],[21,11,21,12],[22,11,22,12],[10,11,10,12],[28,11,28,12],[23,11,23,12],[24,11,24,12],[25,11,25,12],[26,11,26,12],[27,11,27,12],[6,10,7,10],[16,11,16,12],[17,11,17,12],[18,11,18,12],[19,11,19,12],[11,11,11,12],[12,11,12,12],[13,11,13,12],[14,11,14,12],[15,11,15,12]]}
[]
[null,"EPC EVOLUCIÓN PRESUPUESTAL DE PARTIDAS CENTRALIZADAS O CONSOLIDADAS"]
[]
[null,"Unidad Responsable de Gasto: "]
[null,"Período:",null,null,{"$f":"Caratula!I17","v":0}]
[]
[null,"PARTIDA ESPECÍFICA\n","PRESUPUESTO\n(Pesos con dos decimales)",null,null,null,null,null,null,"VARIACIÓN","%\nAVANCE\n","A)  EXPLICACIÓN A LAS VARIACIONES DEL SALDO COMPROMETIDO Y EJERCIDO  RESPECTO AL PRESUPUESTO MODIFICADO AL PERIODO"]
[null,null,"APROBADO","MODIFICADO","EJERCIDO","SALDO DEL\nCOMPROMISO","DEVENGADO","PAGADO","EJERCIDO + COMPROMETIDO","(SALDO DEL COMPROMISO + EJERCIDO)-MODIFICADO"]
[null,null,null,null,null,null,null,null,null,null,null,null,null,null,null,null,"La unidad determinó un mayor presupuesto aprobado, derivado del comportamiento en ejercicios anteriores"]
[null,null,null,null,null,null,null,null,null,null,null,null,null,null,null,null,"Los recursos se erogarán en pasivo circulante"]
[null,null,null,null,null,null,null,null,null,null,null,null,null,null,null,null,"No se realizó un proceso de consolidación para la compra de bienes informáticos"]
[null,null,null,null,null,null,null,null,null,null,null,null,null,null,null,null,"Otros"]

{"sheet":"PPI","index":6,"n_rows":29,"n_cols":12,"rows_kept":29,"cut":false,"hidden":false,"merged":[[1,1,1,11],[6,1,7,1],[6,2,7,2],[6,3,7,3],[6,11,7,11],[3,1,3,2],[3,3,3,11],[4,1,4,2],[4,3,4,11],[6,4,6,10]]}
[]
[null,"PPI PROGRAMAS Y PROYECTOS DE INVERSIÓN"]
[]
[null,"Unidad Responsable de Gasto: ",null,{"$f":"Caratula!A13","v":0}]
[null,"Período:",null,{"$f":"Caratula!I17","v":0}]
[]
[null,"CLAVE\nPROYECTO DE INVERSIÓN\n","DENOMINACIÓN DEL PROYECTO DE INVERSIÓN","AVANCE \n%","PRESUPUESTO\n(Pesos con dos decimales)",null,null,null,null,null,null,"DESCRIPCION DE ACCIONES REALIZADAS"]
[null,null,null,null,"APROBADO","MODIFICADO","EJERCIDO","SALDO DEL\nCOMPROMISO","DEVENGADO","PAGADO","EJERCIDO + COMPROMETIDO"]
[null,null,null,null,null,null,null,null,null,null,{"$f":"SUM(PPI!G9,PPI!H9)","v":0}]
[null,null,null,null,null,null,null,null,null,null,{"$f":"SUM(PPI!G10,PPI!H10)","v":0}]
[null,null,null,null,null,null,null,null,null,null,{"$f":"SUM(PPI!G11,PPI!H11)","v":0}]
[null,null,null,null,null,null,null,null,null,null,{"$f":"SUM(PPI!G12,PPI!H12)","v":0}]
[null,null,null,null,null,null,null,null,null,null,{"$f":"SUM(PPI!G13,PPI!H13)","v":0}]
[null,null,null,null,null,null,null,null,null,null,{"$f":"SUM(PPI!G14,PPI!H14)","v":0}]
[null,null,null,null,null,null,null,null,null,null,{"$f":"SUM(PPI!G15,PPI!H15)","v":0}]
[null,null,null,null,null,null,null,null,null,null,{"$f":"SUM(PPI!G16,PPI!H16)","v":0}]
[null,null,null,null,null,null,null,null,null,null,{"$f":"SUM(PPI!G17,PPI!H17)","v":0}]
[null,null,null,null,null,null,null,null,null,null,{"$f":"SUM(PPI!G18,PPI!H18)","v":0}]
[null,null,null,null,null,null,null,null,null,null,{"$f":"SUM(PPI!G19,PPI!H19)","v":0}]
[null,null,null,null,null,null,null,null,null,null,{"$f":"SUM(PPI!G20,PPI!H20)","v":0}]
[null,null,null,null,null,null,null,null,null,null,{"$f":"SUM(PPI!G21,PPI!H21)","v":0}]
[null,null,null,null,null,null,null,null,null,null,{"$f":"SUM(PPI!G22,PPI!H22)","v":0}]
[null,null,null,null,null,null,null,null,null,null,{"$f":"SUM(PPI!G23,PPI!H23)","v":0}]
[null,null,null,null,null,null,null,null,null,null,{"$f":"SUM(PPI!G24,PPI!H24)","v":0}]
[null,null,null,null,null,null,null,null,null,null,{"$f":"SUM(PPI!G25,PPI!H25)","v":0}]
[null,null,null,null,null,null,null,null,null,null,{"$f":"SUM(PPI!G26,PPI!H26)","v":0}]
[null,null,null,null,null,null,null,null,null,null,{"$f":"SUM(PPI!G27,PPI!H27)","v":0}]
[null,null,null,null,null,null,null,null,null,null,{"$f":"SUM(PPI!G28,PPI!H28)","v":0}]
[null,null,null,null,null,null,null,null,null,null,{"$f":"SUM(PPI!G29,PPI!H29)","v":0}]

{"sheet":"A-PP","index":7,"n_rows":23,"n_cols":12,"rows_kept":23,"cut":false,"hidden":false,"merged":[[6,1,7,1],[6,2,6,4],[6,5,6,8],[6,9,6,10],[6,11,7,11],[5,1,5,11],[1,1,1,11],[3,1,3,3],[3,4,3,11],[4,1,4,3],[4,4,4,11]]}
[]
[null,"A-PP ADECUACIONES A  PROGRAMAS PRESUPUESTARIOS"]
[]
[null,"Unidad Responsable de Gasto: "]
[null,"Período: ",null,null,{"$f":"Caratula!I17","v":0}]
[]
[null,"PROGRAMA PRESUPUESTARIO","PRESUPUESTO\n(Pesos con dos decimales)",null,null,"ADECUACIONES PRESUPUESTALES",null,null,null,"METAS DEL PP",null,"FUNDAMENTOS, MOTIVOS Y RAZONAMIENTOS DE LAS MODIFICACIONES Y SU IMPACTO EN LAS METAS ORIGINALES PREVISTAS\n"]
[null,null,"APROBADO","MODIFICADO","VARIACIÓN %:\n((MODIFICADO/APROBADO)-1)*100","NÚMERO DE AFECTACIÓN","DESTINO DEL GASTO","AMPLIACIÓN ","REDUCCIÓN","ORIGINAL\n","MODIFICADO\n"]
[]
[]
[]
[]
[]
[]
[]
[]
[]
[]
[]
[]
[]
[]
[null,"TOTAL",{"$f":"SUM(C9:C21)","v":0},{"$f":"SUM(D9:D21)","v":0},{"$f":"IF(C23=0,\"\",D23/C23)","v":""},null,null,{"$f":"SUM(H9:H21)","v":0},{"$f":"SUM(I9:I21)","v":0}]

{"sheet":"ADS-1","index":8,"n_rows":29,"n_cols":7,"rows_kept":29,"cut":false,"hidden":false,"merged":[[1,1,1,6],[3,2,3,6],[4,2,4,6],[6,2,7,2],[6,3,6,4],[6,6,7,6],[6,5,7,5]]}
[]
[null,"ADS-1 AYUDAS, DONATIVOS Y SUBSIDIOS"]
[]
[null,"Unidad Responsable de Gasto: "]
[null,"Período:",{"$f":"Caratula!I17","v":0}]
[]
[null,"ÁREA FUNCIONAL","CLAVE Y DENOMINACIÓN DE LA PARTIDA ESPECÍFICA"," BENEFICIARIO",null,"PRESUPUESTO EJERCIDO\n(Pesos con dos decimales)","CARACTERÍSTICAS"]
[null,"FI-F-SF-AI-PP\n",null,"TIPO","TOTAL"]
[]
[]
[]
[]
[]
[]
[]
[]
[]
[]
[]
[]
[]
[]
[]
[]
[]
[]
[]
[]
[null,null,"TOTAL URG "]

{"sheet":"ADS-2","index":9,"n_rows":26,"n_cols":8,"rows_kept":26,"cut":false,"hidden":false,"merged":[[1,1,1,7],[3,2,3,7],[4,2,4,7],[6,2,7,2],[6,7,7,7],[6,3,6,6],[5,2,5,7]]}
[]
[null,"ADS-2  AYUDAS, DONATIVOS Y SUBSIDIOS A FIDEICOMISOS"]
[]
[null,"Unidad Responsable de Gasto: "]
[null,"Período: ",{"$f":"Caratula!I17","v":0}]
[]
[null,"ÁREA FUNCIONAL","NOMBRE DEL FIDEICOMISO","MONTO\n(Pesos con dos decimales)",null,null,null,"DESTINO DEL GASTO"]
[null,"FI-F-SF-AI-PP\n",null,"INGRESO","GASTO","RENDIMIENTOS\nFINANCIEROS","SALDO"]
[]
[]
[]
[]
[]
[]
[]
[]
[]
[]
[]
[]
[]
[]
[]
[]
[]
[null,null,"TOTAL URG"]

{"sheet":"SAP","index":10,"n_rows":23,"n_cols":9,"rows_kept":23,"cut":false,"hidden":false,"merged":[[6,8,7,8],[1,1,1,8],[3,2,3,8],[4,2,4,8],[6,2,7,2],[6,4,7,4],[6,5,7,5],[6,6,6,7],[6,3,7,3]]}
[null,null," "]
[null,"SAP   PROGRAMAS QUE OTORGAN SUBSIDIOS Y APOYOS A LA POBLACIÓN"]
[]
[null,"Unidad Responsable de Gasto: ","02CD14 ALCALDÍA TLALPAN"]
[null,"Período: ","ENERO - DICIEMBRE 2021"]
[]
[null,"ÁREA FUNCIONAL","DENOMINACIÓN DEL PROGRAMA1/","FECHA DE PUBLICACIÓN DE REGLAS DE OPERACIÓN","ALCALDÍA  ","COLONIA"," BENEFICIARIO",null,"PRESUPUESTO EJERCIDO\n(Pesos con dos decimales)"]
[null,"FI-F-SF-AI-PP\n",null,null,null,null," TIPO"," TOTAL"]
[]
[null,"2-6-8-032-S128","DEFENSORÍA DE LOS DERECHOS Y APOYOS ECONÓMICOS A NIÑAS\nY NIÑOS DE TLALPAN","2021-01-29","TLALPAN","Preferentemente en alguna\nde las 65 colonias de muy bajo y bajo índice de desarrollo social","PERSONA","2,000 Beneficiarios\n22 Facilitadores"]
[null,"2-6-8-117-S200","JUVENTUDES TLALPAN, CULTIVANDO RAÍCES DE IDENTIDAD Y COMUNIDAD","2021-01-29","TLALPAN","Preferentemente en alguna\nde las 65 colonias de muy bajo y bajo índice de desarrollo social","PERSONA","35 Colecivos Beneficiarios\n9 Faciltadores"]
[null,"2-6-8-017-S126","COMUNIDAD HUEHUEYOTL, APOYO A COLECTIVOS DE PERSONAS ADULTAS MAYORES","2021-01-29","TLALPAN","Preferentemente en alguna\nde las 65 colonias de muy bajo y bajo índice de desarrollo social","PERSONA","80 Colectivos beneficiarios\n20 Facilitadores"]
[null,"2-4-4-050-S127","PROMOCIÓN DE DESARROLLO COMUNITARIO, MOCHILA DE DERECHOS","2021-01-29","TLALPAN","Preferentemente en alguna\nde las 65 colonias de muy bajo y bajo índice de desarrollo social","PERSONA","189 Facilitadores"]
[]
[]
[]
[]
[]
[]
[]
[null,null,"TOTAL URG"]
[]
[null,"1/ Se refiere a programas que cuentan con reglas de operación publicadas en la Gaceta Oficial de la Ciudad de México. "]

{"sheet":"FIC","index":11,"n_rows":27,"n_cols":4,"rows_kept":27,"cut":false,"hidden":false,"merged":[[17,1,17,3],[21,1,21,3],[25,1,25,3],[10,2,10,3],[11,2,11,3],[12,2,12,3],[13,2,13,3],[14,2,14,3],[15,2,15,3],[1,1,1,3],[6,1,6,3],[8,2,8,3],[9,2,9,3],[7,1,7,3],[3,2,3,3],[4,2,4,3]]}
[]
[null,"FIC  FIDEICOMISOS CONSTITUIDOS"]
[]
[null,"Unidad Responsable de Gasto: "]
[null,"Período: ",{"$f":"Caratula!I17","v":0}]
[]
[null,"DATOS GENERALES DEL FIDEICOMISO"]
[]
[null,"Denominación del Fideicomiso: "]
[null,"Fecha de su constitución: "]
[null,"Fideicomitente: "]
[null,"Fideicomisario: "]
[null,"Fiduciario: "]
[null,"Objeto de su constitución: "]
[null,"Modificaciones al objeto de su constitución: "]
[null,"Objeto actual: "]
[]
[null,"DISPONIBILIDAD PRESUPUESTAL DEL FIDEICOMISO"]
[null,"Disponibilidad de Recursos al Finalizar el Trimestre Anterior: (a)","Disponibilidad de Recursos al Finalizar el Trimestre de Referencia: (b)","Variación de la Disponibilidad = (b)-(a)"]
[]
[]
[null,"ESTADO FINANCIERO DEL FIDEICOMISO"]
[null,"Activo: ","Pasivo:","Capital: "]
[]
[]
[null,"AVANCE PRESUPUESTAL DEL FIDEICOMISO"]
[null,"Naturaleza del Gasto:  ","Destino del Gasto: ","Monto Ejercido: "]

{"sheet":"AP-FAFA","index":12,"n_rows":26,"n_cols":14,"rows_kept":26,"cut":false,"hidden":false,"merged":[[26,1,30,13],[6,5,7,5],[25,1,25,13],[6,6,6,12],[6,1,6,3],[1,1,1,13],[3,1,3,5],[3,6,3,13],[4,1,4,5],[4,6,4,13],[2,1,2,13]]}
[null," "]
[null,"AP-FAFA  AVANCE PRESUPUESTAL DEL FONDO ADICIONAL DE FINANCIAMIENTO DE LAS ALCALDÍAS"]
[]
[null,"Alcaldía:"]
[null,"Período: ",null,null,null,null,{"$f":"Caratula!I17","v":0}]
[]
[null,"ESTRUCTURA VALOR PÚBLICO",null,null,"ÁREA FUNCIONAL","DENOMINACIÓN\nDEL PROYECTO APROBADO","PRESUPUESTO\n(Pesos con dos decimales)",null,null,null,null,null,null,"AVANCE\n%"]
[null,"EJE\n","SUB\nEJE\n","SUB\nSUB\nEJE","FI-F-SF-AI-PP",null,"APROBADO","MODIFICADO","EJERCIDO","SALDO DEL\nCOMPROMISO","DEVENGADO","PAGADO","EJERCIDO + COMPROMETIDO","(SALDO DEL COMPROMISO + EJERCIDO) / MODIFICADO)*100\n"]
[null,null,null,null,null,null,null,null,null,null,null,null,null,{"$f":"IFERROR(($J9/$G9)*100,\"\")","v":""}]
[null,null,null,null,null,null,null,null,null,null,null,null,null,{"$f":"IFERROR(($M10/$H10)*100,\"\")","v":""}]
[null,null,null,null,null,null,null,null,null,null,null,null,null,{"$f":"IFERROR(($M11/$H11)*100,\"\")","v":""}]
[null,null,null,null,null,null,null,null,null,null,null,null,null,""]
[null,null,null,null,null,null,null,null,null,null,null,null,null,""]
[null,null,null,null,null,null,null,null,null,null,null,null,null,""]
[null,null,null,null,null,null,null,null,null,null,null,null,null,""]
[null,null,null,null,null,null,null,null,null,null,null,null,null,""]
[null,null,null,null,null,null,null,null,null,null,null,null,null,""]
[null,null,null,null,null,null,null,null,null,null,null,null,null,""]
[null,null,null,null,null,null,null,null,null,null,null,null,null,""]
[null,null,null,null,null,null,null,null,null,null,null,null,null,""]
[null,null,null,null,null,null,null,null,null,null,null,null,null,""]
[null,null,null,null,null,null,null,null,null,null,null,null,null,""]
[null,null,null,null,null,null,null,null,null,null,null,null,null,""]
[null,null,null,null,null,"TOTAL URG",null,null,null,null,null,null,null,""]
[null,null,null,null,null,null,null,null,null,null,null,null,null,""]
[null,"ACCIONES REALIZADAS CON RECURSOS DEL FONDO ADICIONAL DE FINANCIAMIENTO DE LAS ALCALDÍAS: "]

{"sheet":"PPA20","index":13,"n_rows":38,"n_cols":17,"rows_kept":38,"cut":false,"hidden":false,"merged":[[4,3,4,16],[5,3,5,16],[1,1,1,16],[7,7,9,7],[7,8,7,15],[2,1,2,16],[7,1,7,2],[7,3,7,6],[3,1,3,2],[4,1,4,2],[5,1,5,2],[3,3,3,16],[8,1,9,1],[8,2,9,2],[8,8,9,8],[8,9,9,9],[8,15,9,15],[8,16,9,16],[8,3,8,4],[8,5,8,6],[8,10,9,10],[8,11,9,11],[8,12,9,12],[8,13,9,13],[8,14,9,14]]}
[]
[null,"PPA PRESUPUESTO PARTICIPATIVO "]
[]
[null,"Alcaldía:"]
[null,"Período: ",null,{"$f":"Caratula!I17","v":0}]
[null,"Ejercicio:",null,2020]
[]
[null,"UNIDAD TERRITORIAL",null,"PROYECTO",null,null,null,"AVANCE EN LA EJECUCIÓN DEL\n PROYECTO\n (%)","PRESUPUESTO\n(Pesos con dos decimales)",null,null,null,null,null,null,null,"AVANCE PRESUPUESTAL\n%"]
[null,"CLAVE","DENOMINACIÓN","GANADOR",null,"SUSTITUTO",null,null,"CAPÍTULO DE GASTO","APROBADO","MODIFICADO","EJERCIDO","SALDO DEL\nCOMPROMISO","DEVENGADO","PAGADO","EJERCIDO + COMPROMETIDO","(SALDO DEL COMPROMISO +EJERCIDO /MODIFICADO *100"]
[null,null,null,"NÚMERO","NOMBRE","OFICIO AUTORIZACIÓN","NOMBRE"]
[null,null,null,null,null,null,null,null,null,null,null,null,null,null,null,null,{"$f":"IFERROR(($K11/#REF!)*100,\"\")","v":""}]
[null,null,null,null,null,null,null,null,null,null,null,null,null,null,null,null,{"$f":"IFERROR(($K12/#REF!)*100,\"\")","v":""}]
[null,null,null,null,null,null,null,null,null,null,null,null,null,null,null,null,{"$f":"IFERROR(($K13/#REF!)*100,\"\")","v":""}]
[null,null,null,null,null,null,null,null,null,null,null,null,null,null,null,null,{"$f":"IFERROR(($K14/#REF!)*100,\"\")","v":""}]
[null,null,null,null,null,null,null,null,null,null,null,null,null,null,null,null,{"$f":"IFERROR(($K15/#REF!)*100,\"\")","v":""}]
[null,null,null,null,null,null,null,null,null,null,null,null,null,null,null,null,{"$f":"IFERROR(($K16/#REF!)*100,\"\")","v":""}]
[null,null,null,null,null,null,null,null,null,null,null,null,null,null,null,null,{"$f":"IFERROR(($K17/#REF!)*100,\"\")","v":""}]
[null,null,null,null,null,null,null,null,null,null,null,null,null,null,null,null,{"$f":"IFERROR(($K18/#REF!)*100,\"\")","v":""}]
[null,null,null,null,null,null,null,null,null,null,null,null,null,null,null,null,{"$f":"IFERROR(($K19/#REF!)*100,\"\")","v":""}]
[null,null,null,null,null,null,null,null,null,null,null,null,null,null,null,null,{"$f":"IFERROR(($K20/#REF!)*100,\"\")","v":""}]
[null,null,null,null,null,null,null,null,null,null,null,null,null,null,null,null,{"$f":"IFERROR(($K21/#REF!)*100,\"\")","v":""}]
[null,null,null,null,null,null,null,null,null,null,null,null,null,null,null,null,{"$f":"IFERROR(($K22/#REF!)*100,\"\")","v":""}]
[null,null,null,null,null,null,null,null,null,null,null,null,null,null,null,null,{"$f":"IFERROR(($K23/#REF!)*100,\"\")","v":""}]
[null,null,null,null,null,null,null,null,null,null,null,null,null,null,null,null,{"$f":"IFERROR(($K24/#REF!)*100,\"\")","v":""}]
[null,null,null,null,null,null,null,null,null,null,null,null,null,null,null,null,{"$f":"IFERROR(($K25/#REF!)*100,\"\")","v":""}]
[null,null,null,null,null,null,null,null,null,null,null,null,null,null,null,null,{"$f":"IFERROR(($K26/#REF!)*100,\"\")","v":""}]
[null,null,null,null,null,null,null,null,null,null,null,null,null,null,null,null,{"$f":"IFERROR(($K27/#REF!)*100,\"\")","v":""}]
[null,null,null,null,null,null,null,null,null,null,null,null,null,null,null,null,{"$f":"IFERROR(($K28/#REF!)*100,\"\")","v":""}]
[null,null,null,null,null,null,null,null,null,null,null,null,null,null,null,null,{"$f":"IFERROR(($K29/#REF!)*100,\"\")","v":""}]
[null,null,null,null,null,null,null,null,null,null,null,null,null,null,null,null,{"$f":"IFERROR(($K30/#REF!)*100,\"\")","v":""}]
[null,null,null,null,null,null,null,null,null,null,null,null,null,null,null,null,{"$f":"IFERROR(($K31/#REF!)*100,\"\")","v":""}]
[null,null,null,null,null,null,null,null,null,null,null,null,null,null,null,null,{"$f":"IFERROR(($K32/#REF!)*100,\"\")","v":""}]
[null,null,null,null,null,null,null,null,null,null,null,null,null,null,null,null,{"$f":"IFERROR(($K33/#REF!)*100,\"\")","v":""}]
[null,null,null,null,null,null,null,null,null,null,null,null,null,null,null,null,{"$f":"IFERROR(($K34/#REF!)*100,\"\")","v":""}]
[null,null,null,null,null,null,null,null,null,null,null,null,null,null,null,null,{"$f":"IFERROR(($K35/#REF!)*100,\"\")","v":""}]
[null,"TOTAL URG ",null,null,null,null,null,null,null,null,null,null,null,null,null,null,{"$f":"IFERROR(($K36/#REF!)*100,\"\")","v":""}]
[null,null,null,null,null,null,null,null,null,null,null,null,null,null,null,null,{"$f":"IFERROR(($K37/#REF!)*100,\"\")","v":""}]
[null,null,null,null,null,null,null,null,null,null,null,null,null,null,null,null,{"$f":"IFERROR(($K38/#REF!)*100,\"\")","v":""}]

{"sheet":"PPA21","index":14,"n_rows":38,"n_cols":17,"rows_kept":38,"cut":false,"hidden":false,"merged":[[5,1,5,2],[5,3,5,16],[7,1,7,2],[7,3,7,6],[1,1,1,16],[2,1,2,16],[3,1,3,2],[3,3,3,16],[4,1,4,2],[4,3,4,16],[8,16,9,16],[7,7,9,7],[7,8,7,15],[8,1,9,1],[8,2,9,2],[8,3,8,4],[8,5,8,6],[8,14,9,14],[8,15,9,15],[8,8,9,8],[8,9,9,9],[8,10,9,10],[8,11,9,11],[8,12,9,12],[8,13,9,13]]}
[]
[null,"PPA PRESUPUESTO PARTICIPATIVO "]
[]
[null,"Alcaldía:"]
[null,"Período: ",null,{"$f":"Caratula!I17","v":0}]
[null,"Ejercicio:",null,2021]
[]
[null,"UNIDAD TERRITORIAL",null,"PROYECTO",null,null,null,"AVANCE EN LA EJECUCIÓN DEL\n PROYECTO\n (%)","PRESUPUESTO\n(Pesos con dos decimales)",null,null,null,null,null,null,null,"AVANCE PRESUPUESTAL\n%"]
[null,"CLAVE","DENOMINACIÓN","GANADOR",null,"SUSTITUTO",null,null,"CAPÍTULO DE GASTO","APROBADO","MODIFICADO","EJERCIDO","SALDO DEL\nCOMPROMISO","DEVENGADO","PAGADO","EJERCIDO + COMPROMETIDO","(SALDO DEL COMPROMISO +EJERCIDO /MODIFICADO *100"]
[null,null,null,"NÚMERO","NOMBRE","OFICIO AUTORIZACIÓN","NOMBRE"]
[null,null,null,null,null,null,null,null,null,null,null,null,null,null,null,null,{"$f":"IFERROR(($K11/#REF!)*100,\"\")","v":""}]
[null,null,null,null,null,null,null,null,null,null,null,null,null,null,null,null,{"$f":"IFERROR(($K12/#REF!)*100,\"\")","v":""}]
[null,null,null,null,null,null,null,null,null,null,null,null,null,null,null,null,{"$f":"IFERROR(($K13/#REF!)*100,\"\")","v":""}]
[null,null,null,null,null,null,null,null,null,null,null,null,null,null,null,null,{"$f":"IFERROR(($K14/#REF!)*100,\"\")","v":""}]
[null,null,null,null,null,null,null,null,null,null,null,null,null,null,null,null,{"$f":"IFERROR(($K15/#REF!)*100,\"\")","v":""}]
[null,null,null,null,null,null,null,null,null,null,null,null,null,null,null,null,{"$f":"IFERROR(($K16/#REF!)*100,\"\")","v":""}]
[null,null,null,null,null,null,null,null,null,null,null,null,null,null,null,null,{"$f":"IFERROR(($K17/#REF!)*100,\"\")","v":""}]
[null,null,null,null,null,null,null,null,null,null,null,null,null,null,null,null,{"$f":"IFERROR(($K18/#REF!)*100,\"\")","v":""}]
[null,null,null,null,null,null,null,null,null,null,null,null,null,null,null,null,{"$f":"IFERROR(($K19/#REF!)*100,\"\")","v":""}]
[null,null,null,null,null,null,null,null,null,null,null,null,null,null,null,null,{"$f":"IFERROR(($K20/#REF!)*100,\"\")","v":""}]
[null,null,null,null,null,null,null,null,null,null,null,null,null,null,null,null,{"$f":"IFERROR(($K21/#REF!)*100,\"\")","v":""}]
[null,null,null,null,null,null,null,null,null,null,null,null,null,null,null,null,{"$f":"IFERROR(($K22/#REF!)*100,\"\")","v":""}]
[null,null,null,null,null,null,null,null,null,null,null,null,null,null,null,null,{"$f":"IFERROR(($K23/#REF!)*100,\"\")","v":""}]
[null,null,null,null,null,null,null,null,null,null,null,null,null,null,null,null,{"$f":"IFERROR(($K24/#REF!)*100,\"\")","v":""}]
[null,null,null,null,null,null,null,null,null,null,null,null,null,null,null,null,{"$f":"IFERROR(($K25/#REF!)*100,\"\")","v":""}]
[null,null,null,null,null,null,null,null,null,null,null,null,null,null,null,null,{"$f":"IFERROR(($K26/#REF!)*100,\"\")","v":""}]
[null,null,null,null,null,null,null,null,null,null,null,null,null,null,null,null,{"$f":"IFERROR(($K27/#REF!)*100,\"\")","v":""}]
[null,null,null,null,null,null,null,null,null,null,null,null,null,null,null,null,{"$f":"IFERROR(($K28/#REF!)*100,\"\")","v":""}]
[null,null,null,null,null,null,null,null,null,null,null,null,null,null,null,null,{"$f":"IFERROR(($K29/#REF!)*100,\"\")","v":""}]
[null,null,null,null,null,null,null,null,null,null,null,null,null,null,null,null,{"$f":"IFERROR(($K30/#REF!)*100,\"\")","v":""}]
[null,null,null,null,null,null,null,null,null,null,null,null,null,null,null,null,{"$f":"IFERROR(($K31/#REF!)*100,\"\")","v":""}]
[null,null,null,null,null,null,null,null,null,null,null,null,null,null,null,null,{"$f":"IFERROR(($K32/#REF!)*100,\"\")","v":""}]
[null,null,null,null,null,null,null,null,null,null,null,null,null,null,null,null,{"$f":"IFERROR(($K33/#REF!)*100,\"\")","v":""}]
[null,null,null,null,null,null,null,null,null,null,null,null,null,null,null,null,{"$f":"IFERROR(($K34/#REF!)*100,\"\")","v":""}]
[null,null,null,null,null,null,null,null,null,null,null,null,null,null,null,null,{"$f":"IFERROR(($K35/#REF!)*100,\"\")","v":""}]
[null,"TOTAL URG ",null,null,null,null,null,null,null,null,null,null,null,null,null,null,{"$f":"IFERROR(($K36/#REF!)*100,\"\")","v":""}]
[null,null,null,null,null,null,null,null,null,null,null,null,null,null,null,null,{"$f":"IFERROR(($K37/#REF!)*100,\"\")","v":""}]
[null,null,null,null,null,null,null,null,null,null,null,null,null,null,null,null,{"$f":"IFERROR(($K38/#REF!)*100,\"\")","v":""}]

{"sheet":"Formato 6d","index":15,"n_rows":37,"n_cols":8,"rows_kept":37,"cut":false,"hidden":false,"merged":[[8,1,10,1],[8,2,8,6],[8,7,10,7],[9,2,10,2],[9,3,10,3],[9,4,10,4],[9,5,10,5],[9,6,10,6],[1,1,1,7],[2,1,2,7],[4,1,4,7],[5,1,5,7],[6,1,6,7],[3,1,3,7]]}
[]
[null,"Estado Analítico del Ejercicio del Presupuesto de Egresos Detallado - LDF (Clasificación de Servicios Personales por Categoría)"]
[null,"Unidad Responsable de Gasto: "]
[]
[]
[null,"Del 1 de enero al 31 de dicieembre de 2021"]
[null,"(PESOS)"]
[]
[null,"C O N C E P T O  ","EGRESOS",null,null,null,null,"SUBEJERCICIO"]
[null,null,"APROBADO","AMPLIACIONES /\nREDUCCIONES","MODIFICADO","DEVENGADO","PAGADO"]
[]
[]
[null,"I. GASTO NO ETIQUETADO (A+B+C+D+E+F)",{"$f":"C14+C15+C16+C19+C20+C23","v":0},{"$f":"E13-C13","v":0},{"$f":"E14+E15+E16+E19+E20+E23","v":0},{"$f":"F14+F15+F16+F19+F20+F23","v":0},{"$f":"G14+G15+G16+G19+G20+G23","v":0},{"$f":"E13-F13","v":0}]
[null,"A. Personal Administrativo y de Servicio Público",0,{"$f":"E14-C14","v":0},0,0,0,{"$f":"E14-F14","v":0}]
[null,"B. Magisterio",0,{"$f":"E15-C15","v":0},0,0,0,{"$f":"E15-F15","v":0}]
[null,"C. Servicios de Salud C = (c1+c2)",{"$f":"C17+C18","v":0},{"$f":"E16-C16","v":0},{"$f":"E17+E18","v":0},{"$f":"F17+F18","v":0},{"$f":"G17+G18","v":0},{"$f":"E16-F16","v":0}]
[null,"c1) Personal Administrativo",0,0,0,0,0,{"$f":"E17-F17","v":0}]
[null,"c2) Personal Médico, Paramédico y Afín",0,0,0,0,0,{"$f":"E18-F18","v":0}]
[null,"D. Seguridad Pública",0,0,0,0,0,0]
[null,"E. Gastos Asoc. a la Implemt.  de Nvas. Leyes Fed. o Ref. de las Mismas E = (e1+e2)",{"$f":"C21+C22","v":0},{"$f":"E20-C20","v":0},{"$f":"E21+E22","v":0},{"$f":"F21+F22","v":0},{"$f":"G21+G22","v":0},0]
[null,"e1 )Nombre del Programa o Ley 1",0,0,0,0,0,0]
[null,"e2) Nombre del Programa o Ley 2",0,0,0,0,0,0]
[null,"F. Sentencias Laborales Definitivas",0,0,0,0,0,0]
[]
[null,"II. GASTO ETIQUETADO  (A+B+C+D+E+F)",{"$f":"C26+C27+C28+C31+C32+C35","v":0},{"$f":"D26+D27+D28+D31+D32+D35","v":0},{"$f":"E26+E27+E28+E31+E32+E35","v":0},{"$f":"F26+F27+F28+F31+F32+F35","v":0},{"$f":"G26+G27+G28+G31+G32+G35","v":0},0]
[null,"A. Personal Administrativo y de Servicio Público",0,{"$f":"E26-C26","v":0},0,0,0,0]
[null,"B. Magisterio",0,0,0,0,0,{"$f":"E27-F27","v":0}]
[null,"C. Servicios de Salud C = (c1+c2)",{"$f":"C29+C30","v":0},0,{"$f":"E29+E30","v":0},{"$f":"F29+F30","v":0},{"$f":"G29+G30","v":0},0]
[null,"c1) Personal Administrativo",0,0,0,0,0,0]
[null,"c2) Personal Médico, Paramédico y Afín",0,0,0,0,0,{"$f":"E30-F30","v":0}]
[null,"D. Seguridad Pública",0,0,0,0,0,0]
[null,"E. Gastos Asoc. a la Implemt.  de Nvas. Leyes Fed. o Ref. de las Mismas E = (e1+e2)",{"$f":"C33+C34","v":0},0,{"$f":"E33+E34","v":0},{"$f":"F33+F34","v":0},{"$f":"G33+G34","v":0},0]
[null,"e1 )Nombre del Programa o Ley 1",0,0,0,0,0,0]
[null,"e2) Nombre del Programa o Ley 2",0,0,0,0,0,0]
[null,"F. Sentencias Laborales Definitivas",0,0,0,0,0,0]
[]
[null,"TOTAL DEL GASTO EN SERVICIOS PERSONALES III = (I+II)",{"$f":"C13+C25","v":0},{"$f":"E37-C37","v":0},{"$f":"E13+E25","v":0},{"$f":"F13+F25","v":0},{"$f":"G13+G25","v":0},{"$f":"E37-F37","v":0}]

{"sheet":"CG","index":16,"n_rows":112,"n_cols":2,"rows_kept":112,"cut":false,"hidden":true,"merged":[]}
["CG","N_UR"]
["-","SELECCIONE--"]
["01C001","01C001 Jefatura de Gobierno"]
["01CD03","01CD03 Centro de Comando, Control, Cómputo, Comunicaciones y Contacto Ciudadano"]
["01CD06","01CD06 Agencia Digital de Innovación Pública"]
["01P0ES","01P0ES Fondo para el Desarrollo Económico y Social"]
["02C001","02C001 Secretaría de Gobierno"]
["02CD01","02CD01 Alcaldía Álvaro Obregón"]
["02CD02","02CD02 Alcaldía Azcapotzalco"]
["02CD03","02CD03 Alcaldía Benito Juárez"]
["02CD04","02CD04 Alcaldía Coyoacán"]
["02CD05","02CD05 Alcaldía Cuajimalpa de Morelos"]
["02CD06","02CD06 Alcaldía Cuauhtémoc"]
["02CD07","02CD07 Alcaldía Gustavo A. Madero"]
["02CD08","02CD08 Alcaldía Iztacalco"]
["02CD09","02CD09 Alcaldía Iztapalapa"]
["02CD10","02CD10 Alcaldía La Magdalena Contreras"]
["02CD11","02CD11 Alcaldía Miguel Hidalgo"]
["02CD12","02CD12 Alcaldía Milpa Alta"]
["02CD13","02CD13 Alcaldía Tláhuac"]
["02CD14","02CD14 Alcaldía Tlalpan"]
["02CD15","02CD15 Alcaldía Venustiano Carranza"]
["02CD16","02CD16 Alcaldía Xochimilco"]
["02CDBP","02CDBP Comisión de Búsqueda de Personas de la Ciudad de México"]
["02OD04","02OD04 Autoridad del Centro Histórico"]
["02OD06","02OD06 Instancia Ejecutora del Sistema Integral de Derechos Humanos"]
["02PDAV","02PDAV Comisión de Atención a Victímas de la Ciudad de México"]
["02PDDP","02PDDP Mecanismo para la Protección Integral de Personas Defensoras de Derechos Humanos y Periodistas"]
["03C001","03C001 Secretaría de Desarrollo Urbano y Vivienda"]
["03PDIV","03PDIV Instituto de Vivienda"]
["04C001","04C001 Secretaría de Desarrollo Económico"]
["04P0DE","04P0DE Fondo de Desarrollo Económico"]
["04P0DS","04P0DS Fondo para el Desarrollo Social"]
["05C001","05C001 Secretaría de Turismo"]
["05P0PT","05P0PT Fondo Mixto de Promoción Turística"]
["06C001","06C001 Secretaría del Medio Ambiente"]
["06CD03","06CD03 Sistema de Aguas de la Ciudad de México"]
["06CD05","06CD05 Agencia de Atención Animal"]
["06P0FA","06P0FA Fondo Ambiental Público"]
["06PDPA","06PDPA Procuraduría Ambiental y del Ordenamiento Territorial"]
["07C001","07C001 Secretaría de Obras y Servicios"]
["07CD01","07CD01 Planta Productora de Mezclas Asfalticas"]
["07PDIF","07PDIF Instituto Local de la Infraestructura Física Educativa"]
["07PDIS","07PDIS Instituto para la Seguridad de las Construcciones"]
["08C001","08C001 Secretaría de Inclusión y Bienestar Social"]
["08PDCE","08PDCE Consejo de Evaluación del Desarrollo Social"]
["08PDCP","08PDCP Consejo para Prevenir y Eliminar la Discriminación"]
["08PDDF","08PDDF Sistema para el Desarrollo Integral de la Familia"]
["08PDII","08PDII Instituto de las Personas con Discapacidad"]
["08PDIJ","08PDIJ Instituto de la Juventud"]
["08PDPS","08PDPS Procuraduría Social"]
["09C001","09C001 Secretaría de Administración y Finanzas"]
["09PDLR","09PDLR Caja de Previsión para Trabajadores a Lista de Raya"]
["09PDPA","09PDPA Caja de Previsión de la Policía Auxiliar"]
["09PDPP","09PDPP Caja de Previsión de la Policía Preventiva"]
["09PECM","09PECM Corporación Mexicana de Impresión, S.A. de C.V."]
["09PECV","09PECV PROCDMX, S.A. de C.V."]
["09PESM","09PESM Servicios Metropolitanos, S.A. de C.V."]
["09PFCH","09PFCH Fideicomiso del Centro Histórico"]
["09PFRC","09PFRC Fideicomiso de Recuperación Crediticia"]
["10C001","10C001 Secretaría de Movilidad"]
["10CD01","10CD01 Órgano Regulador de Transporte"]
["10P0AC","10P0AC Fondo Público de Atención al Ciclista y al Peatón"]
["10P0TP","10P0TP Fideicomiso para el Fondo de Promoción para el Financiamiento del Transporte Público"]
["10PDMB","10PDMB Metrobús"]
["10PDME","10PDME Sistema de Transporte Colectivo Metro"]
["10PDRT","10PDRT Red de Transporte de Pasajeros (RTP)"]
["10PDTE","10PDTE Servicio de Transportes Eléctricos"]
["11C001","11C001 Secretaría de Seguridad Ciudadana"]
["11CD01","11CD01 Universidad de la Policía"]
["11CD02","11CD02 Policía Auxiliar"]
["11CD03","11CD03 Policía Bancaria e Industrial"]
["13C001","13C001 Secretaría de la Contraloría General"]
["13PDEA","13PDEA Escuela de Administración Pública"]
["13PDVA","13PDVA Instituto de Verificación Administrativa"]
["14P0PJ","14P0PJ Fideicomiso Público del Fondo de Apoyo a la Procuración de Justicia"]
["15C006","15C006 Tesorería"]
["16C000","16C000 Deuda Pública"]
["17L000","17L000 Congreso de la Ciudad de México"]
["18L000","18L000 Auditoría Superior de la Ciudad de México"]
["19J000","19J000 Tribunal Superior de Justicia"]
["20J000","20J000 Consejo de la Judicatura"]
["21A000","21A000 Tribunal de Justicia Administrativa"]
["22A000","22A000 Junta Local de Conciliación y Arbitraje"]
["23A000","23A000 Comisión de Derechos Humanos"]
["24A000","24A000 Instituto Electoral"]
["25C001","25C001 Consejería Jurídica y de Servicios Legales"]
["26C001","26C001 Secretaría de Salud"]
["26CD01","26CD01 Agencia de Protección Sanitaria"]
["26PDIA","26PDIA Instituto para la Atención y Prevención de las Adicciones"]
["26PDSP","26PDSP Servicios de Salud Pública"]
["27A000","27A000 Tribunal Electoral"]
["29A000","29A000 Universidad Autónoma de la Ciudad de México"]
["31C000","31C000 Secretaría de Cultura"]
["31PFMA","31PFMA Fideicomiso Museo de Arte Popular Mexicano"]
["31PFME","31PFME Fideicomiso Museo del Estanquillo"]
["31PFPC","31PFPC Fideicomiso de Promocion y Desarrollo del Cine Mexicano"]
["32A000","32A000 Instituto de Transparencia, Acceso a la Información Pública, Protección de Datos Personales y Rendición de Cuentas"]
["33C001","33C001 Secretaría de Trabajo y Fomento Al Empleo"]
["33PDIT","33PDIT Instituto de Capacitación para el Trabajo"]
["34C001","34C001 Secretaría de Gestión Integral de Riesgos y Protección Civil"]
["34PDHB","34PDHB Heroico Cuerpo de Bomberos"]
["35C001","35C001 Secretaría de Pueblos y Barrios Originarios y Comunidades Indígenas Residentes"]
["36C001","36C001 Secretaría de Educación, Ciencia, Tecnología e Innovación"]
["36CD01","36CD01 Universidad de la Salud"]
["36CDES","36CDES Instituto de Estudios Superiores de la Ciudad de México \"Rosario Castellanos\""]
["36PDID","36PDID Instituto del Deporte"]
["36PDIE","36PDIE Instituto de Educación Media Superior"]
["36PFEG","36PFEG Fideicomiso Educación Garantizada"]
["38C001","38C001 Secretaría de las Mujeres"]
["39PDSR","39PDSR Sistema Público de Radiodifusión de la Ciudad de México"]
["40A000","40A000 Fiscalía General de Justicia"]

{"sheet":"CAT_PPI","index":17,"n_rows":1656,"n_cols":6,"rows_kept":1656,"cut":false,"hidden":true,"merged":[]}
["N_UR","PY",null,null,"UR","CANTIDAD"]
["01CD03 Centro de Comando, Control, Cómputo, Comunicaciones y Contacto Ciudadano","A21NR0183",null,null,"01CD03 Centro de Comando, Control, Cómputo, Comunicaciones y Contacto Ciudadano",{"$f":"COUNTIF(A$1:A$1656,E2)","v":3}]
["01CD03 Centro de Comando, Control, Cómputo, Comunicaciones y Contacto Ciudadano","A21NR0184",null,null,"01CD06 Agencia Digital de Innovación Pública",{"$f":"COUNTIF(A$1:A$1656,E3)","v":4}]
["01CD03 Centro de Comando, Control, Cómputo, Comunicaciones y Contacto Ciudadano","A21NR0228",null,null,"02C001 Secretaría de Gobierno",3]
["01CD06 Agencia Digital de Innovación Pública","A21NR0146",null,null,"02CD01 Alcaldía Álvaro Obregón",275]
["01CD06 Agencia Digital de Innovación Pública","A21NR0147",null,null,"02CD02 Alcaldía Azcapotzalco",95]
["01CD06 Agencia Digital de Innovación Pública","A21NR0189",null,null,"02CD03 Alcaldía Benito Juárez",40]
["01CD06 Agencia Digital de Innovación Pública","A21NR0338",null,null,"02CD04 Alcaldía Coyoacán",68]
["02C001 Secretaría de Gobierno","A21NR0001",null,null,"02CD05 Alcaldía Cuajimalpa de Morelos",57]
["02C001 Secretaría de Gobierno","A21NR0264",null,null,"02CD06 Alcaldía Cuauhtémoc",10]
["02C001 Secretaría de Gobierno","O12ML0001",null,null,"02CD07 Alcaldía Gustavo A. Madero",18]
["02CD01 Alcaldía Álvaro Obregón","A21NR0002",null,null,"02CD08 Alcaldía Iztacalco",82]
["02CD01 Alcaldía Álvaro Obregón","A21NR0003",null,null,"02CD09 Alcaldía Iztapalapa",41]
["02CD01 Alcaldía Álvaro Obregón","A21NR0004",null,null,"02CD10 Alcaldía La Magdalena Contreras",68]
["02CD01 Alcaldía Álvaro Obregón","A21NR0005",null,null,"02CD11 Alcaldía Miguel Hidalgo",40]
["02CD01 Alcaldía Álvaro Obregón","A21NR0006",null,null,"02CD12 Alcaldía Milpa Alta",33]
["02CD01 Alcaldía Álvaro Obregón","A21NR0007",null,null,"02CD13 Alcaldía Tláhuac",18]
["02CD01 Alcaldía Álvaro Obregón","A21NR0008",null,null,"02CD14 Alcaldía Tlalpan",178]
["02CD01 Alcaldía Álvaro Obregón","A21NR0009",null,null,"02CD15 Alcaldía Venustiano Carranza",24]
["02CD01 Alcaldía Álvaro Obregón","A21NR0010",null,null,"02CD16 Alcaldía Xochimilco",157]
["02CD01 Alcaldía Álvaro Obregón","A21NR0011",null,null,"02CDBP Comisión de Búsqueda de Personas de la Ciudad de México",12]
["02CD01 Alcaldía Álvaro Obregón","A21NR0012",null,null,"02OD04 Autoridad del Centro Histórico",1]
["02CD01 Alcaldía Álvaro Obregón","A21NR0017",null,null,"02PDAV Comisión Ejecutiva de Atención a Victímas de la Ciudad de México",3]
["02CD01 Alcaldía Álvaro Obregón","A21NR0036",null,null,"03C001 Secretaría de Desarrollo Urbano y Vivienda",1]
["02CD01 Alcaldía Álvaro Obregón","A21NR0037",null,null,"03PDIV Instituto de Vivienda",3]
["02CD01 Alcaldía Álvaro Obregón","A21NR0053",null,null,"04C001 Secretaría de Desarrollo Económico",2]
["02CD01 Alcaldía Álvaro Obregón","A21NR0063",null,null,"04P0DS Fondo para el Desarrollo Social",2]
["02CD01 Alcaldía Álvaro Obregón","A21NR0072",null,null,"06C001 Secretaría del Medio Ambiente",8]
["02CD01 Alcaldía Álvaro Obregón","A21NR0220",null,null,"06CD03 Sistema de Aguas de la Ciudad de México",94]
["02CD01 Alcaldía Álvaro Obregón","A21NR0254",null,null,"06P0FA Fondo Ambiental Público",2]
["02CD01 Alcaldía Álvaro Obregón","A21NR0273",null,null,"06PDPA Procuraduría Ambiental y del Ordenamiento Territorial",1]
["02CD01 Alcaldía Álvaro Obregón","A21NR0281",null,null,"07C001 Secretaría de Obras y Servicios",149]
["02CD01 Alcaldía Álvaro Obregón","A21NR0301",null,null,"07CD01 Planta Productora de Mezclas Asfalticas",1]
["02CD01 Alcaldía Álvaro Obregón","A21NR0386",null,null,"07PDIF Instituto Local de la Infraestructura Física Educativa",26]
["02CD01 Alcaldía Álvaro Obregón","A21NR0387",null,null,"07PDIS Instituto para la Seguridad de las Construcciones",1]
["02CD01 Alcaldía Álvaro Obregón","A21NR0388",null,null,"08C001 Secretaría de Inclusión y Bienestar Social",1]
["02CD01 Alcaldía Álvaro Obregón","A21NR0462",null,null,"08PDCE Consejo de Evaluación del Desarrollo Social",4]
["02CD01 Alcaldía Álvaro Obregón","A21NR0515",null,null,"08PDCP Consejo para Prevenir y Eliminar la Discriminación",2]
["02CD01 Alcaldía Álvaro Obregón","A21NR0516",null,null,"09C001 Secretaría de Administración y Finanzas",1]
["02CD01 Alcaldía Álvaro Obregón","A21NR0517",null,null,"09PDLR Caja de Previsión para Trabajadores a Lista de Raya",2]
["02CD01 Alcaldía Álvaro Obregón","A21NR0518",null,null,"09PECM Corporación Mexicana de Impresión, S.A. de C.V.",3]
["02CD01 Alcaldía Álvaro Obregón","A21NR0523",null,null,"09PESM Servicios Metropolitanos, S.A. de C.V.",2]
["02CD01 Alcaldía Álvaro Obregón","O21NR0001",null,null,"09PFCH Fideicomiso del Centro Histórico",6]
["02CD01 Alcaldía Álvaro Obregón","O21NR0002",null,null,"09PFRC Fideicomiso de Recuperación Crediticia",2]
["02CD01 Alcaldía Álvaro Obregón","O21NR0003",null,null,"10C001 Secretaría de Movilidad",6]
["02CD01 Alcaldía Álvaro Obregón","O21NR0004",null,null,"10CD01 Órgano Regulador de Transporte",2]
["02CD01 Alcaldía Álvaro Obregón","O21NR0005",null,null,"10P0AC Fondo Público de Atención al Ciclista y al Peatón",2]
["02CD01 Alcaldía Álvaro Obregón","O21NR0006",null,null,"10P0TP Fideicomiso para el Fondo de Promoción para el Financiamiento del Transporte Público",1]
["02CD01 Alcaldía Álvaro Obregón","O21NR0007",null,null,"10PDMB Metrobús",2]
["02CD01 Alcaldía Álvaro Obregón","O21NR0008",null,null,"10PDME Sistema de Transporte Colectivo Metro",13]
["02CD01 Alcaldía Álvaro Obregón","O21NR0009",null,null,"10PDTE Servicio de Transportes Eléctricos",5]
["02CD01 Alcaldía Álvaro Obregón","O21NR0010",null,null,"11C001 Secretaría de Seguridad Ciudadana",7]
["02CD01 Alcaldía Álvaro Obregón","O21NR0011",null,null,"11CD01 Universidad de la Policía",2]
["02CD01 Alcaldía Álvaro Obregón","O21NR0012",null,null,"11CD03 Policía Bancaria e Industrial",1]
["02CD01 Alcaldía Álvaro Obregón","O21NR0013",null,null,"13C001 Secretaría de la Contraloría General",11]
["02CD01 Alcaldía Álvaro Obregón","O21NR0014",null,null,"25C001 Consejería Jurídica y de Servicios Legales",2]
["02CD01 Alcaldía Álvaro Obregón","O21NR0015",null,null,"26C001 Secretaría de Salud",2]
["02CD01 Alcaldía Álvaro Obregón","O21NR0016",null,null,"26CD01 Agencia de Protección Sanitaria",1]
["02CD01 Alcaldía Álvaro Obregón","O21NR0017",null,null,"26PDSP Servicios de Salud Pública",12]
["02CD01 Alcaldía Álvaro Obregón","O21NR0018",null,null,"31C000 Secretaría de Cultura",2]
["02CD01 Alcaldía Álvaro Obregón","O21NR0019",null,null,"33C001 Secretaría de Trabajo y Fomento Al Empleo",2]
["02CD01 Alcaldía Álvaro Obregón","O21NR0328",null,null,"34C001 Secretaría de Gestión Integral de Riesgos y Protección Civil",1]
["02CD01 Alcaldía Álvaro Obregón","O21NR0329",null,null,"34PDHB Heroico Cuerpo de Bomberos",3]
["02CD01 Alcaldía Álvaro Obregón","O21NR0335",null,null,"36C001 Secretaría de Educación, Ciencia, Tecnología e Innovación",7]
["02CD01 Alcaldía Álvaro Obregón","O21NR0336",null,null,"36CD01 Universidad de la Salud",6]
["02CD01 Alcaldía Álvaro Obregón","O21NR0337",null,null,"36CDES Instituto de Estudios Superiores de la Ciudad de México \"Rosario Castellanos\"",13]
["02CD01 Alcaldía Álvaro Obregón","O21NR0338",null,null,"36PDID Instituto del Deporte",{"$f":"COUNTIF(A$1:A$1656,E67)","v":3}]
["02CD01 Alcaldía Álvaro Obregón","O21NR0339",null,null,"36PFEG Fideicomiso Educación Garantizada",1]
["02CD01 Alcaldía Álvaro Obregón","O21NR0340",null,null,"38C001 Secretaría de las Mujeres",5]
["02CD01 Alcaldía Álvaro Obregón","O21NR0341",null,null,"38C001 Secretaría de las Mujeres",5]
["02CD01 Alcaldía Álvaro Obregón","O21NR0342"]
["02CD01 Alcaldía Álvaro Obregón","O21NR0343"]
["02CD01 Alcaldía Álvaro Obregón","O21NR0344"]
["02CD01 Alcaldía Álvaro Obregón","O21NR0345"]
["02CD01 Alcaldía Álvaro Obregón","O21NR0346"]
["02CD01 Alcaldía Álvaro Obregón","O21NR0347"]
["02CD01 Alcaldía Álvaro Obregón","O21NR0348"]
["02CD01 Alcaldía Álvaro Obregón","O21NR0349"]
["02CD01 Alcaldía Álvaro Obregón","O21NR0350"]
["02CD01 Alcaldía Álvaro Obregón","O21NR0351"]
["02CD01 Alcaldía Álvaro Obregón","O21NR0352"]
["02CD01 Alcaldía Álvaro Obregón","O21NR0353"]
["02CD01 Alcaldía Álvaro Obregón","O21NR0354"]
["02CD01 Alcaldía Álvaro Obregón","O21NR0355"]
["02CD01 Alcaldía Álvaro Obregón","O21NR0356"]
["02CD01 Alcaldía Álvaro Obregón","O21NR0357"]
["02CD01 Alcaldía Álvaro Obregón","O21NR0358"]
["02CD01 Alcaldía Álvaro Obregón","O21NR0359"]
["02CD01 Alcaldía Álvaro Obregón","O21NR0360"]
["02CD01 Alcaldía Álvaro Obregón","O21NR0361"]
["02CD01 Alcaldía Álvaro Obregón","O21NR0362"]
["02CD01 Alcaldía Álvaro Obregón","O21NR0363"]
["02CD01 Alcaldía Álvaro Obregón","O21NR0364"]
["02CD01 Alcaldía Álvaro Obregón","O21NR0365"]
["02CD01 Alcaldía Álvaro Obregón","O21NR0366"]
["02CD01 Alcaldía Álvaro Obregón","O21NR0367"]
["02CD01 Alcaldía Álvaro Obregón","O21NR0368"]
["02CD01 Alcaldía Álvaro Obregón","O21NR0369"]
["02CD01 Alcaldía Álvaro Obregón","O21NR0370"]
["02CD01 Alcaldía Álvaro Obregón","O21NR0371"]
["02CD01 Alcaldía Álvaro Obregón","O21NR0372"]
["02CD01 Alcaldía Álvaro Obregón","O21NR0373"]
["02CD01 Alcaldía Álvaro Obregón","O21NR0374"]
["02CD01 Alcaldía Álvaro Obregón","O21NR0375"]
["02CD01 Alcaldía Álvaro Obregón","O21NR0376"]
["02CD01 Alcaldía Álvaro Obregón","O21NR0377"]
["02CD01 Alcaldía Álvaro Obregón","O21NR0378"]
["02CD01 Alcaldía Álvaro Obregón","O21NR0379"]
["02CD01 Alcaldía Álvaro Obregón","O21NR0380"]
["02CD01 Alcaldía Álvaro Obregón","O21NR0381"]
["02CD01 Alcaldía Álvaro Obregón","O21NR0382"]
["02CD01 Alcaldía Álvaro Obregón","O21NR0383"]
["02CD01 Alcaldía Álvaro Obregón","O21NR0384"]
["02CD01 Alcaldía Álvaro Obregón","O21NR0385"]
["02CD01 Alcaldía Álvaro Obregón","O21NR0386"]
["02CD01 Alcaldía Álvaro Obregón","O21NR0387"]
["02CD01 Alcaldía Álvaro Obregón","O21NR0388"]
["02CD01 Alcaldía Álvaro Obregón","O21NR0389"]
["02CD01 Alcaldía Álvaro Obregón","O21NR0390"]
["02CD01 Alcaldía Álvaro Obregón","O21NR0391"]
["02CD01 Alcaldía Álvaro Obregón","O21NR0392"]
["02CD01 Alcaldía Álvaro Obregón","O21NR0393"]
["02CD01 Alcaldía Álvaro Obregón","O21NR0394"]
["02CD01 Alcaldía Álvaro Obregón","O21NR0395"]
["02CD01 Alcaldía Álvaro Obregón","O21NR0396"]
["02CD01 Alcaldía Álvaro Obregón","O21NR0397"]
["02CD01 Alcaldía Álvaro Obregón","O21NR0398"]
["02CD01 Alcaldía Álvaro Obregón","O21NR0399"]
["02CD01 Alcaldía Álvaro Obregón","O21NR0400"]
["02CD01 Alcaldía Álvaro Obregón","O21NR0401"]
["02CD01 Alcaldía Álvaro Obregón","O21NR0402"]
["02CD01 Alcaldía Álvaro Obregón","O21NR0403"]
["02CD01 Alcaldía Álvaro Obregón","O21NR0404"]
["02CD01 Alcaldía Álvaro Obregón","O21NR0405"]
["02CD01 Alcaldía Álvaro Obregón","O21NR0406"]
["02CD01 Alcaldía Álvaro Obregón","O21NR0407"]
["02CD01 Alcaldía Álvaro Obregón","O21NR0408"]
["02CD01 Alcaldía Álvaro Obregón","O21NR0409"]
["02CD01 Alcaldía Álvaro Obregón","O21NR0410"]
["02CD01 Alcaldía Álvaro Obregón","O21NR0411"]
["02CD01 Alcaldía Álvaro Obregón","O21NR0412"]
["02CD01 Alcaldía Álvaro Obregón","O21NR0413"]
["02CD01 Alcaldía Álvaro Obregón","O21NR0414"]
["02CD01 Alcaldía Álvaro Obregón","O21NR0415"]
["02CD01 Alcaldía Álvaro Obregón","O21NR0416"]
["02CD01 Alcaldía Álvaro Obregón","O21NR0417"]
["02CD01 Alcaldía Álvaro Obregón","O21NR0418"]
["02CD01 Alcaldía Álvaro Obregón","O21NR0419"]
["02CD01 Alcaldía Álvaro Obregón","O21NR0420"]
["02CD01 Alcaldía Álvaro Obregón","O21NR0421"]
["02CD01 Alcaldía Álvaro Obregón","O21NR0422"]
["02CD01 Alcaldía Álvaro Obregón","O21NR0423"]
["02CD01 Alcaldía Álvaro Obregón","O21NR0424"]
["02CD01 Alcaldía Álvaro Obregón","O21NR0425"]
["02CD01 Alcaldía Álvaro Obregón","O21NR0426"]
["02CD01 Alcaldía Álvaro Obregón","O21NR0427"]
["02CD01 Alcaldía Álvaro Obregón","O21NR0428"]
["02CD01 Alcaldía Álvaro Obregón","O21NR0429"]
["02CD01 Alcaldía Álvaro Obregón","O21NR0430"]
["02CD01 Alcaldía Álvaro Obregón","O21NR0431"]
["02CD01 Alcaldía Álvaro Obregón","O21NR0432"]
["02CD01 Alcaldía Álvaro Obregón","O21NR0433"]
["02CD01 Alcaldía Álvaro Obregón","O21NR0434"]
["02CD01 Alcaldía Álvaro Obregón","O21NR0435"]
["02CD01 Alcaldía Álvaro Obregón","O21NR0436"]
["02CD01 Alcaldía Álvaro Obregón","O21NR0437"]
["02CD01 Alcaldía Álvaro Obregón","O21NR0438"]
["02CD01 Alcaldía Álvaro Obregón","O21NR0439"]
["02CD01 Alcaldía Álvaro Obregón","O21NR0440"]
["02CD01 Alcaldía Álvaro Obregón","O21NR0441"]
["02CD01 Alcaldía Álvaro Obregón","O21NR0442"]
["02CD01 Alcaldía Álvaro Obregón","O21NR0443"]
["02CD01 Alcaldía Álvaro Obregón","O21NR0444"]
["02CD01 Alcaldía Álvaro Obregón","O21NR0445"]
["02CD01 Alcaldía Álvaro Obregón","O21NR0446"]
["02CD01 Alcaldía Álvaro Obregón","O21NR0447"]
["02CD01 Alcaldía Álvaro Obregón","O21NR0448"]
["02CD01 Alcaldía Álvaro Obregón","O21NR0449"]
["02CD01 Alcaldía Álvaro Obregón","O21NR0450"]
["02CD01 Alcaldía Álvaro Obregón","O21NR0451"]
["02CD01 Alcaldía Álvaro Obregón","O21NR0452"]
["02CD01 Alcaldía Álvaro Obregón","O21NR0453"]
["02CD01 Alcaldía Álvaro Obregón","O21NR0454"]
["02CD01 Alcaldía Álvaro Obregón","O21NR0455"]
["02CD01 Alcaldía Álvaro Obregón","O21NR0456"]
["02CD01 Alcaldía Álvaro Obregón","O21NR0457"]
["02CD01 Alcaldía Álvaro Obregón","O21NR0458"]
["02CD01 Alcaldía Álvaro Obregón","O21NR0459"]
["02CD01 Alcaldía Álvaro Obregón","O21NR0460"]
["02CD01 Alcaldía Álvaro Obregón","O21NR0461"]
["02CD01 Alcaldía Álvaro Obregón","O21NR0462"]
["02CD01 Alcaldía Álvaro Obregón","O21NR0463"]
["02CD01 Alcaldía Álvaro Obregón","O21NR0464"]
["02CD01 Alcaldía Álvaro Obregón","O21NR0465"]
["02CD01 Alcaldía Álvaro Obregón","O21NR0466"]
["02CD01 Alcaldía Álvaro Obregón","O21NR0467"]
["02CD01 Alcaldía Álvaro Obregón","O21NR0468"]
["02CD01 Alcaldía Álvaro Obregón","O21NR0469"]
["02CD01 Alcaldía Álvaro Obregón","O21NR0470"]
["02CD01 Alcaldía Álvaro Obregón","O21NR0471"]
["02CD01 Alcaldía Álvaro Obregón","O21NR0472"]
["02CD01 Alcaldía Álvaro Obregón","O21NR0473"]
["02CD01 Alcaldía Álvaro Obregón","O21NR0474"]
["02CD01 Alcaldía Álvaro Obregón","O21NR0475"]
["02CD01 Alcaldía Álvaro Obregón","O21NR0476"]
["02CD01 Alcaldía Álvaro Obregón","O21NR0477"]
["02CD01 Alcaldía Álvaro Obregón","O21NR0478"]
["02CD01 Alcaldía Álvaro Obregón","O21NR0479"]
["02CD01 Alcaldía Álvaro Obregón","O21NR0480"]
["02CD01 Alcaldía Álvaro Obregón","O21NR0481"]
["02CD01 Alcaldía Álvaro Obregón","O21NR0482"]
["02CD01 Alcaldía Álvaro Obregón","O21NR0483"]
["02CD01 Alcaldía Álvaro Obregón","O21NR0484"]
["02CD01 Alcaldía Álvaro Obregón","O21NR0485"]
["02CD01 Alcaldía Álvaro Obregón","O21NR0486"]
["02CD01 Alcaldía Álvaro Obregón","O21NR0487"]
["02CD01 Alcaldía Álvaro Obregón","O21NR0905"]
["02CD01 Alcaldía Álvaro Obregón","O21NR0906"]
["02CD01 Alcaldía Álvaro Obregón","O21NR0907"]
["02CD01 Alcaldía Álvaro Obregón","O21NR0930"]
["02CD01 Alcaldía Álvaro Obregón","O21NR0998"]
["02CD01 Alcaldía Álvaro Obregón","O21NR0999"]
["02CD01 Alcaldía Álvaro Obregón","O21NR1000"]
["02CD01 Alcaldía Álvaro Obregón","O21NR1001"]
["02CD01 Alcaldía Álvaro Obregón","O21NR1002"]
["02CD01 Alcaldía Álvaro Obregón","O21NR1003"]
["02CD01 Alcaldía Álvaro Obregón","O21NR1004"]
["02CD01 Alcaldía Álvaro Obregón","O21NR1005"]
["02CD01 Alcaldía Álvaro Obregón","O21NR1006"]
["02CD01 Alcaldía Álvaro Obregón","O21NR1007"]
["02CD01 Alcaldía Álvaro Obregón","O21NR1008"]
["02CD01 Alcaldía Álvaro Obregón","O21NR1009"]
["02CD01 Alcaldía Álvaro Obregón","O21NR1010"]
["02CD01 Alcaldía Álvaro Obregón","O21NR1012"]
["02CD01 Alcaldía Álvaro Obregón","O21NR1013"]
["02CD01 Alcaldía Álvaro Obregón","O21NR1014"]
["02CD01 Alcaldía Álvaro Obregón","O21NR1015"]
["02CD01 Alcaldía Álvaro Obregón","O21NR1016"]
["02CD01 Alcaldía Álvaro Obregón","O21NR1017"]
["02CD01 Alcaldía Álvaro Obregón","O21NR1018"]
["02CD01 Alcaldía Álvaro Obregón","O21NR1019"]
["02CD01 Alcaldía Álvaro Obregón","O21NR1020"]
["02CD01 Alcaldía Álvaro Obregón","O21NR1023"]
["02CD01 Alcaldía Álvaro Obregón","O21NR1024"]
["02CD01 Alcaldía Álvaro Obregón","O21NR1025"]
["02CD01 Alcaldía Álvaro Obregón","O21NR1026"]
["02CD01 Alcaldía Álvaro Obregón","O21NR1027"]
["02CD01 Alcaldía Álvaro Obregón","O21NR1029"]
["02CD01 Alcaldía Álvaro Obregón","O21NR1030"]
["02CD01 Alcaldía Álvaro Obregón","O21NR1031"]
["02CD01 Alcaldía Álvaro Obregón","O21NR1032"]
["02CD01 Alcaldía Álvaro Obregón","O21NR1033"]
["02CD01 Alcaldía Álvaro Obregón","O21NR1035"]
["02CD01 Alcaldía Álvaro Obregón","O21NR1036"]
["02CD01 Alcaldía Álvaro Obregón","O21NR1037"]
["02CD01 Alcaldía Álvaro Obregón","O21NR1039"]
["02CD01 Alcaldía Álvaro Obregón","O21NR1040"]
["02CD01 Alcaldía Álvaro Obregón","O21NR1041"]
["02CD01 Alcaldía Álvaro Obregón","O21NR1042"]
["02CD01 Alcaldía Álvaro Obregón","O21NR1043"]
["02CD01 Alcaldía Álvaro Obregón","O21NR1044"]
["02CD01 Alcaldía Álvaro Obregón","O21NR1045"]
["02CD01 Alcaldía Álvaro Obregón","O21NR1046"]
["02CD01 Alcaldía Álvaro Obregón","O21NR1047"]
["02CD01 Alcaldía Álvaro Obregón","O21NR1049"]
["02CD01 Alcaldía Álvaro Obregón","O21NR1050"]
["02CD01 Alcaldía Álvaro Obregón","O21NR1052"]
["02CD01 Alcaldía Álvaro Obregón","O21NR1055"]
["02CD01 Alcaldía Álvaro Obregón","O21NR1056"]
["02CD01 Alcaldía Álvaro Obregón","O21NR1057"]
["02CD01 Alcaldía Álvaro Obregón","O21NR1059"]
["02CD01 Alcaldía Álvaro Obregón","O21NR1061"]
["02CD01 Alcaldía Álvaro Obregón","O21NR1062"]
["02CD01 Alcaldía Álvaro Obregón","O21NR1063"]
["02CD01 Alcaldía Álvaro Obregón","O21NR1064"]
["02CD01 Alcaldía Álvaro Obregón","O21NR1066"]
["02CD01 Alcaldía Álvaro Obregón","O21NR1067"]
["02CD01 Alcaldía Álvaro Obregón","O21NR1068"]
["02CD01 Alcaldía Álvaro Obregón","O21NR1141"]
["02CD01 Alcaldía Álvaro Obregón","O21NR1142"]
["02CD01 Alcaldía Álvaro Obregón","O21NR1143"]
["02CD01 Alcaldía Álvaro Obregón","O21NR1144"]
["02CD01 Alcaldía Álvaro Obregón","O21NR1145"]
["02CD01 Alcaldía Álvaro Obregón","O21NR1356"]
["02CD01 Alcaldía Álvaro Obregón","O21NR1357"]
["02CD01 Alcaldía Álvaro Obregón","O21NR1358"]
["02CD02 Alcaldía Azcapotzalco","A21NR0232"]
["02CD02 Alcaldía Azcapotzalco","A21NR0241"]
["02CD02 Alcaldía Azcapotzalco","A21NR0335"]
["02CD02 Alcaldía Azcapotzalco","A21NR0377"]
["02CD02 Alcaldía Azcapotzalco","A21NR0432"]
["02CD02 Alcaldía Azcapotzalco","A21NR0504"]
["02CD02 Alcaldía Azcapotzalco","A21NR0505"]
["02CD02 Alcaldía Azcapotzalco","O21NR0047"]
["02CD02 Alcaldía Azcapotzalco","O21NR0065"]
["02CD02 Alcaldía Azcapotzalco","O21NR0080"]
["02CD02 Alcaldía Azcapotzalco","O21NR0095"]
["02CD02 Alcaldía Azcapotzalco","O21NR0106"]
["02CD02 Alcaldía Azcapotzalco","O21NR0116"]
["02CD02 Alcaldía Azcapotzalco","O21NR0126"]
["02CD02 Alcaldía Azcapotzalco","O21NR0136"]
["02CD02 Alcaldía Azcapotzalco","O21NR0644"]
["02CD02 Alcaldía Azcapotzalco","O21NR0645"]
["02CD02 Alcaldía Azcapotzalco","O21NR0646"]
["02CD02 Alcaldía Azcapotzalco","O21NR0647"]
["02CD02 Alcaldía Azcapotzalco","O21NR0648"]
["02CD02 Alcaldía Azcapotzalco","O21NR0649"]
["02CD02 Alcaldía Azcapotzalco","O21NR0650"]
["02CD02 Alcaldía Azcapotzalco","O21NR0651"]
["02CD02 Alcaldía Azcapotzalco","O21NR0652"]
["02CD02 Alcaldía Azcapotzalco","O21NR0653"]
["02CD02 Alcaldía Azcapotzalco","O21NR0654"]
["02CD02 Alcaldía Azcapotzalco","O21NR0655"]
["02CD02 Alcaldía Azcapotzalco","O21NR0656"]
["02CD02 Alcaldía Azcapotzalco","O21NR0657"]
["02CD02 Alcaldía Azcapotzalco","O21NR0658"]
["02CD02 Alcaldía Azcapotzalco","O21NR0659"]
["02CD02 Alcaldía Azcapotzalco","O21NR0660"]
["02CD02 Alcaldía Azcapotzalco","O21NR0662"]
["02CD02 Alcaldía Azcapotzalco","O21NR0663"]
["02CD02 Alcaldía Azcapotzalco","O21NR0664"]
["02CD02 Alcaldía Azcapotzalco","O21NR0665"]
["02CD02 Alcaldía Azcapotzalco","O21NR0666"]
["02CD02 Alcaldía Azcapotzalco","O21NR0667"]
["02CD02 Alcaldía Azcapotzalco","O21NR0668"]
["02CD02 Alcaldía Azcapotzalco","O21NR0669"]
["02CD02 Alcaldía Azcapotzalco","O21NR0670"]
["02CD02 Alcaldía Azcapotzalco","O21NR0671"]
["02CD02 Alcaldía Azcapotzalco","O21NR0672"]
["02CD02 Alcaldía Azcapotzalco","O21NR0673"]
["02CD02 Alcaldía Azcapotzalco","O21NR0674"]
["02CD02 Alcaldía Azcapotzalco","O21NR0675"]
["02CD02 Alcaldía Azcapotzalco","O21NR0676"]
["02CD02 Alcaldía Azcapotzalco","O21NR0677"]
["02CD02 Alcaldía Azcapotzalco","O21NR0678"]
["02CD02 Alcaldía Azcapotzalco","O21NR0679"]
["02CD02 Alcaldía Azcapotzalco","O21NR0680"]
["02CD02 Alcaldía Azcapotzalco","O21NR0681"]
["02CD02 Alcaldía Azcapotzalco","O21NR0682"]
["02CD02 Alcaldía Azcapotzalco","O21NR0683"]
["02CD02 Alcaldía Azcapotzalco","O21NR0684"]
["02CD02 Alcaldía Azcapotzalco","O21NR0685"]
["02CD02 Alcaldía Azcapotzalco","O21NR0686"]
["02CD02 Alcaldía Azcapotzalco","O21NR0687"]
["02CD02 Alcaldía Azcapotzalco","O21NR0688"]
["02CD02 Alcaldía Azcapotzalco","O21NR0689"]
["02CD02 Alcaldía Azcapotzalco","O21NR0690"]
["02CD02 Alcaldía Azcapotzalco","O21NR0691"]
["02CD02 Alcaldía Azcapotzalco","O21NR0692"]
["02CD02 Alcaldía Azcapotzalco","O21NR0693"]
["02CD02 Alcaldía Azcapotzalco","O21NR0694"]
["02CD02 Alcaldía Azcapotzalco","O21NR0695"]
["02CD02 Alcaldía Azcapotzalco","O21NR0696"]
["02CD02 Alcaldía Azcapotzalco","O21NR0697"]
["02CD02 Alcaldía Azcapotzalco","O21NR0698"]
["02CD02 Alcaldía Azcapotzalco","O21NR0699"]
["02CD02 Alcaldía Azcapotzalco","O21NR0700"]
["02CD02 Alcaldía Azcapotzalco","O21NR0701"]
["02CD02 Alcaldía Azcapotzalco","O21NR0702"]
["02CD02 Alcaldía Azcapotzalco","O21NR0703"]
["02CD02 Alcaldía Azcapotzalco","O21NR0704"]
["02CD02 Alcaldía Azcapotzalco","O21NR0705"]
["02CD02 Alcaldía Azcapotzalco","O21NR0706"]
["02CD02 Alcaldía Azcapotzalco","O21NR0707"]
["02CD02 Alcaldía Azcapotzalco","O21NR0708"]
["02CD02 Alcaldía Azcapotzalco","O21NR0709"]
["02CD02 Alcaldía Azcapotzalco","O21NR0710"]
["02CD02 Alcaldía Azcapotzalco","O21NR0711"]
["02CD02 Alcaldía Azcapotzalco","O21NR0712"]
["02CD02 Alcaldía Azcapotzalco","O21NR0713"]
["02CD02 Alcaldía Azcapotzalco","O21NR0714"]
["02CD02 Alcaldía Azcapotzalco","O21NR0715"]
["02CD02 Alcaldía Azcapotzalco","O21NR0716"]
["02CD02 Alcaldía Azcapotzalco","O21NR0717"]
["02CD02 Alcaldía Azcapotzalco","O21NR0718"]
["02CD02 Alcaldía Azcapotzalco","O21NR0719"]
["02CD02 Alcaldía Azcapotzalco","O21NR0720"]
["02CD02 Alcaldía Azcapotzalco","O21NR0931"]
["02CD02 Alcaldía Azcapotzalco","O21NR0933"]
["02CD02 Alcaldía Azcapotzalco","O21NR0934"]
["02CD02 Alcaldía Azcapotzalco","O21NR0935"]
["02CD03 Alcaldía Benito Juárez","A21NR0022"]
["02CD03 Alcaldía Benito Juárez","A21NR0038"]
["02CD03 Alcaldía Benito Juárez","A21NR0054"]
["02CD03 Alcaldía Benito Juárez","A21NR0180"]
["02CD03 Alcaldía Benito Juárez","A21NR0448"]
["02CD03 Alcaldía Benito Juárez","A21NR0527"]
["02CD03 Alcaldía Benito Juárez","A21NR0529"]
["02CD03 Alcaldía Benito Juárez","A21NR0532"]
["02CD03 Alcaldía Benito Juárez","O21NR0048"]
["02CD03 Alcaldía Benito Juárez","O21NR0066"]
["02CD03 Alcaldía Benito Juárez","O21NR0081"]
["02CD03 Alcaldía Benito Juárez","O21NR0096"]
["02CD03 Alcaldía Benito Juárez","O21NR0107"]
["02CD03 Alcaldía Benito Juárez","O21NR0117"]
["02CD03 Alcaldía Benito Juárez","O21NR0127"]
["02CD03 Alcaldía Benito Juárez","O21NR0137"]
["02CD03 Alcaldía Benito Juárez","O21NR0146"]
["02CD03 Alcaldía Benito Juárez","O21NR0155"]
["02CD03 Alcaldía Benito Juárez","O21NR0164"]
["02CD03 Alcaldía Benito Juárez","O21NR0267"]
["02CD03 Alcaldía Benito Juárez","O21NR0269"]
["02CD03 Alcaldía Benito Juárez","O21NR0270"]
["02CD03 Alcaldía Benito Juárez","O21NR0317"]
["02CD03 Alcaldía Benito Juárez","O21NR0509"]
["02CD03 Alcaldía Benito Juárez","O21NR0510"]
["02CD03 Alcaldía Benito Juárez","O21NR0515"]
["02CD03 Alcaldía Benito Juárez","O21NR0516"]
["02CD03 Alcaldía Benito Juárez","O21NR0972"]
["02CD03 Alcaldía Benito Juárez","O21NR0973"]
["02CD03 Alcaldía Benito Juárez","O21NR0974"]
["02CD03 Alcaldía Benito Juárez","O21NR0975"]
["02CD03 Alcaldía Benito Juárez","O21NR0976"]
["02CD03 Alcaldía Benito Juárez","O21NR0978"]
["02CD03 Alcaldía Benito Juárez","O21NR0979"]
["02CD03 Alcaldía Benito Juárez","O21NR0980"]
["02CD03 Alcaldía Benito Juárez","O21NR0981"]
["02CD03 Alcaldía Benito Juárez","O21NR0983"]
["02CD03 Alcaldía Benito Juárez","O21NR0984"]
["02CD03 Alcaldía Benito Juárez","O21NR0985"]
["02CD03 Alcaldía Benito Juárez","O21NR0986"]
["02CD04 Alcaldía Coyoacán","A21NR0013"]
["02CD04 Alcaldía Coyoacán","A21NR0014"]
["02CD04 Alcaldía Coyoacán","A21NR0015"]
["02CD04 Alcaldía Coyoacán","A21NR0016"]
["02CD04 Alcaldía Coyoacán","A21NR0018"]
["02CD04 Alcaldía Coyoacán","A21NR0019"]
["02CD04 Alcaldía Coyoacán","A21NR0020"]
["02CD04 Alcaldía Coyoacán","A21NR0023"]
["02CD04 Alcaldía Coyoacán","A21NR0039"]
["02CD04 Alcaldía Coyoacán","A21NR0055"]
["02CD04 Alcaldía Coyoacán","A21NR0064"]
["02CD04 Alcaldía Coyoacán","A21NR0073"]
["02CD04 Alcaldía Coyoacán","A21NR0080"]
["02CD04 Alcaldía Coyoacán","A21NR0081"]
["02CD04 Alcaldía Coyoacán","A21NR0088"]
["02CD04 Alcaldía Coyoacán","A21NR0089"]
["02CD04 Alcaldía Coyoacán","A21NR0098"]
["02CD04 Alcaldía Coyoacán","A21NR0099"]
["02CD04 Alcaldía Coyoacán","A21NR0100"]
["02CD04 Alcaldía Coyoacán","A21NR0111"]
["02CD04 Alcaldía Coyoacán","A21NR0194"]
["02CD04 Alcaldía Coyoacán","A21NR0195"]
["02CD04 Alcaldía Coyoacán","A21NR0196"]
["02CD04 Alcaldía Coyoacán","A21NR0197"]
["02CD04 Alcaldía Coyoacán","A21NR0287"]
["02CD04 Alcaldía Coyoacán","A21NR0319"]
["02CD04 Alcaldía Coyoacán","A21NR0327"]
["02CD04 Alcaldía Coyoacán","A21NR0328"]
["02CD04 Alcaldía Coyoacán","A21NR0336"]
["02CD04 Alcaldía Coyoacán","A21NR0349"]
["02CD04 Alcaldía Coyoacán","A21NR0393"]
["02CD04 Alcaldía Coyoacán","A21NR0433"]
["02CD04 Alcaldía Coyoacán","A21NR0435"]
["02CD04 Alcaldía Coyoacán","A21NR0437"]
["02CD04 Alcaldía Coyoacán","A21NR0438"]
["02CD04 Alcaldía Coyoacán","A21NR0451"]
["02CD04 Alcaldía Coyoacán","A21NR0454"]
["02CD04 Alcaldía Coyoacán","A21NR0455"]
["02CD04 Alcaldía Coyoacán","A21NR0464"]
["02CD04 Alcaldía Coyoacán","A21NR0475"]
["02CD04 Alcaldía Coyoacán","A21NR0539"]
["02CD04 Alcaldía Coyoacán","A21NR0540"]
["02CD04 Alcaldía Coyoacán","O21NR0049"]
["02CD04 Alcaldía Coyoacán","O21NR0067"]
["02CD04 Alcaldía Coyoacán","O21NR0082"]
["02CD04 Alcaldía Coyoacán","O21NR0097"]
["02CD04 Alcaldía Coyoacán","O21NR0108"]
["02CD04 Alcaldía Coyoacán","O21NR0118"]
["02CD04 Alcaldía Coyoacán","O21NR0128"]
["02CD04 Alcaldía Coyoacán","O21NR0138"]
["02CD04 Alcaldía Coyoacán","O21NR0147"]
["02CD04 Alcaldía Coyoacán","O21NR0156"]
["02CD04 Alcaldía Coyoacán","O21NR0165"]
["02CD04 Alcaldía Coyoacán","O21NR0570"]
["02CD04 Alcaldía Coyoacán","O21NR1310"]
["02CD04 Alcaldía Coyoacán","O21NR1311"]
["02CD04 Alcaldía Coyoacán","O21NR1312"]
["02CD04 Alcaldía Coyoacán","O21NR1313"]
["02CD04 Alcaldía Coyoacán","O21NR1314"]
["02CD04 Alcaldía Coyoacán","O21NR1334"]
["02CD04 Alcaldía Coyoacán","O21NR1336"]
["02CD04 Alcaldía Coyoacán","O21NR1337"]
["02CD04 Alcaldía Coyoacán","O21NR1338"]
["02CD04 Alcaldía Coyoacán","O21NR1339"]
["02CD04 Alcaldía Coyoacán","O21NR1381"]
["02CD04 Alcaldía Coyoacán","O21NR1404"]
["02CD04 Alcaldía Coyoacán","O21NR1405"]
["02CD04 Alcaldía Coyoacán","O21NR1406"]
["02CD05 Alcaldía Cuajimalpa de Morelos","A21NR0024"]
["02CD05 Alcaldía Cuajimalpa de Morelos","A21NR0040"]
["02CD05 Alcaldía Cuajimalpa de Morelos","A21NR0240"]
["02CD05 Alcaldía Cuajimalpa de Morelos","A21NR0345"]
["02CD05 Alcaldía Cuajimalpa de Morelos","A21NR0415"]
["02CD05 Alcaldía Cuajimalpa de Morelos","A21NR0416"]
["02CD05 Alcaldía Cuajimalpa de Morelos","A21NR0417"]
["02CD05 Alcaldía Cuajimalpa de Morelos","A21NR0418"]
["02CD05 Alcaldía Cuajimalpa de Morelos","A21NR0420"]
["02CD05 Alcaldía Cuajimalpa de Morelos","A21NR0421"]
["02CD05 Alcaldía Cuajimalpa de Morelos","A21NR0424"]
["02CD05 Alcaldía Cuajimalpa de Morelos","A21NR0425"]
["02CD05 Alcaldía Cuajimalpa de Morelos","A21NR0426"]
["02CD05 Alcaldía Cuajimalpa de Morelos","A21NR0428"]
["02CD05 Alcaldía Cuajimalpa de Morelos","A21NR0429"]
["02CD05 Alcaldía Cuajimalpa de Morelos","O21NR0050"]
["02CD05 Alcaldía Cuajimalpa de Morelos","O21NR0068"]
["02CD05 Alcaldía Cuajimalpa de Morelos","O21NR0083"]
["02CD05 Alcaldía Cuajimalpa de Morelos","O21NR0294"]
["02CD05 Alcaldía Cuajimalpa de Morelos","O21NR0295"]
["02CD05 Alcaldía Cuajimalpa de Morelos","O21NR0296"]
["02CD05 Alcaldía Cuajimalpa de Morelos","O21NR0297"]
["02CD05 Alcaldía Cuajimalpa de Morelos","O21NR0298"]
["02CD05 Alcaldía Cuajimalpa de Morelos","O21NR0299"]
["02CD05 Alcaldía Cuajimalpa de Morelos","O21NR0300"]
["02CD05 Alcaldía Cuajimalpa de Morelos","O21NR0301"]
["02CD05 Alcaldía Cuajimalpa de Morelos","O21NR0302"]
["02CD05 Alcaldía Cuajimalpa de Morelos","O21NR0303"]
["02CD05 Alcaldía Cuajimalpa de Morelos","O21NR0304"]
["02CD05 Alcaldía Cuajimalpa de Morelos","O21NR0305"]
["02CD05 Alcaldía Cuajimalpa de Morelos","O21NR0306"]
["02CD05 Alcaldía Cuajimalpa de Morelos","O21NR0307"]
["02CD05 Alcaldía Cuajimalpa de Morelos","O21NR0324"]
["02CD05 Alcaldía Cuajimalpa de Morelos","O21NR0590"]
["02CD05 Alcaldía Cuajimalpa de Morelos","O21NR0591"]
["02CD05 Alcaldía Cuajimalpa de Morelos","O21NR0592"]
["02CD05 Alcaldía Cuajimalpa de Morelos","O21NR0784"]
["02CD05 Alcaldía Cuajimalpa de Morelos","O21NR0785"]
["02CD05 Alcaldía Cuajimalpa de Morelos","O21NR0786"]
["02CD05 Alcaldía Cuajimalpa de Morelos","O21NR0787"]
["02CD05 Alcaldía Cuajimalpa de Morelos","O21NR0788"]
["02CD05 Alcaldía Cuajimalpa de Morelos","O21NR0789"]
["02CD05 Alcaldía Cuajimalpa de Morelos","O21NR0790"]
["02CD05 Alcaldía Cuajimalpa de Morelos","O21NR0791"]
["02CD05 Alcaldía Cuajimalpa de Morelos","O21NR0792"]
["02CD05 Alcaldía Cuajimalpa de Morelos","O21NR0793"]
["02CD05 Alcaldía Cuajimalpa de Morelos","O21NR0794"]
["02CD05 Alcaldía Cuajimalpa de Morelos","O21NR0795"]
["02CD05 Alcaldía Cuajimalpa de Morelos","O21NR0796"]
["02CD05 Alcaldía Cuajimalpa de Morelos","O21NR0797"]
["02CD05 Alcaldía Cuajimalpa de Morelos","O21NR0798"]
["02CD05 Alcaldía Cuajimalpa de Morelos","O21NR0799"]
["02CD05 Alcaldía Cuajimalpa de Morelos","O21NR0800"]
["02CD05 Alcaldía Cuajimalpa de Morelos","O21NR0801"]
["02CD05 Alcaldía Cuajimalpa de Morelos","O21NR0802"]
["02CD05 Alcaldía Cuajimalpa de Morelos","O21NR0895"]
["02CD05 Alcaldía Cuajimalpa de Morelos","O21NR0896"]
["02CD06 Alcaldía Cuauhtémoc","A21NR0188"]
["02CD06 Alcaldía Cuauhtémoc","A21NR0231"]
["02CD06 Alcaldía Cuauhtémoc","A21NR0251"]
["02CD06 Alcaldía Cuauhtémoc","A21NR0342"]
["02CD06 Alcaldía Cuauhtémoc","A21NR0441"]
["02CD06 Alcaldía Cuauhtémoc","A21NR0442"]
["02CD06 Alcaldía Cuauhtémoc","A21NR0477"]
["02CD06 Alcaldía Cuauhtémoc","O21NR0051"]
["02CD06 Alcaldía Cuauhtémoc","O21NR0069"]
["02CD06 Alcaldía Cuauhtémoc","O21NR0084"]
["02CD07 Alcaldía Gustavo A. Madero","A21NR0025"]
["02CD07 Alcaldía Gustavo A. Madero","A21NR0041"]
["02CD07 Alcaldía Gustavo A. Madero","A21NR0056"]
["02CD07 Alcaldía Gustavo A. Madero","A21NR0065"]
["02CD07 Alcaldía Gustavo A. Madero","O21NR0052"]
["02CD07 Alcaldía Gustavo A. Madero","O21NR0070"]
["02CD07 Alcaldía Gustavo A. Madero","O21NR0085"]
["02CD07 Alcaldía Gustavo A. Madero","O21NR0098"]
["02CD07 Alcaldía Gustavo A. Madero","O21NR0109"]
["02CD07 Alcaldía Gustavo A. Madero","O21NR0119"]
["02CD07 Alcaldía Gustavo A. Madero","O21NR0129"]
["02CD07 Alcaldía Gustavo A. Madero","O21NR0139"]
["02CD07 Alcaldía Gustavo A. Madero","O21NR0148"]
["02CD07 Alcaldía Gustavo A. Madero","O21NR0157"]
["02CD07 Alcaldía Gustavo A. Madero","O21NR0166"]
["02CD07 Alcaldía Gustavo A. Madero","O21NR0173"]
["02CD07 Alcaldía Gustavo A. Madero","O21NR0180"]
["02CD07 Alcaldía Gustavo A. Madero","O21NR0292"]
["02CD08 Alcaldía Iztacalco","A21NR0042"]
["02CD08 Alcaldía Iztacalco","A21NR0177"]
["02CD08 Alcaldía Iztacalco","A21NR0268"]
["02CD08 Alcaldía Iztacalco","A21NR0269"]
["02CD08 Alcaldía Iztacalco","A21NR0300"]
["02CD08 Alcaldía Iztacalco","A21NR0369"]
["02CD08 Alcaldía Iztacalco","A21NR0403"]
["02CD08 Alcaldía Iztacalco","A21NR0404"]
["02CD08 Alcaldía Iztacalco","A21NR0405"]
["02CD08 Alcaldía Iztacalco","A21NR0457"]
["02CD08 Alcaldía Iztacalco","A21NR0560"]
["02CD08 Alcaldía Iztacalco","O21NR0025"]
["02CD08 Alcaldía Iztacalco","O21NR0027"]
["02CD08 Alcaldía Iztacalco","O21NR0028"]
["02CD08 Alcaldía Iztacalco","O21NR0029"]
["02CD08 Alcaldía Iztacalco","O21NR0030"]
["02CD08 Alcaldía Iztacalco","O21NR0031"]
["02CD08 Alcaldía Iztacalco","O21NR0032"]
["02CD08 Alcaldía Iztacalco","O21NR0033"]
["02CD08 Alcaldía Iztacalco","O21NR0034"]
["02CD08 Alcaldía Iztacalco","O21NR0035"]
["02CD08 Alcaldía Iztacalco","O21NR0046"]
["02CD08 Alcaldía Iztacalco","O21NR0053"]
["02CD08 Alcaldía Iztacalco","O21NR0064"]
["02CD08 Alcaldía Iztacalco","O21NR0071"]
["02CD08 Alcaldía Iztacalco","O21NR0086"]
["02CD08 Alcaldía Iztacalco","O21NR0099"]
["02CD08 Alcaldía Iztacalco","O21NR0110"]
["02CD08 Alcaldía Iztacalco","O21NR0120"]
["02CD08 Alcaldía Iztacalco","O21NR0130"]
["02CD08 Alcaldía Iztacalco","O21NR0140"]
["02CD08 Alcaldía Iztacalco","O21NR0149"]
["02CD08 Alcaldía Iztacalco","O21NR0158"]
["02CD08 Alcaldía Iztacalco","O21NR0167"]
["02CD08 Alcaldía Iztacalco","O21NR0174"]
["02CD08 Alcaldía Iztacalco","O21NR0181"]
["02CD08 Alcaldía Iztacalco","O21NR0192"]
["02CD08 Alcaldía Iztacalco","O21NR0193"]
["02CD08 Alcaldía Iztacalco","O21NR0194"]
["02CD08 Alcaldía Iztacalco","O21NR0195"]
["02CD08 Alcaldía Iztacalco","O21NR0196"]
["02CD08 Alcaldía Iztacalco","O21NR0197"]
["02CD08 Alcaldía Iztacalco","O21NR0222"]
["02CD08 Alcaldía Iztacalco","O21NR0231"]
["02CD08 Alcaldía Iztacalco","O21NR0232"]
["02CD08 Alcaldía Iztacalco","O21NR0238"]
["02CD08 Alcaldía Iztacalco","O21NR0280"]
["02CD08 Alcaldía Iztacalco","O21NR0312"]
["02CD08 Alcaldía Iztacalco","O21NR0313"]
["02CD08 Alcaldía Iztacalco","O21NR0314"]
["02CD08 Alcaldía Iztacalco","O21NR0316"]
["02CD08 Alcaldía Iztacalco","O21NR0532"]
["02CD08 Alcaldía Iztacalco","O21NR0533"]
["02CD08 Alcaldía Iztacalco","O21NR0730"]
["02CD08 Alcaldía Iztacalco","O21NR0734"]
["02CD08 Alcaldía Iztacalco","O21NR0742"]
["02CD08 Alcaldía Iztacalco","O21NR0744"]
["02CD08 Alcaldía Iztacalco","O21NR0764"]
["02CD08 Alcaldía Iztacalco","O21NR0940"]
["02CD08 Alcaldía Iztacalco","O21NR0941"]
["02CD08 Alcaldía Iztacalco","O21NR0942"]
["02CD08 Alcaldía Iztacalco","O21NR0943"]
["02CD08 Alcaldía Iztacalco","O21NR0944"]
["02CD08 Alcaldía Iztacalco","O21NR0945"]
["02CD08 Alcaldía Iztacalco","O21NR0946"]
["02CD08 Alcaldía Iztacalco","O21NR0947"]
["02CD08 Alcaldía Iztacalco","O21NR0948"]
["02CD08 Alcaldía Iztacalco","O21NR0949"]
["02CD08 Alcaldía Iztacalco","O21NR0950"]
["02CD08 Alcaldía Iztacalco","O21NR0951"]
["02CD08 Alcaldía Iztacalco","O21NR0952"]
["02CD08 Alcaldía Iztacalco","O21NR0953"]
["02CD08 Alcaldía Iztacalco","O21NR0954"]
["02CD08 Alcaldía Iztacalco","O21NR0955"]
["02CD08 Alcaldía Iztacalco","O21NR0956"]
["02CD08 Alcaldía Iztacalco","O21NR0960"]
["02CD08 Alcaldía Iztacalco","O21NR0961"]
["02CD08 Alcaldía Iztacalco","O21NR0962"]
["02CD08 Alcaldía Iztacalco","O21NR0963"]
["02CD08 Alcaldía Iztacalco","O21NR0964"]
["02CD08 Alcaldía Iztacalco","O21NR1343"]
["02CD08 Alcaldía Iztacalco","O21NR1344"]
["02CD09 Alcaldía Iztapalapa","A21NR0125"]
["02CD09 Alcaldía Iztapalapa","A21NR0140"]
["02CD09 Alcaldía Iztapalapa","A21NR0142"]
["02CD09 Alcaldía Iztapalapa","A21NR0143"]
["02CD09 Alcaldía Iztapalapa","A21NR0171"]
["02CD09 Alcaldía Iztapalapa","A21NR0172"]
["02CD09 Alcaldía Iztapalapa","A21NR0174"]
["02CD09 Alcaldía Iztapalapa","A21NR0186"]
["02CD09 Alcaldía Iztapalapa","A21NR0198"]
["02CD09 Alcaldía Iztapalapa","A21NR0199"]
["02CD09 Alcaldía Iztapalapa","A21NR0201"]
["02CD09 Alcaldía Iztapalapa","A21NR0237"]
["02CD09 Alcaldía Iztapalapa","A21NR0238"]
["02CD09 Alcaldía Iztapalapa","A21NR0256"]
["02CD09 Alcaldía Iztapalapa","A21NR0257"]
["02CD09 Alcaldía Iztapalapa","A21NR0283"]
["02CD09 Alcaldía Iztapalapa","A21NR0407"]
["02CD09 Alcaldía Iztapalapa","A21NR0535"]
["02CD09 Alcaldía Iztapalapa","O20ML0039"]
["02CD09 Alcaldía Iztapalapa","O20ML0040"]
["02CD09 Alcaldía Iztapalapa","O20ML0041"]
["02CD09 Alcaldía Iztapalapa","O21NR0054"]
["02CD09 Alcaldía Iztapalapa","O21NR0072"]
["02CD09 Alcaldía Iztapalapa","O21NR0489"]
["02CD09 Alcaldía Iztapalapa","O21NR0511"]
["02CD09 Alcaldía Iztapalapa","O21NR0512"]
["02CD09 Alcaldía Iztapalapa","O21NR0513"]
["02CD09 Alcaldía Iztapalapa","O21NR0514"]
["02CD09 Alcaldía Iztapalapa","O21NR0517"]
["02CD09 Alcaldía Iztapalapa","O21NR0530"]
["02CD09 Alcaldía Iztapalapa","O21NR0534"]
["02CD09 Alcaldía Iztapalapa","O21NR0535"]
["02CD09 Alcaldía Iztapalapa","O21NR0536"]
["02CD09 Alcaldía Iztapalapa","O21NR0545"]
["02CD09 Alcaldía Iztapalapa","O21NR0557"]
["02CD09 Alcaldía Iztapalapa","O21NR0558"]
["02CD09 Alcaldía Iztapalapa","O21NR0585"]
["02CD09 Alcaldía Iztapalapa","O21NR0756"]
["02CD09 Alcaldía Iztapalapa","O21NR1238"]
["02CD09 Alcaldía Iztapalapa","O21NR1341"]
["02CD09 Alcaldía Iztapalapa","O21NR1342"]
["02CD10 Alcaldía La Magdalena Contreras","A21NR0026"]
["02CD10 Alcaldía La Magdalena Contreras","A21NR0043"]
["02CD10 Alcaldía La Magdalena Contreras","A21NR0057"]
["02CD10 Alcaldía La Magdalena Contreras","A21NR0066"]
["02CD10 Alcaldía La Magdalena Contreras","A21NR0074"]
["02CD10 Alcaldía La Magdalena Contreras","A21NR0082"]
["02CD10 Alcaldía La Magdalena Contreras","A21NR0090"]
["02CD10 Alcaldía La Magdalena Contreras","A21NR0471"]
["02CD10 Alcaldía La Magdalena Contreras","A21NR0524"]
["02CD10 Alcaldía La Magdalena Contreras","A21NR0543"]
["02CD10 Alcaldía La Magdalena Contreras","A21NR0547"]
["02CD10 Alcaldía La Magdalena Contreras","A21NR0548"]
["02CD10 Alcaldía La Magdalena Contreras","A21NR0550"]
["02CD10 Alcaldía La Magdalena Contreras","O21NR0055"]
["02CD10 Alcaldía La Magdalena Contreras","O21NR0073"]
["02CD10 Alcaldía La Magdalena Contreras","O21NR0087"]
["02CD10 Alcaldía La Magdalena Contreras","O21NR0100"]
["02CD10 Alcaldía La Magdalena Contreras","O21NR0111"]
["02CD10 Alcaldía La Magdalena Contreras","O21NR0121"]
["02CD10 Alcaldía La Magdalena Contreras","O21NR0131"]
["02CD10 Alcaldía La Magdalena Contreras","O21NR0141"]
["02CD10 Alcaldía La Magdalena Contreras","O21NR0150"]
["02CD10 Alcaldía La Magdalena Contreras","O21NR0159"]
["02CD10 Alcaldía La Magdalena Contreras","O21NR0168"]
["02CD10 Alcaldía La Magdalena Contreras","O21NR0175"]
["02CD10 Alcaldía La Magdalena Contreras","O21NR0182"]
["02CD10 Alcaldía La Magdalena Contreras","O21NR0198"]
["02CD10 Alcaldía La Magdalena Contreras","O21NR0199"]
["02CD10 Alcaldía La Magdalena Contreras","O21NR0200"]
["02CD10 Alcaldía La Magdalena Contreras","O21NR0201"]
["02CD10 Alcaldía La Magdalena Contreras","O21NR0202"]
["02CD10 Alcaldía La Magdalena Contreras","O21NR0203"]
["02CD10 Alcaldía La Magdalena Contreras","O21NR0223"]
["02CD10 Alcaldía La Magdalena Contreras","O21NR0224"]
["02CD10 Alcaldía La Magdalena Contreras","O21NR0883"]
["02CD10 Alcaldía La Magdalena Contreras","O21NR0884"]
["02CD10 Alcaldía La Magdalena Contreras","O21NR0885"]
["02CD10 Alcaldía La Magdalena Contreras","O21NR0886"]
["02CD10 Alcaldía La Magdalena Contreras","O21NR0887"]
["02CD10 Alcaldía La Magdalena Contreras","O21NR0888"]
["02CD10 Alcaldía La Magdalena Contreras","O21NR0889"]
["02CD10 Alcaldía La Magdalena Contreras","O21NR0890"]
["02CD10 Alcaldía La Magdalena Contreras","O21NR0891"]
["02CD10 Alcaldía La Magdalena Contreras","O21NR0892"]
["02CD10 Alcaldía La Magdalena Contreras","O21NR0893"]
["02CD10 Alcaldía La Magdalena Contreras","O21NR0894"]
["02CD10 Alcaldía La Magdalena Contreras","O21NR0897"]
["02CD10 Alcaldía La Magdalena Contreras","O21NR0898"]
["02CD10 Alcaldía La Magdalena Contreras","O21NR0899"]
["02CD10 Alcaldía La Magdalena Contreras","O21NR0900"]
["02CD10 Alcaldía La Magdalena Contreras","O21NR0901"]
["02CD10 Alcaldía La Magdalena Contreras","O21NR0902"]
["02CD10 Alcaldía La Magdalena Contreras","O21NR0903"]
["02CD10 Alcaldía La Magdalena Contreras","O21NR0904"]
["02CD10 Alcaldía La Magdalena Contreras","O21NR0926"]
["02CD10 Alcaldía La Magdalena Contreras","O21NR0927"]
["02CD10 Alcaldía La Magdalena Contreras","O21NR0928"]
["02CD10 Alcaldía La Magdalena Contreras","O21NR0929"]
["02CD10 Alcaldía La Magdalena Contreras","O21NR1340"]
["02CD10 Alcaldía La Magdalena Contreras","O21NR1346"]
["02CD10 Alcaldía La Magdalena Contreras","O21NR1347"]
["02CD10 Alcaldía La Magdalena Contreras","O21NR1348"]
["02CD10 Alcaldía La Magdalena Contreras","O21NR1349"]
["02CD10 Alcaldía La Magdalena Contreras","O21NR1350"]
["02CD10 Alcaldía La Magdalena Contreras","O21NR1351"]
["02CD10 Alcaldía La Magdalena Contreras","O21NR1353"]
["02CD10 Alcaldía La Magdalena Contreras","O21NR1354"]
["02CD10 Alcaldía La Magdalena Contreras","O21NR1408"]
["02CD11 Alcaldía Miguel Hidalgo","A21NR0027"]
["02CD11 Alcaldía Miguel Hidalgo","A21NR0044"]
["02CD11 Alcaldía Miguel Hidalgo","A21NR0058"]
["02CD11 Alcaldía Miguel Hidalgo","A21NR0067"]
["02CD11 Alcaldía Miguel Hidalgo","A21NR0075"]
["02CD11 Alcaldía Miguel Hidalgo","A21NR0083"]
["02CD11 Alcaldía Miguel Hidalgo","A21NR0091"]
["02CD11 Alcaldía Miguel Hidalgo","A21NR0176"]
["02CD11 Alcaldía Miguel Hidalgo","A21NR0192"]
["02CD11 Alcaldía Miguel Hidalgo","A21NR0334"]
["02CD11 Alcaldía Miguel Hidalgo","O20ML0061"]
["02CD11 Alcaldía Miguel Hidalgo","O21NR0020"]
["02CD11 Alcaldía Miguel Hidalgo","O21NR0021"]
["02CD11 Alcaldía Miguel Hidalgo","O21NR0022"]
["02CD11 Alcaldía Miguel Hidalgo","O21NR0023"]
["02CD11 Alcaldía Miguel Hidalgo","O21NR0074"]
["02CD11 Alcaldía Miguel Hidalgo","O21NR0088"]
["02CD11 Alcaldía Miguel Hidalgo","O21NR0101"]
["02CD11 Alcaldía Miguel Hidalgo","O21NR0112"]
["02CD11 Alcaldía Miguel Hidalgo","O21NR0122"]
["02CD11 Alcaldía Miguel Hidalgo","O21NR0132"]
["02CD11 Alcaldía Miguel Hidalgo","O21NR0142"]
["02CD11 Alcaldía Miguel Hidalgo","O21NR0151"]
["02CD11 Alcaldía Miguel Hidalgo","O21NR0160"]
["02CD11 Alcaldía Miguel Hidalgo","O21NR0169"]
["02CD11 Alcaldía Miguel Hidalgo","O21NR0176"]
["02CD11 Alcaldía Miguel Hidalgo","O21NR0183"]
["02CD11 Alcaldía Miguel Hidalgo","O21NR0204"]
["02CD11 Alcaldía Miguel Hidalgo","O21NR0205"]
["02CD11 Alcaldía Miguel Hidalgo","O21NR0206"]
["02CD11 Alcaldía Miguel Hidalgo","O21NR0207"]
["02CD11 Alcaldía Miguel Hidalgo","O21NR0208"]
["02CD11 Alcaldía Miguel Hidalgo","O21NR0209"]
["02CD11 Alcaldía Miguel Hidalgo","O21NR0293"]
["02CD11 Alcaldía Miguel Hidalgo","O21NR0518"]
["02CD11 Alcaldía Miguel Hidalgo","O21NR0579"]
["02CD11 Alcaldía Miguel Hidalgo","O21NR0580"]
["02CD11 Alcaldía Miguel Hidalgo","O21NR0581"]
["02CD11 Alcaldía Miguel Hidalgo","O21NR1308"]
["02CD11 Alcaldía Miguel Hidalgo","O21NR1309"]
["02CD12 Alcaldía Milpa Alta","O21NR0056"]
["02CD12 Alcaldía Milpa Alta","O21NR0075"]
["02CD12 Alcaldía Milpa Alta","O21NR0089"]
["02CD12 Alcaldía Milpa Alta","O21NR0523"]
["02CD12 Alcaldía Milpa Alta","O21NR0524"]
["02CD12 Alcaldía Milpa Alta","O21NR0525"]
["02CD12 Alcaldía Milpa Alta","O21NR0526"]
["02CD12 Alcaldía Milpa Alta","O21NR0527"]
["02CD12 Alcaldía Milpa Alta","O21NR0584"]
["02CD12 Alcaldía Milpa Alta","O21NR0913"]
["02CD12 Alcaldía Milpa Alta","O21NR0914"]
["02CD12 Alcaldía Milpa Alta","O21NR0966"]
["02CD12 Alcaldía Milpa Alta","O21NR0967"]
["02CD12 Alcaldía Milpa Alta","O21NR0968"]
["02CD12 Alcaldía Milpa Alta","O21NR0969"]
["02CD12 Alcaldía Milpa Alta","O21NR0970"]
["02CD12 Alcaldía Milpa Alta","O21NR0971"]
["02CD12 Alcaldía Milpa Alta","O21NR1318"]
["02CD12 Alcaldía Milpa Alta","O21NR1319"]
["02CD12 Alcaldía Milpa Alta","O21NR1320"]
["02CD12 Alcaldía Milpa Alta","O21NR1321"]
["02CD12 Alcaldía Milpa Alta","O21NR1322"]
["02CD12 Alcaldía Milpa Alta","O21NR1323"]
["02CD12 Alcaldía Milpa Alta","O21NR1324"]
["02CD12 Alcaldía Milpa Alta","O21NR1325"]
["02CD12 Alcaldía Milpa Alta","O21NR1326"]
["02CD12 Alcaldía Milpa Alta","O21NR1327"]
["02CD12 Alcaldía Milpa Alta","O21NR1328"]
["02CD12 Alcaldía Milpa Alta","O21NR1329"]
["02CD12 Alcaldía Milpa Alta","O21NR1330"]
["02CD12 Alcaldía Milpa Alta","O21NR1331"]
["02CD12 Alcaldía Milpa Alta","O21NR1332"]
["02CD12 Alcaldía Milpa Alta","O21NR1335"]
["02CD13 Alcaldía Tláhuac","A21NR0406"]
["02CD13 Alcaldía Tláhuac","O21NR0057"]
["02CD13 Alcaldía Tláhuac","O21NR0263"]
["02CD13 Alcaldía Tláhuac","O21NR0264"]
["02CD13 Alcaldía Tláhuac","O21NR0721"]
["02CD13 Alcaldía Tláhuac","O21NR0722"]
["02CD13 Alcaldía Tláhuac","O21NR0723"]
["02CD13 Alcaldía Tláhuac","O21NR0724"]
["02CD13 Alcaldía Tláhuac","O21NR0725"]
["02CD13 Alcaldía Tláhuac","O21NR0804"]
["02CD13 Alcaldía Tláhuac","O21NR0805"]
["02CD13 Alcaldía Tláhuac","O21NR0806"]
["02CD13 Alcaldía Tláhuac","O21NR0807"]
["02CD13 Alcaldía Tláhuac","O21NR0808"]
["02CD13 Alcaldía Tláhuac","O21NR0909"]
["02CD13 Alcaldía Tláhuac","O21NR1355"]
["02CD13 Alcaldía Tláhuac","O21NR1373"]
["02CD13 Alcaldía Tláhuac","O21NR1374"]
["02CD14 Alcaldía Tlalpan","A21NR0045"]
["02CD14 Alcaldía Tlalpan","A21NR0187"]
["02CD14 Alcaldía Tlalpan","A21NR0207"]
["02CD14 Alcaldía Tlalpan","A21NR0208"]
["02CD14 Alcaldía Tlalpan","A21NR0227"]
["02CD14 Alcaldía Tlalpan","A21NR0339"]
["02CD14 Alcaldía Tlalpan","A21NR0350"]
["02CD14 Alcaldía Tlalpan","O21NR0058"]
["02CD14 Alcaldía Tlalpan","O21NR0076"]
["02CD14 Alcaldía Tlalpan","O21NR0079"]
["02CD14 Alcaldía Tlalpan","O21NR0090"]
["02CD14 Alcaldía Tlalpan","O21NR0094"]
["02CD14 Alcaldía Tlalpan","O21NR0102"]
["02CD14 Alcaldía Tlalpan","O21NR0113"]
["02CD14 Alcaldía Tlalpan","O21NR0123"]
["02CD14 Alcaldía Tlalpan","O21NR0133"]
["02CD14 Alcaldía Tlalpan","O21NR0143"]
["02CD14 Alcaldía Tlalpan","O21NR0152"]
["02CD14 Alcaldía Tlalpan","O21NR0161"]
["02CD14 Alcaldía Tlalpan","O21NR0170"]
["02CD14 Alcaldía Tlalpan","O21NR0177"]
["02CD14 Alcaldía Tlalpan","O21NR0184"]
["02CD14 Alcaldía Tlalpan","O21NR0210"]
["02CD14 Alcaldía Tlalpan","O21NR0211"]
["02CD14 Alcaldía Tlalpan","O21NR0212"]
["02CD14 Alcaldía Tlalpan","O21NR0213"]
["02CD14 Alcaldía Tlalpan","O21NR0214"]
["02CD14 Alcaldía Tlalpan","O21NR0215"]
["02CD14 Alcaldía Tlalpan","O21NR0227"]
["02CD14 Alcaldía Tlalpan","O21NR0228"]
["02CD14 Alcaldía Tlalpan","O21NR0235"]
["02CD14 Alcaldía Tlalpan","O21NR0236"]
["02CD14 Alcaldía Tlalpan","O21NR0560"]
["02CD14 Alcaldía Tlalpan","O21NR0561"]
["02CD14 Alcaldía Tlalpan","O21NR0562"]
["02CD14 Alcaldía Tlalpan","O21NR1154"]
["02CD14 Alcaldía Tlalpan","O21NR1155"]
["02CD14 Alcaldía Tlalpan","O21NR1156"]
["02CD14 Alcaldía Tlalpan","O21NR1157"]
["02CD14 Alcaldía Tlalpan","O21NR1158"]
["02CD14 Alcaldía Tlalpan","O21NR1159"]
["02CD14 Alcaldía Tlalpan","O21NR1160"]
["02CD14 Alcaldía Tlalpan","O21NR1161"]
["02CD14 Alcaldía Tlalpan","O21NR1162"]
["02CD14 Alcaldía Tlalpan","O21NR1163"]
["02CD14 Alcaldía Tlalpan","O21NR1164"]
["02CD14 Alcaldía Tlalpan","O21NR1165"]
["02CD14 Alcaldía Tlalpan","O21NR1166"]
["02CD14 Alcaldía Tlalpan","O21NR1167"]
["02CD14 Alcaldía Tlalpan","O21NR1168"]
["02CD14 Alcaldía Tlalpan","O21NR1169"]
["02CD14 Alcaldía Tlalpan","O21NR1170"]
["02CD14 Alcaldía Tlalpan","O21NR1171"]
["02CD14 Alcaldía Tlalpan","O21NR1172"]
["02CD14 Alcaldía Tlalpan","O21NR1173"]
["02CD14 Alcaldía Tlalpan","O21NR1174"]
["02CD14 Alcaldía Tlalpan","O21NR1175"]
["02CD14 Alcaldía Tlalpan","O21NR1176"]
["02CD14 Alcaldía Tlalpan","O21NR1177"]
["02CD14 Alcaldía Tlalpan","O21NR1178"]
["02CD14 Alcaldía Tlalpan","O21NR1179"]
["02CD14 Alcaldía Tlalpan","O21NR1180"]
["02CD14 Alcaldía Tlalpan","O21NR1181"]
["02CD14 Alcaldía Tlalpan","O21NR1182"]
["02CD14 Alcaldía Tlalpan","O21NR1183"]
["02CD14 Alcaldía Tlalpan","O21NR1184"]
["02CD14 Alcaldía Tlalpan","O21NR1185"]
["02CD14 Alcaldía Tlalpan","O21NR1186"]
["02CD14 Alcaldía Tlalpan","O21NR1187"]
["02CD14 Alcaldía Tlalpan","O21NR1188"]
["02CD14 Alcaldía Tlalpan","O21NR1189"]
["02CD14 Alcaldía Tlalpan","O21NR1190"]
["02CD14 Alcaldía Tlalpan","O21NR1191"]
["02CD14 Alcaldía Tlalpan","O21NR1192"]
["02CD14 Alcaldía Tlalpan","O21NR1193"]
["02CD14 Alcaldía Tlalpan","O21NR1194"]
["02CD14 Alcaldía Tlalpan","O21NR1195"]
["02CD14 Alcaldía Tlalpan","O21NR1196"]
["02CD14 Alcaldía Tlalpan","O21NR1197"]
["02CD14 Alcaldía Tlalpan","O21NR1198"]
["02CD14 Alcaldía Tlalpan","O21NR1199"]
["02CD14 Alcaldía Tlalpan","O21NR1200"]
["02CD14 Alcaldía Tlalpan","O21NR1201"]
["02CD14 Alcaldía Tlalpan","O21NR1202"]
["02CD14 Alcaldía Tlalpan","O21NR1203"]
["02CD14 Alcaldía Tlalpan","O21NR1204"]
["02CD14 Alcaldía Tlalpan","O21NR1205"]
["02CD14 Alcaldía Tlalpan","O21NR1206"]
["02CD14 Alcaldía Tlalpan","O21NR1207"]
["02CD14 Alcaldía Tlalpan","O21NR1208"]
["02CD14 Alcaldía Tlalpan","O21NR1209"]
["02CD14 Alcaldía Tlalpan","O21NR1210"]
["02CD14 Alcaldía Tlalpan","O21NR1211"]
["02CD14 Alcaldía Tlalpan","O21NR1212"]
["02CD14 Alcaldía Tlalpan","O21NR1213"]
["02CD14 Alcaldía Tlalpan","O21NR1214"]
["02CD14 Alcaldía Tlalpan","O21NR1215"]
["02CD14 Alcaldía Tlalpan","O21NR1216"]
["02CD14 Alcaldía Tlalpan","O21NR1217"]
["02CD14 Alcaldía Tlalpan","O21NR1218"]
["02CD14 Alcaldía Tlalpan","O21NR1219"]
["02CD14 Alcaldía Tlalpan","O21NR1220"]
["02CD14 Alcaldía Tlalpan","O21NR1221"]
["02CD14 Alcaldía Tlalpan","O21NR1222"]
["02CD14 Alcaldía Tlalpan","O21NR1223"]
["02CD14 Alcaldía Tlalpan","O21NR1224"]
["02CD14 Alcaldía Tlalpan","O21NR1225"]
["02CD14 Alcaldía Tlalpan","O21NR1226"]
["02CD14 Alcaldía Tlalpan","O21NR1227"]
["02CD14 Alcaldía Tlalpan","O21NR1228"]
["02CD14 Alcaldía Tlalpan","O21NR1229"]
["02CD14 Alcaldía Tlalpan","O21NR1230"]
["02CD14 Alcaldía Tlalpan","O21NR1231"]
["02CD14 Alcaldía Tlalpan","O21NR1239"]
["02CD14 Alcaldía Tlalpan","O21NR1240"]
["02CD14 Alcaldía Tlalpan","O21NR1241"]
["02CD14 Alcaldía Tlalpan","O21NR1242"]
["02CD14 Alcaldía Tlalpan","O21NR1243"]
["02CD14 Alcaldía Tlalpan","O21NR1244"]
["02CD14 Alcaldía Tlalpan","O21NR1245"]
["02CD14 Alcaldía Tlalpan","O21NR1246"]
["02CD14 Alcaldía Tlalpan","O21NR1247"]
["02CD14 Alcaldía Tlalpan","O21NR1248"]
["02CD14 Alcaldía Tlalpan","O21NR1249"]
["02CD14 Alcaldía Tlalpan","O21NR1250"]
["02CD14 Alcaldía Tlalpan","O21NR1251"]
["02CD14 Alcaldía Tlalpan","O21NR1252"]
["02CD14 Alcaldía Tlalpan","O21NR1253"]
["02CD14 Alcaldía Tlalpan","O21NR1254"]
["02CD14 Alcaldía Tlalpan","O21NR1255"]
["02CD14 Alcaldía Tlalpan","O21NR1256"]
["02CD14 Alcaldía Tlalpan","O21NR1257"]
["02CD14 Alcaldía Tlalpan","O21NR1258"]
["02CD14 Alcaldía Tlalpan","O21NR1259"]
["02CD14 Alcaldía Tlalpan","O21NR1260"]
["02CD14 Alcaldía Tlalpan","O21NR1261"]
["02CD14 Alcaldía Tlalpan","O21NR1262"]
["02CD14 Alcaldía Tlalpan","O21NR1263"]
["02CD14 Alcaldía Tlalpan","O21NR1264"]
["02CD14 Alcaldía Tlalpan","O21NR1265"]
["02CD14 Alcaldía Tlalpan","O21NR1266"]
["02CD14 Alcaldía Tlalpan","O21NR1267"]
["02CD14 Alcaldía Tlalpan","O21NR1268"]
["02CD14 Alcaldía Tlalpan","O21NR1269"]
["02CD14 Alcaldía Tlalpan","O21NR1270"]
["02CD14 Alcaldía Tlalpan","O21NR1271"]
["02CD14 Alcaldía Tlalpan","O21NR1272"]
["02CD14 Alcaldía Tlalpan","O21NR1273"]
["02CD14 Alcaldía Tlalpan","O21NR1274"]
["02CD14 Alcaldía Tlalpan","O21NR1275"]
["02CD14 Alcaldía Tlalpan","O21NR1276"]
["02CD14 Alcaldía Tlalpan","O21NR1277"]
["02CD14 Alcaldía Tlalpan","O21NR1278"]
["02CD14 Alcaldía Tlalpan","O21NR1279"]
["02CD14 Alcaldía Tlalpan","O21NR1280"]
["02CD14 Alcaldía Tlalpan","O21NR1281"]
["02CD14 Alcaldía Tlalpan","O21NR1282"]
["02CD14 Alcaldía Tlalpan","O21NR1283"]
["02CD14 Alcaldía Tlalpan","O21NR1284"]
["02CD14 Alcaldía Tlalpan","O21NR1285"]
["02CD14 Alcaldía Tlalpan","O21NR1286"]
["02CD14 Alcaldía Tlalpan","O21NR1287"]
["02CD14 Alcaldía Tlalpan","O21NR1288"]
["02CD14 Alcaldía Tlalpan","O21NR1289"]
["02CD14 Alcaldía Tlalpan","O21NR1290"]
["02CD14 Alcaldía Tlalpan","O21NR1291"]
["02CD14 Alcaldía Tlalpan","O21NR1292"]
["02CD14 Alcaldía Tlalpan","O21NR1293"]
["02CD14 Alcaldía Tlalpan","O21NR1294"]
["02CD14 Alcaldía Tlalpan","O21NR1295"]
["02CD14 Alcaldía Tlalpan","O21NR1296"]
["02CD14 Alcaldía Tlalpan","O21NR1297"]
["02CD14 Alcaldía Tlalpan","O21NR1298"]
["02CD14 Alcaldía Tlalpan","O21NR1299"]
["02CD14 Alcaldía Tlalpan","O21NR1300"]
["02CD14 Alcaldía Tlalpan","O21NR1301"]
["02CD14 Alcaldía Tlalpan","O21NR1302"]
["02CD14 Alcaldía Tlalpan","O21NR1303"]
["02CD15 Alcaldía Venustiano Carranza","A21NR0028"]
["02CD15 Alcaldía Venustiano Carranza","A21NR0046"]
["02CD15 Alcaldía Venustiano Carranza","A21NR0127"]
["02CD15 Alcaldía Venustiano Carranza","A21NR0145"]
["02CD15 Alcaldía Venustiano Carranza","A21NR0166"]
["02CD15 Alcaldía Venustiano Carranza","O21NR0059"]
["02CD15 Alcaldía Venustiano Carranza","O21NR0077"]
["02CD15 Alcaldía Venustiano Carranza","O21NR0091"]
["02CD15 Alcaldía Venustiano Carranza","O21NR0103"]
["02CD15 Alcaldía Venustiano Carranza","O21NR0114"]
["02CD15 Alcaldía Venustiano Carranza","O21NR0124"]
["02CD15 Alcaldía Venustiano Carranza","O21NR0134"]
["02CD15 Alcaldía Venustiano Carranza","O21NR0144"]
["02CD15 Alcaldía Venustiano Carranza","O21NR0153"]
["02CD15 Alcaldía Venustiano Carranza","O21NR0162"]
["02CD15 Alcaldía Venustiano Carranza","O21NR0260"]
["02CD15 Alcaldía Venustiano Carranza","O21NR0261"]
["02CD15 Alcaldía Venustiano Carranza","O21NR0568"]
["02CD15 Alcaldía Venustiano Carranza","O21NR0601"]
["02CD15 Alcaldía Venustiano Carranza","O21NR0602"]
["02CD15 Alcaldía Venustiano Carranza","O21NR0603"]
["02CD15 Alcaldía Venustiano Carranza","O21NR0604"]
["02CD15 Alcaldía Venustiano Carranza","O21NR0605"]
["02CD15 Alcaldía Venustiano Carranza","O21NR0606"]
["02CD16 Alcaldía Xochimilco","A21NR0029"]
["02CD16 Alcaldía Xochimilco","A21NR0047"]
["02CD16 Alcaldía Xochimilco","A21NR0059"]
["02CD16 Alcaldía Xochimilco","A21NR0068"]
["02CD16 Alcaldía Xochimilco","A21NR0076"]
["02CD16 Alcaldía Xochimilco","A21NR0084"]
["02CD16 Alcaldía Xochimilco","A21NR0092"]
["02CD16 Alcaldía Xochimilco","A21NR0095"]
["02CD16 Alcaldía Xochimilco","A21NR0096"]
["02CD16 Alcaldía Xochimilco","A21NR0101"]
["02CD16 Alcaldía Xochimilco","A21NR0102"]
["02CD16 Alcaldía Xochimilco","A21NR0103"]
["02CD16 Alcaldía Xochimilco","A21NR0110"]
["02CD16 Alcaldía Xochimilco","O21NR0060"]
["02CD16 Alcaldía Xochimilco","O21NR0078"]
["02CD16 Alcaldía Xochimilco","O21NR0092"]
["02CD16 Alcaldía Xochimilco","O21NR0104"]
["02CD16 Alcaldía Xochimilco","O21NR0265"]
["02CD16 Alcaldía Xochimilco","O21NR0520"]
["02CD16 Alcaldía Xochimilco","O21NR0521"]
["02CD16 Alcaldía Xochimilco","O21NR0522"]
["02CD16 Alcaldía Xochimilco","O21NR0607"]
["02CD16 Alcaldía Xochimilco","O21NR0609"]
["02CD16 Alcaldía Xochimilco","O21NR0610"]
["02CD16 Alcaldía Xochimilco","O21NR0611"]
["02CD16 Alcaldía Xochimilco","O21NR0612"]
["02CD16 Alcaldía Xochimilco","O21NR0613"]
["02CD16 Alcaldía Xochimilco","O21NR0614"]
["02CD16 Alcaldía Xochimilco","O21NR0615"]
["02CD16 Alcaldía Xochimilco","O21NR0616"]
["02CD16 Alcaldía Xochimilco","O21NR0618"]
["02CD16 Alcaldía Xochimilco","O21NR0619"]
["02CD16 Alcaldía Xochimilco","O21NR0621"]
["02CD16 Alcaldía Xochimilco","O21NR0622"]
["02CD16 Alcaldía Xochimilco","O21NR0623"]
["02CD16 Alcaldía Xochimilco","O21NR0624"]
["02CD16 Alcaldía Xochimilco","O21NR0625"]
["02CD16 Alcaldía Xochimilco","O21NR0626"]
["02CD16 Alcaldía Xochimilco","O21NR0627"]
["02CD16 Alcaldía Xochimilco","O21NR0628"]
["02CD16 Alcaldía Xochimilco","O21NR0629"]
["02CD16 Alcaldía Xochimilco","O21NR0630"]
["02CD16 Alcaldía Xochimilco","O21NR0631"]
["02CD16 Alcaldía Xochimilco","O21NR0632"]
["02CD16 Alcaldía Xochimilco","O21NR0633"]
["02CD16 Alcaldía Xochimilco","O21NR0634"]
["02CD16 Alcaldía Xochimilco","O21NR0635"]
["02CD16 Alcaldía Xochimilco","O21NR0636"]
["02CD16 Alcaldía Xochimilco","O21NR0637"]
["02CD16 Alcaldía Xochimilco","O21NR0639"]
["02CD16 Alcaldía Xochimilco","O21NR0640"]
["02CD16 Alcaldía Xochimilco","O21NR0641"]
["02CD16 Alcaldía Xochimilco","O21NR0642"]
["02CD16 Alcaldía Xochimilco","O21NR0643"]
["02CD16 Alcaldía Xochimilco","O21NR0757"]
["02CD16 Alcaldía Xochimilco","O21NR0758"]
["02CD16 Alcaldía Xochimilco","O21NR0759"]
["02CD16 Alcaldía Xochimilco","O21NR0760"]
["02CD16 Alcaldía Xochimilco","O21NR0761"]
["02CD16 Alcaldía Xochimilco","O21NR0762"]
["02CD16 Alcaldía Xochimilco","O21NR0763"]
["02CD16 Alcaldía Xochimilco","O21NR0765"]
["02CD16 Alcaldía Xochimilco","O21NR0766"]
["02CD16 Alcaldía Xochimilco","O21NR0767"]
["02CD16 Alcaldía Xochimilco","O21NR0768"]
["02CD16 Alcaldía Xochimilco","O21NR0769"]
["02CD16 Alcaldía Xochimilco","O21NR0770"]
["02CD16 Alcaldía Xochimilco","O21NR0771"]
["02CD16 Alcaldía Xochimilco","O21NR0772"]
["02CD16 Alcaldía Xochimilco","O21NR0773"]
["02CD16 Alcaldía Xochimilco","O21NR0774"]
["02CD16 Alcaldía Xochimilco","O21NR0775"]
["02CD16 Alcaldía Xochimilco","O21NR0776"]
["02CD16 Alcaldía Xochimilco","O21NR0777"]
["02CD16 Alcaldía Xochimilco","O21NR0778"]
["02CD16 Alcaldía Xochimilco","O21NR0779"]
["02CD16 Alcaldía Xochimilco","O21NR0780"]
["02CD16 Alcaldía Xochimilco","O21NR0781"]
["02CD16 Alcaldía Xochimilco","O21NR0809"]
["02CD16 Alcaldía Xochimilco","O21NR0810"]
["02CD16 Alcaldía Xochimilco","O21NR0811"]
["02CD16 Alcaldía Xochimilco","O21NR0812"]
["02CD16 Alcaldía Xochimilco","O21NR0813"]
["02CD16 Alcaldía Xochimilco","O21NR0814"]
["02CD16 Alcaldía Xochimilco","O21NR0815"]
["02CD16 Alcaldía Xochimilco","O21NR0816"]
["02CD16 Alcaldía Xochimilco","O21NR0817"]
["02CD16 Alcaldía Xochimilco","O21NR0818"]
["02CD16 Alcaldía Xochimilco","O21NR0819"]
["02CD16 Alcaldía Xochimilco","O21NR0820"]
["02CD16 Alcaldía Xochimilco","O21NR0821"]
["02CD16 Alcaldía Xochimilco","O21NR0822"]
["02CD16 Alcaldía Xochimilco","O21NR0823"]
["02CD16 Alcaldía Xochimilco","O21NR0824"]
["02CD16 Alcaldía Xochimilco","O21NR0825"]
["02CD16 Alcaldía Xochimilco","O21NR0826"]
["02CD16 Alcaldía Xochimilco","O21NR0827"]
["02CD16 Alcaldía Xochimilco","O21NR0828"]
["02CD16 Alcaldía Xochimilco","O21NR0829"]
["02CD16 Alcaldía Xochimilco","O21NR0830"]
["02CD16 Alcaldía Xochimilco","O21NR0831"]
["02CD16 Alcaldía Xochimilco","O21NR0832"]
["02CD16 Alcaldía Xochimilco","O21NR0833"]
["02CD16 Alcaldía Xochimilco","O21NR0834"]
["02CD16 Alcaldía Xochimilco","O21NR0835"]
["02CD16 Alcaldía Xochimilco","O21NR0836"]
["02CD16 Alcaldía Xochimilco","O21NR0837"]
["02CD16 Alcaldía Xochimilco","O21NR0838"]
["02CD16 Alcaldía Xochimilco","O21NR0839"]
["02CD16 Alcaldía Xochimilco","O21NR0840"]
["02CD16 Alcaldía Xochimilco","O21NR0841"]
["02CD16 Alcaldía Xochimilco","O21NR0842"]
["02CD16 Alcaldía Xochimilco","O21NR0843"]
["02CD16 Alcaldía Xochimilco","O21NR0844"]
["02CD16 Alcaldía Xochimilco","O21NR0845"]
["02CD16 Alcaldía Xochimilco","O21NR0846"]
["02CD16 Alcaldía Xochimilco","O21NR0847"]
["02CD16 Alcaldía Xochimilco","O21NR0848"]
["02CD16 Alcaldía Xochimilco","O21NR0849"]
["02CD16 Alcaldía Xochimilco","O21NR0850"]
["02CD16 Alcaldía Xochimilco","O21NR0851"]
["02CD16 Alcaldía Xochimilco","O21NR0852"]
["02CD16 Alcaldía Xochimilco","O21NR0853"]
["02CD16 Alcaldía Xochimilco","O21NR0854"]
["02CD16 Alcaldía Xochimilco","O21NR0855"]
["02CD16 Alcaldía Xochimilco","O21NR0856"]
["02CD16 Alcaldía Xochimilco","O21NR0857"]
["02CD16 Alcaldía Xochimilco","O21NR0858"]
["02CD16 Alcaldía Xochimilco","O21NR0859"]
["02CD16 Alcaldía Xochimilco","O21NR0860"]
["02CD16 Alcaldía Xochimilco","O21NR0861"]
["02CD16 Alcaldía Xochimilco","O21NR0862"]
["02CD16 Alcaldía Xochimilco","O21NR0863"]
["02CD16 Alcaldía Xochimilco","O21NR0864"]
["02CD16 Alcaldía Xochimilco","O21NR0865"]
["02CD16 Alcaldía Xochimilco","O21NR0866"]
["02CD16 Alcaldía Xochimilco","O21NR0867"]
["02CD16 Alcaldía Xochimilco","O21NR0868"]
["02CD16 Alcaldía Xochimilco","O21NR0869"]
["02CD16 Alcaldía Xochimilco","O21NR0870"]
["02CD16 Alcaldía Xochimilco","O21NR0871"]
["02CD16 Alcaldía Xochimilco","O21NR0872"]
["02CD16 Alcaldía Xochimilco","O21NR0873"]
["02CD16 Alcaldía Xochimilco","O21NR0874"]
["02CD16 Alcaldía Xochimilco","O21NR0875"]
["02CD16 Alcaldía Xochimilco","O21NR0876"]
["02CD16 Alcaldía Xochimilco","O21NR0877"]
["02CD16 Alcaldía Xochimilco","O21NR0918"]
["02CD16 Alcaldía Xochimilco","O21NR0919"]
["02CD16 Alcaldía Xochimilco","O21NR0920"]
["02CD16 Alcaldía Xochimilco","O21NR0921"]
["02CD16 Alcaldía Xochimilco","O21NR0922"]
["02CD16 Alcaldía Xochimilco","O21NR0923"]
["02CD16 Alcaldía Xochimilco","O21NR0924"]
["02CD16 Alcaldía Xochimilco","O21NR0932"]
["02CD16 Alcaldía Xochimilco","O21NR1316"]
["02CD16 Alcaldía Xochimilco","O21NR1317"]
["02CDBP Comisión de Búsqueda de Personas de la Ciudad de México","A21NR0357"]
["02CDBP Comisión de Búsqueda de Personas de la Ciudad de México","A21NR0358"]
["02CDBP Comisión de Búsqueda de Personas de la Ciudad de México","A21NR0359"]
["02CDBP Comisión de Búsqueda de Personas de la Ciudad de México","A21NR0360"]
["02CDBP Comisión de Búsqueda de Personas de la Ciudad de México","A21NR0361"]
["02CDBP Comisión de Búsqueda de Personas de la Ciudad de México","A21NR0362"]
["02CDBP Comisión de Búsqueda de Personas de la Ciudad de México","A21NR0364"]
["02CDBP Comisión de Búsqueda de Personas de la Ciudad de México","A21NR0365"]
["02CDBP Comisión de Búsqueda de Personas de la Ciudad de México","A21NR0366"]
["02CDBP Comisión de Búsqueda de Personas de la Ciudad de México","A21NR0367"]
["02CDBP Comisión de Búsqueda de Personas de la Ciudad de México","A21NR0368"]
["02CDBP Comisión de Búsqueda de Personas de la Ciudad de México","A21NR0372"]
["02OD04 Autoridad del Centro Histórico","A21NR0489"]
["02PDAV Comisión Ejecutiva de Atención a Victímas de la Ciudad de México","A21NR0163"]
["02PDAV Comisión Ejecutiva de Atención a Victímas de la Ciudad de México","A21NR0164"]
["02PDAV Comisión Ejecutiva de Atención a Victímas de la Ciudad de México","A21NR0165"]
["03C001 Secretaría de Desarrollo Urbano y Vivienda","A21NR0316"]
["03PDIV Instituto de Vivienda","A21NR0175"]
["03PDIV Instituto de Vivienda","A21NR0249"]
["03PDIV Instituto de Vivienda","A21NR0250"]
["04C001 Secretaría de Desarrollo Económico","A21NR0531"]
["04C001 Secretaría de Desarrollo Económico","O21NR0061"]
["04P0DS Fondo para el Desarrollo Social","A21NR0266"]
["04P0DS Fondo para el Desarrollo Social","A21NR0267"]
["06C001 Secretaría del Medio Ambiente","A21NR0390"]
["06C001 Secretaría del Medio Ambiente","A21NR0391"]
["06C001 Secretaría del Medio Ambiente","A21NR0392"]
["06C001 Secretaría del Medio Ambiente","A21NR0453"]
["06C001 Secretaría del Medio Ambiente","O21NR0506"]
["06C001 Secretaría del Medio Ambiente","O21NR0507"]
["06C001 Secretaría del Medio Ambiente","O21NR0544"]
["06C001 Secretaría del Medio Ambiente","O21NR0567"]
["06CD03 Sistema de Aguas de la Ciudad de México","A21NR0021"]
["06CD03 Sistema de Aguas de la Ciudad de México","A21NR0030"]
["06CD03 Sistema de Aguas de la Ciudad de México","A21NR0048"]
["06CD03 Sistema de Aguas de la Ciudad de México","A21NR0060"]
["06CD03 Sistema de Aguas de la Ciudad de México","A21NR0069"]
["06CD03 Sistema de Aguas de la Ciudad de México","A21NR0077"]
["06CD03 Sistema de Aguas de la Ciudad de México","A21NR0085"]
["06CD03 Sistema de Aguas de la Ciudad de México","A21NR0093"]
["06CD03 Sistema de Aguas de la Ciudad de México","A21NR0097"]
["06CD03 Sistema de Aguas de la Ciudad de México","A21NR0104"]
["06CD03 Sistema de Aguas de la Ciudad de México","A21NR0105"]
["06CD03 Sistema de Aguas de la Ciudad de México","A21NR0106"]
["06CD03 Sistema de Aguas de la Ciudad de México","A21NR0278"]
["06CD03 Sistema de Aguas de la Ciudad de México","A21NR0341"]
["06CD03 Sistema de Aguas de la Ciudad de México","A21NR0348"]
["06CD03 Sistema de Aguas de la Ciudad de México","O20ML0001"]
["06CD03 Sistema de Aguas de la Ciudad de México","O20ML0002"]
["06CD03 Sistema de Aguas de la Ciudad de México","O20ML0004"]
["06CD03 Sistema de Aguas de la Ciudad de México","O20ML0005"]
["06CD03 Sistema de Aguas de la Ciudad de México","O20ML0006"]
["06CD03 Sistema de Aguas de la Ciudad de México","O20ML0008"]
["06CD03 Sistema de Aguas de la Ciudad de México","O20ML0009"]
["06CD03 Sistema de Aguas de la Ciudad de México","O20ML0010"]
["06CD03 Sistema de Aguas de la Ciudad de México","O20ML0011"]
["06CD03 Sistema de Aguas de la Ciudad de México","O20ML0012"]
["06CD03 Sistema de Aguas de la Ciudad de México","O20ML0013"]
["06CD03 Sistema de Aguas de la Ciudad de México","O20ML0014"]
["06CD03 Sistema de Aguas de la Ciudad de México","O20ML0015"]
["06CD03 Sistema de Aguas de la Ciudad de México","O20ML0016"]
["06CD03 Sistema de Aguas de la Ciudad de México","O20ML0020"]
["06CD03 Sistema de Aguas de la Ciudad de México","O20ML0021"]
["06CD03 Sistema de Aguas de la Ciudad de México","O20ML0023"]
["06CD03 Sistema de Aguas de la Ciudad de México","O20ML0024"]
["06CD03 Sistema de Aguas de la Ciudad de México","O20ML0028"]
["06CD03 Sistema de Aguas de la Ciudad de México","O20ML0029"]
["06CD03 Sistema de Aguas de la Ciudad de México","O21ML0003"]
["06CD03 Sistema de Aguas de la Ciudad de México","O21ML0004"]
["06CD03 Sistema de Aguas de la Ciudad de México","O21ML0005"]
["06CD03 Sistema de Aguas de la Ciudad de México","O21ML0006"]
["06CD03 Sistema de Aguas de la Ciudad de México","O21ML0007"]
["06CD03 Sistema de Aguas de la Ciudad de México","O21ML0008"]
["06CD03 Sistema de Aguas de la Ciudad de México","O21ML0009"]
["06CD03 Sistema de Aguas de la Ciudad de México","O21ML0010"]
["06CD03 Sistema de Aguas de la Ciudad de México","O21ML0011"]
["06CD03 Sistema de Aguas de la Ciudad de México","O21ML0012"]
["06CD03 Sistema de Aguas de la Ciudad de México","O21ML0013"]
["06CD03 Sistema de Aguas de la Ciudad de México","O21ML0014"]
["06CD03 Sistema de Aguas de la Ciudad de México","O21ML0016"]
["06CD03 Sistema de Aguas de la Ciudad de México","O21ML0017"]
["06CD03 Sistema de Aguas de la Ciudad de México","O21ML0018"]
["06CD03 Sistema de Aguas de la Ciudad de México","O21ML0019"]
["06CD03 Sistema de Aguas de la Ciudad de México","O21ML0020"]
["06CD03 Sistema de Aguas de la Ciudad de México","O21ML0021"]
["06CD03 Sistema de Aguas de la Ciudad de México","O21ML0022"]
["06CD03 Sistema de Aguas de la Ciudad de México","O21ML0023"]
["06CD03 Sistema de Aguas de la Ciudad de México","O21NR0024"]
["06CD03 Sistema de Aguas de la Ciudad de México","O21NR0026"]
["06CD03 Sistema de Aguas de la Ciudad de México","O21NR0045"]
["06CD03 Sistema de Aguas de la Ciudad de México","O21NR0105"]
["06CD03 Sistema de Aguas de la Ciudad de México","O21NR0115"]
["06CD03 Sistema de Aguas de la Ciudad de México","O21NR0125"]
["06CD03 Sistema de Aguas de la Ciudad de México","O21NR0135"]
["06CD03 Sistema de Aguas de la Ciudad de México","O21NR0145"]
["06CD03 Sistema de Aguas de la Ciudad de México","O21NR0154"]
["06CD03 Sistema de Aguas de la Ciudad de México","O21NR0163"]
["06CD03 Sistema de Aguas de la Ciudad de México","O21NR0171"]
["06CD03 Sistema de Aguas de la Ciudad de México","O21NR0172"]
["06CD03 Sistema de Aguas de la Ciudad de México","O21NR0178"]
["06CD03 Sistema de Aguas de la Ciudad de México","O21NR0179"]
["06CD03 Sistema de Aguas de la Ciudad de México","O21NR0185"]
["06CD03 Sistema de Aguas de la Ciudad de México","O21NR0186"]
["06CD03 Sistema de Aguas de la Ciudad de México","O21NR0216"]
["06CD03 Sistema de Aguas de la Ciudad de México","O21NR0217"]
["06CD03 Sistema de Aguas de la Ciudad de México","O21NR0218"]
["06CD03 Sistema de Aguas de la Ciudad de México","O21NR0219"]
["06CD03 Sistema de Aguas de la Ciudad de México","O21NR0220"]
["06CD03 Sistema de Aguas de la Ciudad de México","O21NR0221"]
["06CD03 Sistema de Aguas de la Ciudad de México","O21NR0229"]
["06CD03 Sistema de Aguas de la Ciudad de México","O21NR0230"]
["06CD03 Sistema de Aguas de la Ciudad de México","O21NR0237"]
["06CD03 Sistema de Aguas de la Ciudad de México","O21NR0239"]
["06CD03 Sistema de Aguas de la Ciudad de México","O21NR0240"]
["06CD03 Sistema de Aguas de la Ciudad de México","O21NR0241"]
["06CD03 Sistema de Aguas de la Ciudad de México","O21NR0242"]
["06CD03 Sistema de Aguas de la Ciudad de México","O21NR0243"]
["06CD03 Sistema de Aguas de la Ciudad de México","O21NR0244"]
["06CD03 Sistema de Aguas de la Ciudad de México","O21NR0245"]
["06CD03 Sistema de Aguas de la Ciudad de México","O21NR0246"]
["06CD03 Sistema de Aguas de la Ciudad de México","O21NR0247"]
["06CD03 Sistema de Aguas de la Ciudad de México","O21NR0248"]
["06CD03 Sistema de Aguas de la Ciudad de México","O21NR0273"]
["06CD03 Sistema de Aguas de la Ciudad de México","O21NR0563"]
["06CD03 Sistema de Aguas de la Ciudad de México","O21NR0564"]
["06CD03 Sistema de Aguas de la Ciudad de México","O21NR0565"]
["06P0FA Fondo Ambiental Público","A21NR0363"]
["06P0FA Fondo Ambiental Público","O21NR0569"]
["06PDPA Procuraduría Ambiental y del Ordenamiento Territorial","A21NR0346"]
["07C001 Secretaría de Obras y Servicios","A21NR0031"]
["07C001 Secretaría de Obras y Servicios","A21NR0049"]
["07C001 Secretaría de Obras y Servicios","A21NR0061"]
["07C001 Secretaría de Obras y Servicios","A21NR0070"]
["07C001 Secretaría de Obras y Servicios","A21NR0078"]
["07C001 Secretaría de Obras y Servicios","A21NR0086"]
["07C001 Secretaría de Obras y Servicios","A21NR0094"]
["07C001 Secretaría de Obras y Servicios","A21NR0107"]
["07C001 Secretaría de Obras y Servicios","A21NR0108"]
["07C001 Secretaría de Obras y Servicios","A21NR0109"]
["07C001 Secretaría de Obras y Servicios","A21NR0233"]
["07C001 Secretaría de Obras y Servicios","A21NR0317"]
["07C001 Secretaría de Obras y Servicios","A21NR0318"]
["07C001 Secretaría de Obras y Servicios","A21NR0378"]
["07C001 Secretaría de Obras y Servicios","A21NR0379"]
["07C001 Secretaría de Obras y Servicios","A21NR0380"]
["07C001 Secretaría de Obras y Servicios","A21NR0411"]
["07C001 Secretaría de Obras y Servicios","A21NR0502"]
["07C001 Secretaría de Obras y Servicios","I19ML0003"]
["07C001 Secretaría de Obras y Servicios","I19ML0004"]
["07C001 Secretaría de Obras y Servicios","O13ML0001"]
["07C001 Secretaría de Obras y Servicios","O13ML0002"]
["07C001 Secretaría de Obras y Servicios","O14ML0001"]
["07C001 Secretaría de Obras y Servicios","O16ML0002"]
["07C001 Secretaría de Obras y Servicios","O19ML0007"]
["07C001 Secretaría de Obras y Servicios","O19ML0009"]
["07C001 Secretaría de Obras y Servicios","O20ML0017"]
["07C001 Secretaría de Obras y Servicios","O20ML0019"]
["07C001 Secretaría de Obras y Servicios","O20ML0035"]
["07C001 Secretaría de Obras y Servicios","O20ML0036"]
["07C001 Secretaría de Obras y Servicios","O20ML0037"]
["07C001 Secretaría de Obras y Servicios","O20ML0038"]
["07C001 Secretaría de Obras y Servicios","O20ML0062"]
["07C001 Secretaría de Obras y Servicios","O20ML0063"]
["07C001 Secretaría de Obras y Servicios","O20ML0064"]
["07C001 Secretaría de Obras y Servicios","O20ML0065"]
["07C001 Secretaría de Obras y Servicios","O20ML0066"]
["07C001 Secretaría de Obras y Servicios","O20ML0067"]
["07C001 Secretaría de Obras y Servicios","O20ML0068"]
["07C001 Secretaría de Obras y Servicios","O20ML0069"]
["07C001 Secretaría de Obras y Servicios","O20ML0070"]
["07C001 Secretaría de Obras y Servicios","O20ML0071"]
["07C001 Secretaría de Obras y Servicios","O20ML0072"]
["07C001 Secretaría de Obras y Servicios","O20ML0073"]
["07C001 Secretaría de Obras y Servicios","O20ML0074"]
["07C001 Secretaría de Obras y Servicios","O20ML0075"]
["07C001 Secretaría de Obras y Servicios","O20ML0076"]
["07C001 Secretaría de Obras y Servicios","O20ML0077"]
["07C001 Secretaría de Obras y Servicios","O20ML0078"]
["07C001 Secretaría de Obras y Servicios","O21ML0024"]
["07C001 Secretaría de Obras y Servicios","O21NR0036"]
["07C001 Secretaría de Obras y Servicios","O21NR0037"]
["07C001 Secretaría de Obras y Servicios","O21NR0038"]
["07C001 Secretaría de Obras y Servicios","O21NR0039"]
["07C001 Secretaría de Obras y Servicios","O21NR0040"]
["07C001 Secretaría de Obras y Servicios","O21NR0041"]
["07C001 Secretaría de Obras y Servicios","O21NR0042"]
["07C001 Secretaría de Obras y Servicios","O21NR0043"]
["07C001 Secretaría de Obras y Servicios","O21NR0044"]
["07C001 Secretaría de Obras y Servicios","O21NR0187"]
["07C001 Secretaría de Obras y Servicios","O21NR0188"]
["07C001 Secretaría de Obras y Servicios","O21NR0189"]
["07C001 Secretaría de Obras y Servicios","O21NR0190"]
["07C001 Secretaría de Obras y Servicios","O21NR0191"]
["07C001 Secretaría de Obras y Servicios","O21NR0225"]
["07C001 Secretaría de Obras y Servicios","O21NR0226"]
["07C001 Secretaría de Obras y Servicios","O21NR0233"]
["07C001 Secretaría de Obras y Servicios","O21NR0234"]
["07C001 Secretaría de Obras y Servicios","O21NR0278"]
["07C001 Secretaría de Obras y Servicios","O21NR0279"]
["07C001 Secretaría de Obras y Servicios","O21NR0281"]
["07C001 Secretaría de Obras y Servicios","O21NR0282"]
["07C001 Secretaría de Obras y Servicios","O21NR0283"]
["07C001 Secretaría de Obras y Servicios","O21NR0284"]
["07C001 Secretaría de Obras y Servicios","O21NR0285"]
["07C001 Secretaría de Obras y Servicios","O21NR0286"]
["07C001 Secretaría de Obras y Servicios","O21NR0287"]
["07C001 Secretaría de Obras y Servicios","O21NR0288"]
["07C001 Secretaría de Obras y Servicios","O21NR0289"]
["07C001 Secretaría de Obras y Servicios","O21NR0290"]
["07C001 Secretaría de Obras y Servicios","O21NR0291"]
["07C001 Secretaría de Obras y Servicios","O21NR0308"]
["07C001 Secretaría de Obras y Servicios","O21NR0309"]
["07C001 Secretaría de Obras y Servicios","O21NR0310"]
["07C001 Secretaría de Obras y Servicios","O21NR0311"]
["07C001 Secretaría de Obras y Servicios","O21NR0325"]
["07C001 Secretaría de Obras y Servicios","O21NR0326"]
["07C001 Secretaría de Obras y Servicios","O21NR0327"]
["07C001 Secretaría de Obras y Servicios","O21NR0330"]
["07C001 Secretaría de Obras y Servicios","O21NR0331"]
["07C001 Secretaría de Obras y Servicios","O21NR0332"]
["07C001 Secretaría de Obras y Servicios","O21NR0333"]
["07C001 Secretaría de Obras y Servicios","O21NR0490"]
["07C001 Secretaría de Obras y Servicios","O21NR0491"]
["07C001 Secretaría de Obras y Servicios","O21NR0492"]
["07C001 Secretaría de Obras y Servicios","O21NR0493"]
["07C001 Secretaría de Obras y Servicios","O21NR0494"]
["07C001 Secretaría de Obras y Servicios","O21NR0495"]
["07C001 Secretaría de Obras y Servicios","O21NR0496"]
["07C001 Secretaría de Obras y Servicios","O21NR0497"]
["07C001 Secretaría de Obras y Servicios","O21NR0498"]
["07C001 Secretaría de Obras y Servicios","O21NR0499"]
["07C001 Secretaría de Obras y Servicios","O21NR0500"]
["07C001 Secretaría de Obras y Servicios","O21NR0501"]
["07C001 Secretaría de Obras y Servicios","O21NR0502"]
["07C001 Secretaría de Obras y Servicios","O21NR0503"]
["07C001 Secretaría de Obras y Servicios","O21NR0504"]
["07C001 Secretaría de Obras y Servicios","O21NR0505"]
["07C001 Secretaría de Obras y Servicios","O21NR0529"]
["07C001 Secretaría de Obras y Servicios","O21NR0531"]
["07C001 Secretaría de Obras y Servicios","O21NR0542"]
["07C001 Secretaría de Obras y Servicios","O21NR0546"]
["07C001 Secretaría de Obras y Servicios","O21NR0548"]
["07C001 Secretaría de Obras y Servicios","O21NR0549"]
["07C001 Secretaría de Obras y Servicios","O21NR0572"]
["07C001 Secretaría de Obras y Servicios","O21NR0573"]
["07C001 Secretaría de Obras y Servicios","O21NR0574"]
["07C001 Secretaría de Obras y Servicios","O21NR0575"]
["07C001 Secretaría de Obras y Servicios","O21NR0586"]
["07C001 Secretaría de Obras y Servicios","O21NR0587"]
["07C001 Secretaría de Obras y Servicios","O21NR0588"]
["07C001 Secretaría de Obras y Servicios","O21NR0803"]
["07C001 Secretaría de Obras y Servicios","O21NR0878"]
["07C001 Secretaría de Obras y Servicios","O21NR0879"]
["07C001 Secretaría de Obras y Servicios","O21NR0910"]
["07C001 Secretaría de Obras y Servicios","O21NR0911"]
["07C001 Secretaría de Obras y Servicios","O21NR0912"]
["07C001 Secretaría de Obras y Servicios","O21NR0938"]
["07C001 Secretaría de Obras y Servicios","O21NR0939"]
["07C001 Secretaría de Obras y Servicios","O21NR0957"]
["07C001 Secretaría de Obras y Servicios","O21NR0958"]
["07C001 Secretaría de Obras y Servicios","O21NR0959"]
["07C001 Secretaría de Obras y Servicios","O21NR1146"]
["07C001 Secretaría de Obras y Servicios","O21NR1147"]
["07C001 Secretaría de Obras y Servicios","O21NR1148"]
["07C001 Secretaría de Obras y Servicios","O21NR1149"]
["07C001 Secretaría de Obras y Servicios","O21NR1151"]
["07C001 Secretaría de Obras y Servicios","O21NR1152"]
["07C001 Secretaría de Obras y Servicios","O21NR1153"]
["07C001 Secretaría de Obras y Servicios","O21NR1232"]
["07C001 Secretaría de Obras y Servicios","O21NR1233"]
["07C001 Secretaría de Obras y Servicios","O21NR1234"]
["07C001 Secretaría de Obras y Servicios","O21NR1235"]
["07C001 Secretaría de Obras y Servicios","O21NR1236"]
["07C001 Secretaría de Obras y Servicios","O21NR1237"]
["07C001 Secretaría de Obras y Servicios","O21NR1333"]
["07C001 Secretaría de Obras y Servicios","O21NR1409"]
["07C001 Secretaría de Obras y Servicios","O21NR1413"]
["07C001 Secretaría de Obras y Servicios","O21NR1414"]
["07CD01 Planta Productora de Mezclas Asfalticas","A21NR0381"]
["07PDIF Instituto Local de la Infraestructura Física Educativa","A21NR0284"]
["07PDIF Instituto Local de la Infraestructura Física Educativa","A21NR0343"]
["07PDIF Instituto Local de la Infraestructura Física Educativa","A21NR0344"]
["07PDIF Instituto Local de la Infraestructura Física Educativa","A21NR0374"]
["07PDIF Instituto Local de la Infraestructura Física Educativa","A21NR0394"]
["07PDIF Instituto Local de la Infraestructura Física Educativa","A21NR0395"]
["07PDIF Instituto Local de la Infraestructura Física Educativa","A21NR0446"]
["07PDIF Instituto Local de la Infraestructura Física Educativa","A21NR0447"]
["07PDIF Instituto Local de la Infraestructura Física Educativa","A21NR0498"]
["07PDIF Instituto Local de la Infraestructura Física Educativa","O21NR0062"]
["07PDIF Instituto Local de la Infraestructura Física Educativa","O21NR0537"]
["07PDIF Instituto Local de la Infraestructura Física Educativa","O21NR0538"]
["07PDIF Instituto Local de la Infraestructura Física Educativa","O21NR0539"]
["07PDIF Instituto Local de la Infraestructura Física Educativa","O21NR0540"]
["07PDIF Instituto Local de la Infraestructura Física Educativa","O21NR0541"]
["07PDIF Instituto Local de la Infraestructura Física Educativa","O21NR0552"]
["07PDIF Instituto Local de la Infraestructura Física Educativa","O21NR0555"]
["07PDIF Instituto Local de la Infraestructura Física Educativa","O21NR0556"]
["07PDIF Instituto Local de la Infraestructura Física Educativa","O21NR0577"]
["07PDIF Instituto Local de la Infraestructura Física Educativa","O21NR0578"]
["07PDIF Instituto Local de la Infraestructura Física Educativa","O21NR0583"]
["07PDIF Instituto Local de la Infraestructura Física Educativa","O21NR0589"]
["07PDIF Instituto Local de la Infraestructura Física Educativa","O21NR0783"]
["07PDIF Instituto Local de la Infraestructura Física Educativa","O21NR0917"]
["07PDIF Instituto Local de la Infraestructura Física Educativa","O21NR0987"]
["07PDIF Instituto Local de la Infraestructura Física Educativa","O21NR1345"]
["07PDIS Instituto para la Seguridad de las Construcciones","A21NR0389"]
["08C001 Secretaría de Inclusión y Bienestar Social","A21NR0422"]
["08PDCE Consejo de Evaluación del Desarrollo Social","A21NR0330"]
["08PDCE Consejo de Evaluación del Desarrollo Social","A21NR0331"]
["08PDCE Consejo de Evaluación del Desarrollo Social","A21NR0332"]
["08PDCE Consejo de Evaluación del Desarrollo Social","A21NR0402"]
["08PDCP Consejo para Prevenir y Eliminar la Discriminación","A21NR0222"]
["08PDCP Consejo para Prevenir y Eliminar la Discriminación","A21NR0499"]
["09C001 Secretaría de Administración y Finanzas","A21NR0280"]
["09PDLR Caja de Previsión para Trabajadores a Lista de Raya","A21NR0235"]
["09PDLR Caja de Previsión para Trabajadores a Lista de Raya","A21NR0272"]
["09PECM Corporación Mexicana de Impresión, S.A. de C.V.","A21NR0260"]
["09PECM Corporación Mexicana de Impresión, S.A. de C.V.","A21NR0261"]
["09PECM Corporación Mexicana de Impresión, S.A. de C.V.","A21NR0469"]
["09PESM Servicios Metropolitanos, S.A. de C.V.","A21NR0265"]
["09PESM Servicios Metropolitanos, S.A. de C.V.","A21NR0279"]
["09PFCH Fideicomiso del Centro Histórico","O20ML0030"]
["09PFCH Fideicomiso del Centro Histórico","O20ML0031"]
["09PFCH Fideicomiso del Centro Histórico","O20ML0032"]
["09PFCH Fideicomiso del Centro Histórico","O20ML0033"]
["09PFCH Fideicomiso del Centro Histórico","O21NR0571"]
["09PFCH Fideicomiso del Centro Histórico","O21NR1150"]
["09PFRC Fideicomiso de Recuperación Crediticia","A21NR0123"]
["09PFRC Fideicomiso de Recuperación Crediticia","A21NR0124"]
["10C001 Secretaría de Movilidad","A21NR0167"]
["10C001 Secretaría de Movilidad","A21NR0204"]
["10C001 Secretaría de Movilidad","A21NR0226"]
["10C001 Secretaría de Movilidad","A21NR0274"]
["10C001 Secretaría de Movilidad","A21NR0445"]
["10C001 Secretaría de Movilidad","A21NR0507"]
["10CD01 Órgano Regulador de Transporte","I19ML0001"]
["10CD01 Órgano Regulador de Transporte","I19ML0002"]
["10P0AC Fondo Público de Atención al Ciclista y al Peatón","O21NR0063"]
["10P0AC Fondo Público de Atención al Ciclista y al Peatón","O21NR0551"]
["10P0TP Fideicomiso para el Fondo de Promoción para el Financiamiento del Transporte Público","A21NR0340"]
["10PDMB Metrobús","A21NR0149"]
["10PDMB Metrobús","A21NR0347"]
["10PDME Sistema de Transporte Colectivo Metro","A19ML0001"]
["10PDME Sistema de Transporte Colectivo Metro","A21NR0032"]
["10PDME Sistema de Transporte Colectivo Metro","A21NR0178"]
["10PDME Sistema de Transporte Colectivo Metro","A21NR0337"]
["10PDME Sistema de Transporte Colectivo Metro","A21NR0491"]
["10PDME Sistema de Transporte Colectivo Metro","O10ML0001"]
["10PDME Sistema de Transporte Colectivo Metro","O21ML0002"]
["10PDME Sistema de Transporte Colectivo Metro","O21ML0025"]
["10PDME Sistema de Transporte Colectivo Metro","O21ML0028"]
["10PDME Sistema de Transporte Colectivo Metro","O21NR0093"]
["10PDME Sistema de Transporte Colectivo Metro","O21NR0508"]
["10PDME Sistema de Transporte Colectivo Metro","O21NR0576"]
["10PDME Sistema de Transporte Colectivo Metro","O21NR1407"]
["10PDTE Servicio de Transportes Eléctricos","A21NR0223"]
["10PDTE Servicio de Transportes Eléctricos","A21NR0224"]
["10PDTE Servicio de Transportes Eléctricos","A21NR0225"]
["10PDTE Servicio de Transportes Eléctricos","A21NR0324"]
["10PDTE Servicio de Transportes Eléctricos","A21NR0325"]
["11C001 Secretaría de Seguridad Ciudadana","A21NR0148"]
["11C001 Secretaría de Seguridad Ciudadana","A21NR0179"]
["11C001 Secretaría de Seguridad Ciudadana","A21NR0299"]
["11C001 Secretaría de Seguridad Ciudadana","A21NR0371"]
["11C001 Secretaría de Seguridad Ciudadana","A21NR0461"]
["11C001 Secretaría de Seguridad Ciudadana","A21NR0533"]
["11C001 Secretaría de Seguridad Ciudadana","O21NR0519"]
["11CD01 Universidad de la Policía","A21NR0191"]
["11CD01 Universidad de la Policía","A21NR0258"]
["11CD03 Policía Bancaria e Industrial","A21NR0259"]
["13C001 Secretaría de la Contraloría General","A21NR0126"]
["13C001 Secretaría de la Contraloría General","A21NR0128"]
["13C001 Secretaría de la Contraloría General","A21NR0129"]
["13C001 Secretaría de la Contraloría General","A21NR0130"]
["13C001 Secretaría de la Contraloría General","A21NR0131"]
["13C001 Secretaría de la Contraloría General","A21NR0132"]
["13C001 Secretaría de la Contraloría General","A21NR0133"]
["13C001 Secretaría de la Contraloría General","A21NR0134"]
["13C001 Secretaría de la Contraloría General","A21NR0135"]
["13C001 Secretaría de la Contraloría General","A21NR0136"]
["13C001 Secretaría de la Contraloría General","A21NR0137"]
["25C001 Consejería Jurídica y de Servicios Legales","A21NR0528"]
["25C001 Consejería Jurídica y de Servicios Legales","A21NR0534"]
["26C001 Secretaría de Salud","A21NR0139"]
["26C001 Secretaría de Salud","A21NR0382"]
["26CD01 Agencia de Protección Sanitaria","A21NR0162"]
["26PDSP Servicios de Salud Pública","A21NR0205"]
["26PDSP Servicios de Salud Pública","A21NR0218"]
["26PDSP Servicios de Salud Pública","A21NR0219"]
["26PDSP Servicios de Salud Pública","A21NR0276"]
["26PDSP Servicios de Salud Pública","A21NR0277"]
["26PDSP Servicios de Salud Pública","A21NR0352"]
["26PDSP Servicios de Salud Pública","A21NR0353"]
["26PDSP Servicios de Salud Pública","A21NR0355"]
["26PDSP Servicios de Salud Pública","A21NR0356"]
["26PDSP Servicios de Salud Pública","A21NR0375"]
["26PDSP Servicios de Salud Pública","A21NR0385"]
["26PDSP Servicios de Salud Pública","A21NR0508"]
["31C000 Secretaría de Cultura","A21NR0458"]
["31C000 Secretaría de Cultura","A21NR0460"]
["33C001 Secretaría de Trabajo y Fomento Al Empleo","A21NR0262"]
["33C001 Secretaría de Trabajo y Fomento Al Empleo","A21NR0263"]
["34C001 Secretaría de Gestión Integral de Riesgos y Protección Civil","A21NR0351"]
["34PDHB Heroico Cuerpo de Bomberos","A21NR0033"]
["34PDHB Heroico Cuerpo de Bomberos","A21NR0050"]
["34PDHB Heroico Cuerpo de Bomberos","A21NR0436"]
["36C001 Secretaría de Educación, Ciencia, Tecnología e Innovación","A21NR0170"]
["36C001 Secretaría de Educación, Ciencia, Tecnología e Innovación","A21NR0229"]
["36C001 Secretaría de Educación, Ciencia, Tecnología e Innovación","A21NR0329"]
["36C001 Secretaría de Educación, Ciencia, Tecnología e Innovación","A21NR0476"]
["36C001 Secretaría de Educación, Ciencia, Tecnología e Innovación","A21NR0511"]
["36C001 Secretaría de Educación, Ciencia, Tecnología e Innovación","A21NR0512"]
["36C001 Secretaría de Educación, Ciencia, Tecnología e Innovación","A21NR0514"]
["36CD01 Universidad de la Salud","A21NR0034"]
["36CD01 Universidad de la Salud","A21NR0051"]
["36CD01 Universidad de la Salud","A21NR0062"]
["36CD01 Universidad de la Salud","A21NR0071"]
["36CD01 Universidad de la Salud","A21NR0079"]
["36CD01 Universidad de la Salud","A21NR0087"]
["36CDES Instituto de Estudios Superiores de la Ciudad de México \"Rosario Castellanos\"","A21NR0035"]
["36CDES Instituto de Estudios Superiores de la Ciudad de México \"Rosario Castellanos\"","A21NR0052"]
["36CDES Instituto de Estudios Superiores de la Ciudad de México \"Rosario Castellanos\"","A21NR0150"]
["36CDES Instituto de Estudios Superiores de la Ciudad de México \"Rosario Castellanos\"","A21NR0151"]
["36CDES Instituto de Estudios Superiores de la Ciudad de México \"Rosario Castellanos\"","A21NR0152"]
["36CDES Instituto de Estudios Superiores de la Ciudad de México \"Rosario Castellanos\"","A21NR0153"]
["36CDES Instituto de Estudios Superiores de la Ciudad de México \"Rosario Castellanos\"","A21NR0154"]
["36CDES Instituto de Estudios Superiores de la Ciudad de México \"Rosario Castellanos\"","A21NR0156"]
["36CDES Instituto de Estudios Superiores de la Ciudad de México \"Rosario Castellanos\"","A21NR0157"]
["36CDES Instituto de Estudios Superiores de la Ciudad de México \"Rosario Castellanos\"","A21NR0159"]
["36CDES Instituto de Estudios Superiores de la Ciudad de México \"Rosario Castellanos\"","A21NR0396"]
["36CDES Instituto de Estudios Superiores de la Ciudad de México \"Rosario Castellanos\"","A21NR0397"]
["36CDES Instituto de Estudios Superiores de la Ciudad de México \"Rosario Castellanos\"","A21NR0398"]
["36PDID Instituto del Deporte","A21NR0400"]
["36PDID Instituto del Deporte","A21NR0440"]
["36PDID Instituto del Deporte","A21NR0510"]
["36PFEG Fideicomiso Educación Garantizada","A21NR0144"]
["38C001 Secretaría de las Mujeres","A21NR0236"]
["38C001 Secretaría de las Mujeres","A21NR0285"]
["38C001 Secretaría de las Mujeres","A21NR0412"]
["38C001 Secretaría de las Mujeres","A21NR0413"]
["38C001 Secretaría de las Mujeres","A21NR0414"]

{"sheet":"CAT_PP","index":18,"n_rows":1056,"n_cols":2,"rows_kept":1056,"cut":false,"hidden":true,"merged":[]}
["N_UR","N_PP"]
["01C001 Jefatura de Gobierno","M001 ACTIVIDADES DE APOYO ADMINISTRATIVO"]
["01C001 Jefatura de Gobierno","N001 CUMPLIMIENTO DE LOS PROGRAMAS DE PROTECCIÓN CIVIL"]
["01C001 Jefatura de Gobierno","O001 ACTIVIDADES DE APOYO A LA FUNCIÓN PÚBLICA Y BUEN GOBIERNO"]
["01C001 Jefatura de Gobierno","P001 PROMOCIÓN INTEGRAL PARA EL CUMPLIMIENTO DE LOS DERECHOS HUMANOS DE LAS NIÑAS Y MUJERES"]
["01C001 Jefatura de Gobierno","P002 PROMOCIÓN INTEGRAL PARA EL CUMPLIMIENTO DE LOS DERECHOS HUMANOS"]
["01C001 Jefatura de Gobierno","P004 PROMOCIÓN INTEGRAL PARA EL CUMPLIMIENTO DE LOS DERECHOS DE LA NIÑEZ Y DE LA ADOLECENCIA"]
["01C001 Jefatura de Gobierno","P020 PLANEACIÓN Y SEGUIMIENTO DE LA POLÍTICA GUBERNAMENTAL"]
["01C001 Jefatura de Gobierno","U011 PROGRAMA PARA LA RECONSTRUCCIÓN"]
["01CD03 Centro de Comando, Control, Cómputo, Comunicaciones y Contacto Ciudadano","E065 SERVICIO INTEGRAL DE OPERACIÓN Y ATENCIÓN A EMERGENCIAS"]
["01CD03 Centro de Comando, Control, Cómputo, Comunicaciones y Contacto Ciudadano","M001 ACTIVIDADES DE APOYO ADMINISTRATIVO"]
["01CD03 Centro de Comando, Control, Cómputo, Comunicaciones y Contacto Ciudadano","N001 CUMPLIMIENTO DE LOS PROGRAMAS DE PROTECCIÓN CIVIL"]
["01CD03 Centro de Comando, Control, Cómputo, Comunicaciones y Contacto Ciudadano","O001 ACTIVIDADES DE APOYO A LA FUNCIÓN PÚBLICA Y BUEN GOBIERNO"]
["01CD03 Centro de Comando, Control, Cómputo, Comunicaciones y Contacto Ciudadano","P001 PROMOCIÓN INTEGRAL PARA EL CUMPLIMIENTO DE LOS DERECHOS HUMANOS DE LAS NIÑAS Y MUJERES"]
["01CD03 Centro de Comando, Control, Cómputo, Comunicaciones y Contacto Ciudadano","P002 PROMOCIÓN INTEGRAL PARA EL CUMPLIMIENTO DE LOS DERECHOS HUMANOS"]
["01CD03 Centro de Comando, Control, Cómputo, Comunicaciones y Contacto Ciudadano","P004 PROMOCIÓN INTEGRAL PARA EL CUMPLIMIENTO DE LOS DERECHOS DE LA NIÑEZ Y DE LA ADOLECENCIA"]
["01CD06 Agencia Digital de Innovación Pública","E005 ACCIONES PARA MEJORAR LA GOBERNANZA DIGITAL"]
["01CD06 Agencia Digital de Innovación Pública","E110 ATENCIÓN TELEFÓNICA SOBRE SERVICIOS DE NO EMERGENCIA"]
["01CD06 Agencia Digital de Innovación Pública","M001 ACTIVIDADES DE APOYO ADMINISTRATIVO"]
["01CD06 Agencia Digital de Innovación Pública","N001 CUMPLIMIENTO DE LOS PROGRAMAS DE PROTECCIÓN CIVIL"]
["01CD06 Agencia Digital de Innovación Pública","O001 ACTIVIDADES DE APOYO A LA FUNCIÓN PÚBLICA Y BUEN GOBIERNO"]
["01CD06 Agencia Digital de Innovación Pública","P001 PROMOCIÓN INTEGRAL PARA EL CUMPLIMIENTO DE LOS DERECHOS HUMANOS DE LAS NIÑAS Y MUJERES"]
["01CD06 Agencia Digital de Innovación Pública","P002 PROMOCIÓN INTEGRAL PARA EL CUMPLIMIENTO DE LOS DERECHOS HUMANOS"]
["01CD06 Agencia Digital de Innovación Pública","P004 PROMOCIÓN INTEGRAL PARA EL CUMPLIMIENTO DE LOS DERECHOS DE LA NIÑEZ Y DE LA ADOLECENCIA"]
["01P0ES Fondo para el Desarrollo Económico y Social","M001 ACTIVIDADES DE APOYO ADMINISTRATIVO"]
["01P0ES Fondo para el Desarrollo Económico y Social","N001 CUMPLIMIENTO DE LOS PROGRAMAS DE PROTECCIÓN CIVIL"]
["01P0ES Fondo para el Desarrollo Económico y Social","O001 ACTIVIDADES DE APOYO A LA FUNCIÓN PÚBLICA Y BUEN GOBIERNO"]
["01P0ES Fondo para el Desarrollo Económico y Social","P001 PROMOCIÓN INTEGRAL PARA EL CUMPLIMIENTO DE LOS DERECHOS HUMANOS DE LAS NIÑAS Y MUJERES"]
["01P0ES Fondo para el Desarrollo Económico y Social","P002 PROMOCIÓN INTEGRAL PARA EL CUMPLIMIENTO DE LOS DERECHOS HUMANOS"]
["01P0ES Fondo para el Desarrollo Económico y Social","P004 PROMOCIÓN INTEGRAL PARA EL CUMPLIMIENTO DE LOS DERECHOS DE LA NIÑEZ Y DE LA ADOLECENCIA"]
["01P0ES Fondo para el Desarrollo Económico y Social","P041 PLANEACIÓN, ELABORACIÓN,  SEGUIMIENTO  Y EVALUACIÓN DE LAS POLÍTICAS PÚBLICAS Y NORMATIVIDAD EN MATERIA DE DESARROLLO ECONÓMICO, SOCIAL Y AMBIENTAL"]
["02C001 Secretaría de Gobierno","E014 ATENCIÓN A PERSONAS ADULTAS PRIVADAS DE SU LIBERTAD Y EN PROCEDIMIENTO LEGAL"]
["02C001 Secretaría de Gobierno","E057 REINSERCIÓN POS PENITENCIARIA"]
["02C001 Secretaría de Gobierno","E063 SEGURIDAD PROCESAL"]
["02C001 Secretaría de Gobierno","E068 PREVENCIÓN Y ATENCIÓN A MENORES INFRACTORES"]
["02C001 Secretaría de Gobierno","E103 ACCIONES DE GABINETE DE SEGURIDAD"]
["02C001 Secretaría de Gobierno","M001 ACTIVIDADES DE APOYO ADMINISTRATIVO"]
["02C001 Secretaría de Gobierno","N001 CUMPLIMIENTO DE LOS PROGRAMAS DE PROTECCIÓN CIVIL"]
["02C001 Secretaría de Gobierno","O001 ACTIVIDADES DE APOYO A LA FUNCIÓN PÚBLICA Y BUEN GOBIERNO"]
["02C001 Secretaría de Gobierno","P001 PROMOCIÓN INTEGRAL PARA EL CUMPLIMIENTO DE LOS DERECHOS HUMANOS DE LAS NIÑAS Y MUJERES"]
["02C001 Secretaría de Gobierno","P002 PROMOCIÓN INTEGRAL PARA EL CUMPLIMIENTO DE LOS DERECHOS HUMANOS"]
["02C001 Secretaría de Gobierno","P007 GOBERNABILIDAD Y MEJORAMIENTO DE LOS NIVELES DE VIDA DE LOS HABITANTES DE LA CIUDAD DE MÉXICO"]
["02C001 Secretaría de Gobierno","P023 PLANEACIÓN Y GESTIÓN DEL ORDENAMIENTO TERRITORIAL Y ASENTAMIENTOS HUMANOS"]
["02C001 Secretaría de Gobierno","S005 ATENCIÓN PRIORITARIA A PERSONAS EGRESADAS DEL SISTEMA DE JUSTICIA PENAL"]
["02C001 Secretaría de Gobierno","S216 APOYO PARA EL IMPULSO LABORAL DE PERSONAS EGRESADAS DEL SISTEMA DE JUSTICIA PENAL DE LA CIUDAD DE MÉXICO (ATENCIÓN PRIORITARIA A PERSONAS LIBERADAS EN SITUACIÓN DE VULNERABILIDAD)"]
["02C001 Secretaría de Gobierno","U019 SÍ AL DESARME, SÍ A LA PAZ"]
["02CD01 Alcaldía Álvaro Obregón","E118 ACCIONES POLICIALES Y PREVENCIÓN DEL DELITO"]
["02CD01 Alcaldía Álvaro Obregón","E122 REFORESTACIÓN EN SUELO DE CONSERVACIÓN"]
["02CD01 Alcaldía Álvaro Obregón","E123 MANEJO INTEGRAL DE RESIDUOS SÓLIDOS URBANOS"]
["02CD01 Alcaldía Álvaro Obregón","E127 PREVENCIÓN Y CONTROL DE ENFERMEDADES"]
["02CD01 Alcaldía Álvaro Obregón","E130 OPERACIÓN DE PANTEONES PÚBLICOS"]
["02CD01 Alcaldía Álvaro Obregón","E137 OPERACIÓN DE CENTROS DE DESARROLLO INFANTIL"]
["02CD01 Alcaldía Álvaro Obregón","E152 PROMOCIÓN DE AUTOCUIDADO Y ENVEGECIMIENTO DIGNO DE LAS PERSONAS MAYORES Y GRUPOS DE ATENCIÓN PRIORITARIA"]
["02CD01 Alcaldía Álvaro Obregón","F031 ORGANIZACIÓN DE EVENTOS CÍVICOS, FESTIVIDADES PATRIAS Y TRADICIONES"]
["02CD01 Alcaldía Álvaro Obregón","F032 PROMOCIÓN DE LA CULTURA FÍSICA Y DEPORTIVA"]
["02CD01 Alcaldía Álvaro Obregón","F033 PROYECTOS DE DESARROLLO Y  FOMENTO AGROPECUARIO"]
["02CD01 Alcaldía Álvaro Obregón","K014 INFRAESTRUCTURA DE AGUA POTABLE, ALCANTARILLADO Y SANEAMIENTO"]
["02CD01 Alcaldía Álvaro Obregón","K016 REHABILITACIÓN Y MANTENIMIENTO DE INFRAESTRUCTURA PÚBLICA"]
["02CD01 Alcaldía Álvaro Obregón","K017 ACCIONES DE OBRAS Y SERVICIOS PARA LA REGENERACIÓN DE BARRIOS"]
["02CD01 Alcaldía Álvaro Obregón","M001 ACTIVIDADES DE APOYO ADMINISTRATIVO"]
["02CD01 Alcaldía Álvaro Obregón","N001 CUMPLIMIENTO DE LOS PROGRAMAS DE PROTECCIÓN CIVIL"]
["02CD01 Alcaldía Álvaro Obregón","O001 ACTIVIDADES DE APOYO A LA FUNCIÓN PÚBLICA Y BUEN GOBIERNO"]
["02CD01 Alcaldía Álvaro Obregón","P001 PROMOCIÓN INTEGRAL PARA EL CUMPLIMIENTO DE LOS DERECHOS HUMANOS DE LAS NIÑAS Y MUJERES"]
["02CD01 Alcaldía Álvaro Obregón","P002 PROMOCIÓN INTEGRAL PARA EL CUMPLIMIENTO DE LOS DERECHOS HUMANOS"]
["02CD01 Alcaldía Álvaro Obregón","P004 PROMOCIÓN INTEGRAL PARA EL CUMPLIMIENTO DE LOS DERECHOS DE LA NIÑEZ Y DE LA ADOLECENCIA"]
["02CD01 Alcaldía Álvaro Obregón","P049 PLANEACIÓN Y GESTIÓN DEL ORDENAMIENTO TERRITORIAL Y ASENTAMIENTOS HUMANOS"]
["02CD01 Alcaldía Álvaro Obregón","S076 PROMOTORES DEL DESARROLLO SOCIAL"]
["02CD01 Alcaldía Álvaro Obregón","U026 APOYOS ECONÓMICOS Y OTRAS AYUDAS SOCIALES"]
["02CD02 Alcaldía Azcapotzalco","E118 ACCIONES POLICIALES Y PREVENCIÓN DEL DELITO"]
["02CD02 Alcaldía Azcapotzalco","E119 FORTALECIMIENTO EN MATERIA JURÍDICA"]
["02CD02 Alcaldía Azcapotzalco","E120 ATENCIÓN VETERINARIA"]
["02CD02 Alcaldía Azcapotzalco","E123 MANEJO INTEGRAL DE RESIDUOS SÓLIDOS URBANOS"]
["02CD02 Alcaldía Azcapotzalco","E124 PROGRAMA INTEGRAL DE MOVILIDAD INTELIGENTE"]
["02CD02 Alcaldía Azcapotzalco","E127 PREVENCIÓN Y CONTROL DE ENFERMEDADES"]
["02CD02 Alcaldía Azcapotzalco","E128 MANTENIMIENTO Y REHABILITACIÓN DE ÁREAS VERDES"]
["02CD02 Alcaldía Azcapotzalco","E130 OPERACIÓN DE PANTEONES PÚBLICOS"]
["02CD02 Alcaldía Azcapotzalco","E138 ATENCIÓN Y PREVENCIÓN DE LA VIOLENCIA INTRAFAMILIAR"]
["02CD02 Alcaldía Azcapotzalco","E142 APOYO INTEGRAL PARA PERSONAS CON DISCAPACIDAD"]
["02CD02 Alcaldía Azcapotzalco","E150 FOMENTO Y MEJORAMIENTO DE LOS MERCADOS PÚBLICOS DE LA CIUDAD DE MÉXICO"]
["02CD02 Alcaldía Azcapotzalco","F029 FINANCIAMIENTO A LAS MIPYMES"]
["02CD02 Alcaldía Azcapotzalco","F031 ORGANIZACIÓN DE EVENTOS CÍVICOS, FESTIVIDADES PATRIAS Y TRADICIONES"]
["02CD02 Alcaldía Azcapotzalco","K014 INFRAESTRUCTURA DE AGUA POTABLE, ALCANTARILLADO Y SANEAMIENTO"]
["02CD02 Alcaldía Azcapotzalco","K016 REHABILITACIÓN Y MANTENIMIENTO DE INFRAESTRUCTURA PÚBLICA"]
["02CD02 Alcaldía Azcapotzalco","M001 ACTIVIDADES DE APOYO ADMINISTRATIVO"]
["02CD02 Alcaldía Azcapotzalco","N001 CUMPLIMIENTO DE LOS PROGRAMAS DE PROTECCIÓN CIVIL"]
["02CD02 Alcaldía Azcapotzalco","O001 ACTIVIDADES DE APOYO A LA FUNCIÓN PÚBLICA Y BUEN GOBIERNO"]
["02CD02 Alcaldía Azcapotzalco","P001 PROMOCIÓN INTEGRAL PARA EL CUMPLIMIENTO DE LOS DERECHOS HUMANOS DE LAS NIÑAS Y MUJERES"]
["02CD02 Alcaldía Azcapotzalco","P002 PROMOCIÓN INTEGRAL PARA EL CUMPLIMIENTO DE LOS DERECHOS HUMANOS"]
["02CD02 Alcaldía Azcapotzalco","P004 PROMOCIÓN INTEGRAL PARA EL CUMPLIMIENTO DE LOS DERECHOS DE LA NIÑEZ Y DE LA ADOLECENCIA"]
["02CD02 Alcaldía Azcapotzalco","P048 PLANEACIÓN, SEGUIMIENTO Y EVALUACIÓN A POLÍTICAS PÚBLICAS"]
["02CD02 Alcaldía Azcapotzalco","P050 PLANEACIÓN Y GESTIÓN  PARA EL DESARROLLO SOCIAL INTEGRAL E INCLUYENTE"]
["02CD02 Alcaldía Azcapotzalco","S079 APOYO A UNIDADES HABITACIONALES"]
["02CD02 Alcaldía Azcapotzalco","S080 APOYO  A CUIDADORAS  Y  CUIDADORES DE 58 A 64 AÑOS"]
["02CD02 Alcaldía Azcapotzalco","S081 ALIMENTACIÓN A NIÑAS, NIÑOS Y PERSONAL ADSCRITO A LA JEFATURA DE LOS CENTROS DE DESARROLLO INFANTIL ICENDIS"]
["02CD02 Alcaldía Azcapotzalco","S082 EMPODERAMIENTO MUJERES AZCAPOTZALCO"]
["02CD02 Alcaldía Azcapotzalco","S083 INICIATIVAS JUVENILES AZCAPOTZALCO"]
["02CD02 Alcaldía Azcapotzalco","S084 JUNTOS HAGAMOS DEPORTE"]
["02CD02 Alcaldía Azcapotzalco","S085 APOYO ECONÓMICO A MÚSICOS DE LA SINFÓNICA DE AZCAPOTZALCO"]
["02CD02 Alcaldía Azcapotzalco","U026 APOYOS ECONÓMICOS Y OTRAS AYUDAS SOCIALES"]
["02CD03 Alcaldía Benito Juárez","E119 FORTALECIMIENTO EN MATERIA JURÍDICA"]
["02CD03 Alcaldía Benito Juárez","E123 MANEJO INTEGRAL DE RESIDUOS SÓLIDOS URBANOS"]
["02CD03 Alcaldía Benito Juárez","E128 MANTENIMIENTO Y REHABILITACIÓN DE ÁREAS VERDES"]
["02CD03 Alcaldía Benito Juárez","E150 FOMENTO Y MEJORAMIENTO DE LOS MERCADOS PÚBLICOS DE LA CIUDAD DE MÉXICO"]
["02CD03 Alcaldía Benito Juárez","K016 REHABILITACIÓN Y MANTENIMIENTO DE INFRAESTRUCTURA PÚBLICA"]
["02CD03 Alcaldía Benito Juárez","M001 ACTIVIDADES DE APOYO ADMINISTRATIVO"]
["02CD03 Alcaldía Benito Juárez","N001 CUMPLIMIENTO DE LOS PROGRAMAS DE PROTECCIÓN CIVIL"]
["02CD03 Alcaldía Benito Juárez","O001 ACTIVIDADES DE APOYO A LA FUNCIÓN PÚBLICA Y BUEN GOBIERNO"]
["02CD03 Alcaldía Benito Juárez","P001 PROMOCIÓN INTEGRAL PARA EL CUMPLIMIENTO DE LOS DERECHOS HUMANOS DE LAS NIÑAS Y MUJERES"]
["02CD03 Alcaldía Benito Juárez","P002 PROMOCIÓN INTEGRAL PARA EL CUMPLIMIENTO DE LOS DERECHOS HUMANOS"]
["02CD03 Alcaldía Benito Juárez","P004 PROMOCIÓN INTEGRAL PARA EL CUMPLIMIENTO DE LOS DERECHOS DE LA NIÑEZ Y DE LA ADOLECENCIA"]
["02CD03 Alcaldía Benito Juárez","U026 APOYOS ECONÓMICOS Y OTRAS AYUDAS SOCIALES"]
["02CD04 Alcaldía Coyoacán","E120 ATENCIÓN VETERINARIA"]
["02CD04 Alcaldía Coyoacán","E123 MANEJO INTEGRAL DE RESIDUOS SÓLIDOS URBANOS"]
["02CD04 Alcaldía Coyoacán","E127 PREVENCIÓN Y CONTROL DE ENFERMEDADES"]
["02CD04 Alcaldía Coyoacán","E131 RESCATE, REHABILITACIÓN Y MANTENIMIENTO DE ESPACIOS DEPORTIVOS"]
["02CD04 Alcaldía Coyoacán","E150 FOMENTO Y MEJORAMIENTO DE LOS MERCADOS PÚBLICOS DE LA CIUDAD DE MÉXICO"]
["02CD04 Alcaldía Coyoacán","F031 ORGANIZACIÓN DE EVENTOS CÍVICOS, FESTIVIDADES PATRIAS Y TRADICIONES"]
["02CD04 Alcaldía Coyoacán","K014 INFRAESTRUCTURA DE AGUA POTABLE, ALCANTARILLADO Y SANEAMIENTO"]
["02CD04 Alcaldía Coyoacán","K015 CONSTRUCCIÓN DE INFRAESTRUCTURA PÚBLICA"]
["02CD04 Alcaldía Coyoacán","K016 REHABILITACIÓN Y MANTENIMIENTO DE INFRAESTRUCTURA PÚBLICA"]
["02CD04 Alcaldía Coyoacán","M001 ACTIVIDADES DE APOYO ADMINISTRATIVO"]
["02CD04 Alcaldía Coyoacán","N001 CUMPLIMIENTO DE LOS PROGRAMAS DE PROTECCIÓN CIVIL"]
["02CD04 Alcaldía Coyoacán","O001 ACTIVIDADES DE APOYO A LA FUNCIÓN PÚBLICA Y BUEN GOBIERNO"]
["02CD04 Alcaldía Coyoacán","P001 PROMOCIÓN INTEGRAL PARA EL CUMPLIMIENTO DE LOS DERECHOS HUMANOS DE LAS NIÑAS Y MUJERES"]
["02CD04 Alcaldía Coyoacán","P002 PROMOCIÓN INTEGRAL PARA EL CUMPLIMIENTO DE LOS DERECHOS HUMANOS"]
["02CD04 Alcaldía Coyoacán","P046 PLANEACIÓN INTEGRAL DE LAS POLÍTICAS PÚBLICAS DE LA ALCALDÍA"]
["02CD04 Alcaldía Coyoacán","S196 OPERACIÓN DE LOS CENTROS DE ATENCIÓN Y CUIDADO INFANTIL DE LA ALCALDÍA DE COYOACÁN"]
["02CD04 Alcaldía Coyoacán","U026 APOYOS ECONÓMICOS Y OTRAS AYUDAS SOCIALES"]
["02CD05 Alcaldía Cuajimalpa de Morelos","E118 ACCIONES POLICIALES Y PREVENCIÓN DEL DELITO"]
["02CD05 Alcaldía Cuajimalpa de Morelos","E119 FORTALECIMIENTO EN MATERIA JURÍDICA"]
["02CD05 Alcaldía Cuajimalpa de Morelos","E138 ATENCIÓN Y PREVENCIÓN DE LA VIOLENCIA INTRAFAMILIAR"]
["02CD05 Alcaldía Cuajimalpa de Morelos","F032 PROMOCIÓN DE LA CULTURA FÍSICA Y DEPORTIVA"]
["02CD05 Alcaldía Cuajimalpa de Morelos","K014 INFRAESTRUCTURA DE AGUA POTABLE, ALCANTARILLADO Y SANEAMIENTO"]
["02CD05 Alcaldía Cuajimalpa de Morelos","K016 REHABILITACIÓN Y MANTENIMIENTO DE INFRAESTRUCTURA PÚBLICA"]
["02CD05 Alcaldía Cuajimalpa de Morelos","M001 ACTIVIDADES DE APOYO ADMINISTRATIVO"]
["02CD05 Alcaldía Cuajimalpa de Morelos","N001 CUMPLIMIENTO DE LOS PROGRAMAS DE PROTECCIÓN CIVIL"]
["02CD05 Alcaldía Cuajimalpa de Morelos","O001 ACTIVIDADES DE APOYO A LA FUNCIÓN PÚBLICA Y BUEN GOBIERNO"]
["02CD05 Alcaldía Cuajimalpa de Morelos","P001 PROMOCIÓN INTEGRAL PARA EL CUMPLIMIENTO DE LOS DERECHOS HUMANOS DE LAS NIÑAS Y MUJERES"]
["02CD05 Alcaldía Cuajimalpa de Morelos","P002 PROMOCIÓN INTEGRAL PARA EL CUMPLIMIENTO DE LOS DERECHOS HUMANOS"]
["02CD05 Alcaldía Cuajimalpa de Morelos","P004 PROMOCIÓN INTEGRAL PARA EL CUMPLIMIENTO DE LOS DERECHOS DE LA NIÑEZ Y DE LA ADOLECENCIA"]
["02CD05 Alcaldía Cuajimalpa de Morelos","U026 APOYOS ECONÓMICOS Y OTRAS AYUDAS SOCIALES"]
["02CD06 Alcaldía Cuauhtémoc","E117 MANTENIMIENTO DE ESPACIOS PÚBLICOS"]
["02CD06 Alcaldía Cuauhtémoc","E118 ACCIONES POLICIALES Y PREVENCIÓN DEL DELITO"]
["02CD06 Alcaldía Cuauhtémoc","E119 FORTALECIMIENTO EN MATERIA JURÍDICA"]
["02CD06 Alcaldía Cuauhtémoc","E123 MANEJO INTEGRAL DE RESIDUOS SÓLIDOS URBANOS"]
["02CD06 Alcaldía Cuauhtémoc","E125 ACCIONES PARA PROYECTOS AMBIENTALES"]
["02CD06 Alcaldía Cuauhtémoc","E126 PRODUCCIÓN DE CONTENIDO CULTURAL Y ARTÍSTICO"]
["02CD06 Alcaldía Cuauhtémoc","E137 OPERACIÓN DE CENTROS DE DESARROLLO INFANTIL"]
["02CD06 Alcaldía Cuauhtémoc","K016 REHABILITACIÓN Y MANTENIMIENTO DE INFRAESTRUCTURA PÚBLICA"]
["02CD06 Alcaldía Cuauhtémoc","M001 ACTIVIDADES DE APOYO ADMINISTRATIVO"]
["02CD06 Alcaldía Cuauhtémoc","N001 CUMPLIMIENTO DE LOS PROGRAMAS DE PROTECCIÓN CIVIL"]
["02CD06 Alcaldía Cuauhtémoc","O001 ACTIVIDADES DE APOYO A LA FUNCIÓN PÚBLICA Y BUEN GOBIERNO"]
["02CD06 Alcaldía Cuauhtémoc","P001 PROMOCIÓN INTEGRAL PARA EL CUMPLIMIENTO DE LOS DERECHOS HUMANOS DE LAS NIÑAS Y MUJERES"]
["02CD06 Alcaldía Cuauhtémoc","P002 PROMOCIÓN INTEGRAL PARA EL CUMPLIMIENTO DE LOS DERECHOS HUMANOS"]
["02CD06 Alcaldía Cuauhtémoc","P004 PROMOCIÓN INTEGRAL PARA EL CUMPLIMIENTO DE LOS DERECHOS DE LA NIÑEZ Y DE LA ADOLECENCIA"]
["02CD06 Alcaldía Cuauhtémoc","P046 PLANEACIÓN INTEGRAL DE LAS POLÍTICAS PÚBLICAS DE LA ALCALDÍA"]
["02CD06 Alcaldía Cuauhtémoc","S092 PONGAMOS  EL  EJEMPLO  CON  DEPORTE  EN  CUAUHTÉMOC"]
["02CD06 Alcaldía Cuauhtémoc","S093 APOYO  ECONÓMICO  PARA  EL  RECONOCIMIENTO  DE  LAS  PERSONAS CUIDADORAS"]
["02CD06 Alcaldía Cuauhtémoc","S095 APOYO ECONÓMICO PARA EL COMBATE AL REZAGO EDUCATIVO DE LAS INFANCIAS INDÍGENAS"]
["02CD06 Alcaldía Cuauhtémoc","S097 APOYO  ECONÓM.  A PNAS  NO ASALARIADAS  QUE  POR  MOTIVO DE SECUELAS DE ENF. CRÓNICO DEGENERATIVAS NO TRANSM. Y/O TERMINALES., ESTÉN IMPOSIB. DE TRAB. Y RESIDAN EN LA A. CUAUHTÉMOC"]
["02CD06 Alcaldía Cuauhtémoc","S098 APOYO  ECONÓMICO A JEFAS DE FAMILIA PARA SU INCLUSIÓN LABORAL"]
["02CD06 Alcaldía Cuauhtémoc","S100 PARTICIPACIÓN, ARTE Y CULTURA INCLUYENTE"]
["02CD06 Alcaldía Cuauhtémoc","S101 APOYO ECONÓMICO PARA LA ATENCIÓN  EMERGENTE EN MATERIA DE SALUD DE LAS PERSONAS TRANS"]
["02CD06 Alcaldía Cuauhtémoc","U026 APOYOS ECONÓMICOS Y OTRAS AYUDAS SOCIALES"]
["02CD07 Alcaldía Gustavo A. Madero","E118 ACCIONES POLICIALES Y PREVENCIÓN DEL DELITO"]
["02CD07 Alcaldía Gustavo A. Madero","E119 FORTALECIMIENTO EN MATERIA JURÍDICA"]
["02CD07 Alcaldía Gustavo A. Madero","E123 MANEJO INTEGRAL DE RESIDUOS SÓLIDOS URBANOS"]
["02CD07 Alcaldía Gustavo A. Madero","E127 PREVENCIÓN Y CONTROL DE ENFERMEDADES"]
["02CD07 Alcaldía Gustavo A. Madero","E130 OPERACIÓN DE PANTEONES PÚBLICOS"]
["02CD07 Alcaldía Gustavo A. Madero","E150 FOMENTO Y MEJORAMIENTO DE LOS MERCADOS PÚBLICOS DE LA CIUDAD DE MÉXICO"]
["02CD07 Alcaldía Gustavo A. Madero","F027 PROMOCIÓN Y FORTALECIMIENTO DE LA PARTICIPACIÓN CIUDADANA"]
["02CD07 Alcaldía Gustavo A. Madero","F029 FINANCIAMIENTO A LAS MIPYMES"]
["02CD07 Alcaldía Gustavo A. Madero","F031 ORGANIZACIÓN DE EVENTOS CÍVICOS, FESTIVIDADES PATRIAS Y TRADICIONES"]
["02CD07 Alcaldía Gustavo A. Madero","F032 PROMOCIÓN DE LA CULTURA FÍSICA Y DEPORTIVA"]
["02CD07 Alcaldía Gustavo A. Madero","K014 INFRAESTRUCTURA DE AGUA POTABLE, ALCANTARILLADO Y SANEAMIENTO"]
["02CD07 Alcaldía Gustavo A. Madero","K015 CONSTRUCCIÓN DE INFRAESTRUCTURA PÚBLICA"]
["02CD07 Alcaldía Gustavo A. Madero","K016 REHABILITACIÓN Y MANTENIMIENTO DE INFRAESTRUCTURA PÚBLICA"]
["02CD07 Alcaldía Gustavo A. Madero","M001 ACTIVIDADES DE APOYO ADMINISTRATIVO"]
["02CD07 Alcaldía Gustavo A. Madero","N001 CUMPLIMIENTO DE LOS PROGRAMAS DE PROTECCIÓN CIVIL"]
["02CD07 Alcaldía Gustavo A. Madero","O001 ACTIVIDADES DE APOYO A LA FUNCIÓN PÚBLICA Y BUEN GOBIERNO"]
["02CD07 Alcaldía Gustavo A. Madero","P001 PROMOCIÓN INTEGRAL PARA EL CUMPLIMIENTO DE LOS DERECHOS HUMANOS DE LAS NIÑAS Y MUJERES"]
["02CD07 Alcaldía Gustavo A. Madero","P002 PROMOCIÓN INTEGRAL PARA EL CUMPLIMIENTO DE LOS DERECHOS HUMANOS"]
["02CD07 Alcaldía Gustavo A. Madero","P004 PROMOCIÓN INTEGRAL PARA EL CUMPLIMIENTO DE LOS DERECHOS DE LA NIÑEZ Y DE LA ADOLECENCIA"]
["02CD07 Alcaldía Gustavo A. Madero","P048 PLANEACIÓN, SEGUIMIENTO Y EVALUACIÓN A POLÍTICAS PÚBLICAS"]
["02CD07 Alcaldía Gustavo A. Madero","U026 APOYOS ECONÓMICOS Y OTRAS AYUDAS SOCIALES"]
["02CD08 Alcaldía Iztacalco","E123 MANEJO INTEGRAL DE RESIDUOS SÓLIDOS URBANOS"]
["02CD08 Alcaldía Iztacalco","E127 PREVENCIÓN Y CONTROL DE ENFERMEDADES"]
["02CD08 Alcaldía Iztacalco","E150 FOMENTO Y MEJORAMIENTO DE LOS MERCADOS PÚBLICOS DE LA CIUDAD DE MÉXICO"]
["02CD08 Alcaldía Iztacalco","F032 PROMOCIÓN DE LA CULTURA FÍSICA Y DEPORTIVA"]
["02CD08 Alcaldía Iztacalco","K014 INFRAESTRUCTURA DE AGUA POTABLE, ALCANTARILLADO Y SANEAMIENTO"]
["02CD08 Alcaldía Iztacalco","K015 CONSTRUCCIÓN DE INFRAESTRUCTURA PÚBLICA"]
["02CD08 Alcaldía Iztacalco","K016 REHABILITACIÓN Y MANTENIMIENTO DE INFRAESTRUCTURA PÚBLICA"]
["02CD08 Alcaldía Iztacalco","M001 ACTIVIDADES DE APOYO ADMINISTRATIVO"]
["02CD08 Alcaldía Iztacalco","N001 CUMPLIMIENTO DE LOS PROGRAMAS DE PROTECCIÓN CIVIL"]
["02CD08 Alcaldía Iztacalco","O001 ACTIVIDADES DE APOYO A LA FUNCIÓN PÚBLICA Y BUEN GOBIERNO"]
["02CD08 Alcaldía Iztacalco","P001 PROMOCIÓN INTEGRAL PARA EL CUMPLIMIENTO DE LOS DERECHOS HUMANOS DE LAS NIÑAS Y MUJERES"]
["02CD08 Alcaldía Iztacalco","P002 PROMOCIÓN INTEGRAL PARA EL CUMPLIMIENTO DE LOS DERECHOS HUMANOS"]
["02CD08 Alcaldía Iztacalco","P004 PROMOCIÓN INTEGRAL PARA EL CUMPLIMIENTO DE LOS DERECHOS DE LA NIÑEZ Y DE LA ADOLECENCIA"]
["02CD08 Alcaldía Iztacalco","P046 PLANEACIÓN INTEGRAL DE LAS POLÍTICAS PÚBLICAS DE LA ALCALDÍA"]
["02CD08 Alcaldía Iztacalco","S102 FACILITADORES CULTURALES Y DEPORTIVOS"]
["02CD08 Alcaldía Iztacalco","S184 COMPAÑÍA DE DANZA CLÁSICA, MODERNA Y FOLCLÓRICA DE LA ALCALDÍA IZTACALCO"]
["02CD08 Alcaldía Iztacalco","S185 ESCUELAS DE MÚSICA DE LA  ALCALDÍA IZTACALCO "]
["02CD08 Alcaldía Iztacalco","S186 PROGRAMA DE APOYO INTEGRAL A LA MUJER PARA LA EQUIDAD (PAIME)"]
["02CD08 Alcaldía Iztacalco","U026 APOYOS ECONÓMICOS Y OTRAS AYUDAS SOCIALES"]
["02CD09 Alcaldía Iztapalapa","E117 MANTENIMIENTO DE ESPACIOS PÚBLICOS"]
["02CD09 Alcaldía Iztapalapa","E119 FORTALECIMIENTO EN MATERIA JURÍDICA"]
["02CD09 Alcaldía Iztapalapa","E120 ATENCIÓN VETERINARIA"]
["02CD09 Alcaldía Iztapalapa","E122 REFORESTACIÓN EN SUELO DE CONSERVACIÓN"]
["02CD09 Alcaldía Iztapalapa","E123 MANEJO INTEGRAL DE RESIDUOS SÓLIDOS URBANOS"]
["02CD09 Alcaldía Iztapalapa","E127 PREVENCIÓN Y CONTROL DE ENFERMEDADES"]
["02CD09 Alcaldía Iztapalapa","E150 FOMENTO Y MEJORAMIENTO DE LOS MERCADOS PÚBLICOS DE LA CIUDAD DE MÉXICO"]
["02CD09 Alcaldía Iztapalapa","F031 ORGANIZACIÓN DE EVENTOS CÍVICOS, FESTIVIDADES PATRIAS Y TRADICIONES"]
["02CD09 Alcaldía Iztapalapa","K015 CONSTRUCCIÓN DE INFRAESTRUCTURA PÚBLICA"]
["02CD09 Alcaldía Iztapalapa","K016 REHABILITACIÓN Y MANTENIMIENTO DE INFRAESTRUCTURA PÚBLICA"]
["02CD09 Alcaldía Iztapalapa","M001 ACTIVIDADES DE APOYO ADMINISTRATIVO"]
["02CD09 Alcaldía Iztapalapa","N001 CUMPLIMIENTO DE LOS PROGRAMAS DE PROTECCIÓN CIVIL"]
["02CD09 Alcaldía Iztapalapa","O001 ACTIVIDADES DE APOYO A LA FUNCIÓN PÚBLICA Y BUEN GOBIERNO"]
["02CD09 Alcaldía Iztapalapa","P001 PROMOCIÓN INTEGRAL PARA EL CUMPLIMIENTO DE LOS DERECHOS HUMANOS DE LAS NIÑAS Y MUJERES"]
["02CD09 Alcaldía Iztapalapa","P002 PROMOCIÓN INTEGRAL PARA EL CUMPLIMIENTO DE LOS DERECHOS HUMANOS"]
["02CD09 Alcaldía Iztapalapa","P004 PROMOCIÓN INTEGRAL PARA EL CUMPLIMIENTO DE LOS DERECHOS DE LA NIÑEZ Y DE LA ADOLECENCIA"]
["02CD09 Alcaldía Iztapalapa","P046 PLANEACIÓN INTEGRAL DE LAS POLÍTICAS PÚBLICAS DE LA ALCALDÍA"]
["02CD09 Alcaldía Iztapalapa","S103 AYUDA ECONÓMICA Y BIENESTAR INTEGRAL PARA PERSONAS ADULTAS MAYORES DE 60 A 64 AÑOS QUE RESIDEN EN IZTAPALAPA"]
["02CD09 Alcaldía Iztapalapa","S107 MUJERES ESTUDIANDO EN LA ALCALDÍA DE IZTAPALAPA"]
["02CD09 Alcaldía Iztapalapa","S109 DIÁLOGOS POR EL BIENESTAR Y LA PAZ EN IZTAPALAPA"]
["02CD09 Alcaldía Iztapalapa","S110 SISTEMA PÚBLICO DE CUIDADO, ALCALDÍA DE IZTAPALAPA"]
["02CD09 Alcaldía Iztapalapa","S111 IZTAPALAPA LA MÁS DEPORTIVA"]
["02CD09 Alcaldía Iztapalapa","U026 APOYOS ECONÓMICOS Y OTRAS AYUDAS SOCIALES"]
["02CD10 Alcaldía La Magdalena Contreras","E118 ACCIONES POLICIALES Y PREVENCIÓN DEL DELITO"]
["02CD10 Alcaldía La Magdalena Contreras","E119 FORTALECIMIENTO EN MATERIA JURÍDICA"]
["02CD10 Alcaldía La Magdalena Contreras","E122 REFORESTACIÓN EN SUELO DE CONSERVACIÓN"]
["02CD10 Alcaldía La Magdalena Contreras","E124 PROGRAMA INTEGRAL DE MOVILIDAD INTELIGENTE"]
["02CD10 Alcaldía La Magdalena Contreras","E127 PREVENCIÓN Y CONTROL DE ENFERMEDADES"]
["02CD10 Alcaldía La Magdalena Contreras","E136 OPERACIÓN DE VIVEROS"]
["02CD10 Alcaldía La Magdalena Contreras","E144 APOYO INTEGRAL PARA MUJERES EMBARAZADAS Y MADRES EN SITUACIÓN DE VULNERABILIDAD"]
["02CD10 Alcaldía La Magdalena Contreras","E150 FOMENTO Y MEJORAMIENTO DE LOS MERCADOS PÚBLICOS DE LA CIUDAD DE MÉXICO"]
["02CD10 Alcaldía La Magdalena Contreras","F031 ORGANIZACIÓN DE EVENTOS CÍVICOS, FESTIVIDADES PATRIAS Y TRADICIONES"]
["02CD10 Alcaldía La Magdalena Contreras","F033 PROYECTOS DE DESARROLLO Y  FOMENTO AGROPECUARIO"]
["02CD10 Alcaldía La Magdalena Contreras","G021 VERIFICACIÓN, INSPECCIÓN  Y VIGILANCIA AMBIENTAL"]
["02CD10 Alcaldía La Magdalena Contreras","G023 PROTECCIÓN Y REGULACIÓN ANIMAL"]
["02CD10 Alcaldía La Magdalena Contreras","K014 INFRAESTRUCTURA DE AGUA POTABLE, ALCANTARILLADO Y SANEAMIENTO"]
["02CD10 Alcaldía La Magdalena Contreras","K015 CONSTRUCCIÓN DE INFRAESTRUCTURA PÚBLICA"]
["02CD10 Alcaldía La Magdalena Contreras","K016 REHABILITACIÓN Y MANTENIMIENTO DE INFRAESTRUCTURA PÚBLICA"]
["02CD10 Alcaldía La Magdalena Contreras","M001 ACTIVIDADES DE APOYO ADMINISTRATIVO"]
["02CD10 Alcaldía La Magdalena Contreras","N001 CUMPLIMIENTO DE LOS PROGRAMAS DE PROTECCIÓN CIVIL"]
["02CD10 Alcaldía La Magdalena Contreras","O001 ACTIVIDADES DE APOYO A LA FUNCIÓN PÚBLICA Y BUEN GOBIERNO"]
["02CD10 Alcaldía La Magdalena Contreras","P001 PROMOCIÓN INTEGRAL PARA EL CUMPLIMIENTO DE LOS DERECHOS HUMANOS DE LAS NIÑAS Y MUJERES"]
["02CD10 Alcaldía La Magdalena Contreras","P002 PROMOCIÓN INTEGRAL PARA EL CUMPLIMIENTO DE LOS DERECHOS HUMANOS"]
["02CD10 Alcaldía La Magdalena Contreras","P004 PROMOCIÓN INTEGRAL PARA EL CUMPLIMIENTO DE LOS DERECHOS DE LA NIÑEZ Y DE LA ADOLECENCIA"]
["02CD10 Alcaldía La Magdalena Contreras","P049 PLANEACIÓN Y GESTIÓN DEL ORDENAMIENTO TERRITORIAL Y ASENTAMIENTOS HUMANOS"]
["02CD10 Alcaldía La Magdalena Contreras","S113 EN  COMUNIDAD   LA FAMILIA ES PRIMERO  "]
["02CD10 Alcaldía La Magdalena Contreras","S116 APOYO A LA FORMACIÓN ARTÍSTICA DE NIÑAS, NIÑOS, ADOLESCENTES  Y"]
["02CD10 Alcaldía La Magdalena Contreras","S151 PROGRAMA DE APOYO A PERSONAS CON DISCAPACIDAD"]
["02CD10 Alcaldía La Magdalena Contreras","U026 APOYOS ECONÓMICOS Y OTRAS AYUDAS SOCIALES"]
["02CD11 Alcaldía Miguel Hidalgo","E117 MANTENIMIENTO DE ESPACIOS PÚBLICOS"]
["02CD11 Alcaldía Miguel Hidalgo","E118 ACCIONES POLICIALES Y PREVENCIÓN DEL DELITO"]
["02CD11 Alcaldía Miguel Hidalgo","E120 ATENCIÓN VETERINARIA"]
["02CD11 Alcaldía Miguel Hidalgo","E123 MANEJO INTEGRAL DE RESIDUOS SÓLIDOS URBANOS"]
["02CD11 Alcaldía Miguel Hidalgo","E127 PREVENCIÓN Y CONTROL DE ENFERMEDADES"]
["02CD11 Alcaldía Miguel Hidalgo","E137 OPERACIÓN DE CENTROS DE DESARROLLO INFANTIL"]
["02CD11 Alcaldía Miguel Hidalgo","F031 ORGANIZACIÓN DE EVENTOS CÍVICOS, FESTIVIDADES PATRIAS Y TRADICIONES"]
["02CD11 Alcaldía Miguel Hidalgo","F032 PROMOCIÓN DE LA CULTURA FÍSICA Y DEPORTIVA"]
["02CD11 Alcaldía Miguel Hidalgo","K015 CONSTRUCCIÓN DE INFRAESTRUCTURA PÚBLICA"]
["02CD11 Alcaldía Miguel Hidalgo","K016 REHABILITACIÓN Y MANTENIMIENTO DE INFRAESTRUCTURA PÚBLICA"]
["02CD11 Alcaldía Miguel Hidalgo","M001 ACTIVIDADES DE APOYO ADMINISTRATIVO"]
["02CD11 Alcaldía Miguel Hidalgo","N001 CUMPLIMIENTO DE LOS PROGRAMAS DE PROTECCIÓN CIVIL"]
["02CD11 Alcaldía Miguel Hidalgo","O001 ACTIVIDADES DE APOYO A LA FUNCIÓN PÚBLICA Y BUEN GOBIERNO"]
["02CD11 Alcaldía Miguel Hidalgo","P001 PROMOCIÓN INTEGRAL PARA EL CUMPLIMIENTO DE LOS DERECHOS HUMANOS DE LAS NIÑAS Y MUJERES"]
["02CD11 Alcaldía Miguel Hidalgo","P002 PROMOCIÓN INTEGRAL PARA EL CUMPLIMIENTO DE LOS DERECHOS HUMANOS"]
["02CD11 Alcaldía Miguel Hidalgo","P004 PROMOCIÓN INTEGRAL PARA EL CUMPLIMIENTO DE LOS DERECHOS DE LA NIÑEZ Y DE LA ADOLECENCIA"]
["02CD11 Alcaldía Miguel Hidalgo","P046 PLANEACIÓN INTEGRAL DE LAS POLÍTICAS PÚBLICAS DE LA ALCALDÍA"]
["02CD11 Alcaldía Miguel Hidalgo","S187 LA EMPLEADORA"]
["02CD11 Alcaldía Miguel Hidalgo","S188 PA´QUE TE CUIDEMOS"]
["02CD11 Alcaldía Miguel Hidalgo","S189 PROTECTORA DE LA MOVILIDAD"]
["02CD11 Alcaldía Miguel Hidalgo","U026 APOYOS ECONÓMICOS Y OTRAS AYUDAS SOCIALES"]
["02CD12 Alcaldía Milpa Alta","E118 ACCIONES POLICIALES Y PREVENCIÓN DEL DELITO"]
["02CD12 Alcaldía Milpa Alta","E122 REFORESTACIÓN EN SUELO DE CONSERVACIÓN"]
["02CD12 Alcaldía Milpa Alta","E123 MANEJO INTEGRAL DE RESIDUOS SÓLIDOS URBANOS"]
["02CD12 Alcaldía Milpa Alta","E130 OPERACIÓN DE PANTEONES PÚBLICOS"]
["02CD12 Alcaldía Milpa Alta","E137 OPERACIÓN DE CENTROS DE DESARROLLO INFANTIL"]
["02CD12 Alcaldía Milpa Alta","F031 ORGANIZACIÓN DE EVENTOS CÍVICOS, FESTIVIDADES PATRIAS Y TRADICIONES"]
["02CD12 Alcaldía Milpa Alta","F032 PROMOCIÓN DE LA CULTURA FÍSICA Y DEPORTIVA"]
["02CD12 Alcaldía Milpa Alta","F033 PROYECTOS DE DESARROLLO Y  FOMENTO AGROPECUARIO"]
["02CD12 Alcaldía Milpa Alta","G022 ACCIONES PARA EL CUMPLIMIENTO  DE LAS DISPOSICIONES MERCANTILES, JURÍDICAS Y ADMINISTRATIVAS"]
["02CD12 Alcaldía Milpa Alta","G023 PROTECCIÓN Y REGULACIÓN ANIMAL"]
["02CD12 Alcaldía Milpa Alta","K014 INFRAESTRUCTURA DE AGUA POTABLE, ALCANTARILLADO Y SANEAMIENTO"]
["02CD12 Alcaldía Milpa Alta","K015 CONSTRUCCIÓN DE INFRAESTRUCTURA PÚBLICA"]
["02CD12 Alcaldía Milpa Alta","K016 REHABILITACIÓN Y MANTENIMIENTO DE INFRAESTRUCTURA PÚBLICA"]
["02CD12 Alcaldía Milpa Alta","M001 ACTIVIDADES DE APOYO ADMINISTRATIVO"]
["02CD12 Alcaldía Milpa Alta","N001 CUMPLIMIENTO DE LOS PROGRAMAS DE PROTECCIÓN CIVIL"]
["02CD12 Alcaldía Milpa Alta","O001 ACTIVIDADES DE APOYO A LA FUNCIÓN PÚBLICA Y BUEN GOBIERNO"]
["02CD12 Alcaldía Milpa Alta","P001 PROMOCIÓN INTEGRAL PARA EL CUMPLIMIENTO DE LOS DERECHOS HUMANOS DE LAS NIÑAS Y MUJERES"]
["02CD12 Alcaldía Milpa Alta","P002 PROMOCIÓN INTEGRAL PARA EL CUMPLIMIENTO DE LOS DERECHOS HUMANOS"]
["02CD12 Alcaldía Milpa Alta","P004 PROMOCIÓN INTEGRAL PARA EL CUMPLIMIENTO DE LOS DERECHOS DE LA NIÑEZ Y DE LA ADOLECENCIA"]
["02CD12 Alcaldía Milpa Alta","P047 PLANEACIÓN DE LA POLÍTICA DE TURISMO EN LAS ALCALDÍAS"]
["02CD12 Alcaldía Milpa Alta","S117 EL GOBIERNO DE LOS PUEBLOS EN APOYO A UNIVERSITARIOS"]
["02CD12 Alcaldía Milpa Alta","S119 ALIMÉNTATE BIEN"]
["02CD12 Alcaldía Milpa Alta","S121 PROGRAMA    DE    MEJORAMIENTO    SUSTENTABLE    EN    SUELO    DE CONSERVACIÓN DE MILPA ALTA"]
["02CD12 Alcaldía Milpa Alta","S122 PROGRAMA  INTEGRAL  DE  APOYO  A  LOS  PRODUCTORES  DE  NOPAL PIAPRON"]
["02CD12 Alcaldía Milpa Alta","S123 PROGRAMA DE FORTALECIMIENTO SECTORIAL (PROFOSEC)"]
["02CD12 Alcaldía Milpa Alta","S180 PROGRAMA DE DESARROLLO TURÍSTICO PRODETUR"]
["02CD12 Alcaldía Milpa Alta","S181 FONDO PARA EMPRENDEDORES DE MILPA ALTA FONEMA"]
["02CD12 Alcaldía Milpa Alta","S182 APOYO A ESTANCIAS INFANTILES"]
["02CD12 Alcaldía Milpa Alta","U026 APOYOS ECONÓMICOS Y OTRAS AYUDAS SOCIALES"]
["02CD13 Alcaldía Tláhuac","E118 ACCIONES POLICIALES Y PREVENCIÓN DEL DELITO"]
["02CD13 Alcaldía Tláhuac","E119 FORTALECIMIENTO EN MATERIA JURÍDICA"]
["02CD13 Alcaldía Tláhuac","E120 ATENCIÓN VETERINARIA"]
["02CD13 Alcaldía Tláhuac","E122 REFORESTACIÓN EN SUELO DE CONSERVACIÓN"]
["02CD13 Alcaldía Tláhuac","E123 MANEJO INTEGRAL DE RESIDUOS SÓLIDOS URBANOS"]
["02CD13 Alcaldía Tláhuac","E124 PROGRAMA INTEGRAL DE MOVILIDAD INTELIGENTE"]
["02CD13 Alcaldía Tláhuac","E127 PREVENCIÓN Y CONTROL DE ENFERMEDADES"]
["02CD13 Alcaldía Tláhuac","E130 OPERACIÓN DE PANTEONES PÚBLICOS"]
["02CD13 Alcaldía Tláhuac","E137 OPERACIÓN DE CENTROS DE DESARROLLO INFANTIL"]
["02CD13 Alcaldía Tláhuac","E150 FOMENTO Y MEJORAMIENTO DE LOS MERCADOS PÚBLICOS DE LA CIUDAD DE MÉXICO"]
["02CD13 Alcaldía Tláhuac","F027 PROMOCIÓN Y FORTALECIMIENTO DE LA PARTICIPACIÓN CIUDADANA"]
["02CD13 Alcaldía Tláhuac","F029 FINANCIAMIENTO A LAS MIPYMES"]
["02CD13 Alcaldía Tláhuac","F031 ORGANIZACIÓN DE EVENTOS CÍVICOS, FESTIVIDADES PATRIAS Y TRADICIONES"]
["02CD13 Alcaldía Tláhuac","F032 PROMOCIÓN DE LA CULTURA FÍSICA Y DEPORTIVA"]
["02CD13 Alcaldía Tláhuac","F033 PROYECTOS DE DESARROLLO Y  FOMENTO AGROPECUARIO"]
["02CD13 Alcaldía Tláhuac","K014 INFRAESTRUCTURA DE AGUA POTABLE, ALCANTARILLADO Y SANEAMIENTO"]
["02CD13 Alcaldía Tláhuac","K015 CONSTRUCCIÓN DE INFRAESTRUCTURA PÚBLICA"]
["02CD13 Alcaldía Tláhuac","K016 REHABILITACIÓN Y MANTENIMIENTO DE INFRAESTRUCTURA PÚBLICA"]
["02CD13 Alcaldía Tláhuac","M001 ACTIVIDADES DE APOYO ADMINISTRATIVO"]
["02CD13 Alcaldía Tláhuac","N001 CUMPLIMIENTO DE LOS PROGRAMAS DE PROTECCIÓN CIVIL"]
["02CD13 Alcaldía Tláhuac","O001 ACTIVIDADES DE APOYO A LA FUNCIÓN PÚBLICA Y BUEN GOBIERNO"]
["02CD13 Alcaldía Tláhuac","P001 PROMOCIÓN INTEGRAL PARA EL CUMPLIMIENTO DE LOS DERECHOS HUMANOS DE LAS NIÑAS Y MUJERES"]
["02CD13 Alcaldía Tláhuac","P002 PROMOCIÓN INTEGRAL PARA EL CUMPLIMIENTO DE LOS DERECHOS HUMANOS"]
["02CD13 Alcaldía Tláhuac","P004 PROMOCIÓN INTEGRAL PARA EL CUMPLIMIENTO DE LOS DERECHOS DE LA NIÑEZ Y DE LA ADOLECENCIA"]
["02CD13 Alcaldía Tláhuac","U026 APOYOS ECONÓMICOS Y OTRAS AYUDAS SOCIALES"]
["02CD14 Alcaldía Tlalpan","E118 ACCIONES POLICIALES Y PREVENCIÓN DEL DELITO"]
["02CD14 Alcaldía Tlalpan","E122 REFORESTACIÓN EN SUELO DE CONSERVACIÓN"]
["02CD14 Alcaldía Tlalpan","E123 MANEJO INTEGRAL DE RESIDUOS SÓLIDOS URBANOS"]
["02CD14 Alcaldía Tlalpan","E124 PROGRAMA INTEGRAL DE MOVILIDAD INTELIGENTE"]
["02CD14 Alcaldía Tlalpan","E134 ATENCIÓN INTEGRAL PARA EL DESARROLLO INFANTIL"]
["02CD14 Alcaldía Tlalpan","E150 FOMENTO Y MEJORAMIENTO DE LOS MERCADOS PÚBLICOS DE LA CIUDAD DE MÉXICO"]
["02CD14 Alcaldía Tlalpan","F032 PROMOCIÓN DE LA CULTURA FÍSICA Y DEPORTIVA"]
["02CD14 Alcaldía Tlalpan","K014 INFRAESTRUCTURA DE AGUA POTABLE, ALCANTARILLADO Y SANEAMIENTO"]
["02CD14 Alcaldía Tlalpan","K015 CONSTRUCCIÓN DE INFRAESTRUCTURA PÚBLICA"]
["02CD14 Alcaldía Tlalpan","K016 REHABILITACIÓN Y MANTENIMIENTO DE INFRAESTRUCTURA PÚBLICA"]
["02CD14 Alcaldía Tlalpan","M001 ACTIVIDADES DE APOYO ADMINISTRATIVO"]
["02CD14 Alcaldía Tlalpan","N001 CUMPLIMIENTO DE LOS PROGRAMAS DE PROTECCIÓN CIVIL"]
["02CD14 Alcaldía Tlalpan","O001 ACTIVIDADES DE APOYO A LA FUNCIÓN PÚBLICA Y BUEN GOBIERNO"]
["02CD14 Alcaldía Tlalpan","P001 PROMOCIÓN INTEGRAL PARA EL CUMPLIMIENTO DE LOS DERECHOS HUMANOS DE LAS NIÑAS Y MUJERES"]
["02CD14 Alcaldía Tlalpan","P002 PROMOCIÓN INTEGRAL PARA EL CUMPLIMIENTO DE LOS DERECHOS HUMANOS"]
["02CD14 Alcaldía Tlalpan","P004 PROMOCIÓN INTEGRAL PARA EL CUMPLIMIENTO DE LOS DERECHOS DE LA NIÑEZ Y DE LA ADOLECENCIA"]
["02CD14 Alcaldía Tlalpan","S126 COMUNIDAD   HUEHUEYOTL,  APOYO   A  COLECTIVOS   DE  PERSONAS ADULTAS MAYORES"]
["02CD14 Alcaldía Tlalpan","S127 MOCHILA DE DERECHOS"]
["02CD14 Alcaldía Tlalpan","S128 DEFENSORÍA  DE  LOS  DERECHOS  Y  APOYOS  ECONÓMICOS  A NIÑAS  Y NIÑOS DE TLALPAN"]
["02CD14 Alcaldía Tlalpan","S129 ASESORÍAS   PARA  EL   EXAMEN  DE   INGRESO  A   LA   EDUCACIÓN  MEDIA SUPERIOR"]
["02CD14 Alcaldía Tlalpan","S130 EDUCARNOS EN COMUNIDAD PARA EL BIENESTAR SOCIAL"]
["02CD14 Alcaldía Tlalpan","S132 APOYO  PROFESIONAL A LA POBLACIÓN EN SUS TAREAS EDUCATIVAS EN LAS BIBLIOTECAS PÚBLICAS"]
["02CD14 Alcaldía Tlalpan","S133 IMAGEN URBANA PARA CULTIVAR COMUNIDAD"]
["02CD14 Alcaldía Tlalpan","S134 HUELLAS: SEMBRANDO COMPAÑÍA EN COMUNIDAD"]
["02CD14 Alcaldía Tlalpan","S135 UNIDAD-ES TLALPAN"]
["02CD14 Alcaldía Tlalpan","S136 JÓVENES CULTIVANDO LA MOVILIDAD"]
["02CD14 Alcaldía Tlalpan","S137 CULTIVANDO COMUNIDAD CON LA PARTICIPACIÓN CIUDADANA"]
["02CD14 Alcaldía Tlalpan","S138 CULTIVANDO ACTIVIDADES DEPORTIVAS"]
["02CD14 Alcaldía Tlalpan","S139 APOYO AL DESARROLLO AGROPECUARIO  SUSTENTABLE"]
["02CD14 Alcaldía Tlalpan","S140 PREVENCIÓN DEL DELITO, TLALPAN"]
["02CD14 Alcaldía Tlalpan","S200 CULTIVANDO RAÍCES DE IDENTIDAD"]
["02CD14 Alcaldía Tlalpan","S205 PREVENCIÓN DEL EMBARAZO ADOLESCENTE, TLALPAN"]
["02CD14 Alcaldía Tlalpan","S206 FORMACIÓN MUSICAL, TLALPAN"]
["02CD14 Alcaldía Tlalpan","S207 CULTIVANDO ARTE EN TLALPAN"]
["02CD14 Alcaldía Tlalpan","S208 CULTIVANDO PAZ, ARTE Y CULTURA EN TLALPAN"]
["02CD14 Alcaldía Tlalpan","U024 SEAMOS MEJORES ESTUDIANTES"]
["02CD14 Alcaldía Tlalpan","U026 APOYOS ECONÓMICOS Y OTRAS AYUDAS SOCIALES"]
["02CD15 Alcaldía Venustiano Carranza","E118 ACCIONES POLICIALES Y PREVENCIÓN DEL DELITO"]
["02CD15 Alcaldía Venustiano Carranza","E123 MANEJO INTEGRAL DE RESIDUOS SÓLIDOS URBANOS"]
["02CD15 Alcaldía Venustiano Carranza","E129 PROVISIÓN EMERGENTE DE AGUA POTABLE"]
["02CD15 Alcaldía Venustiano Carranza","K016 REHABILITACIÓN Y MANTENIMIENTO DE INFRAESTRUCTURA PÚBLICA"]
["02CD15 Alcaldía Venustiano Carranza","M001 ACTIVIDADES DE APOYO ADMINISTRATIVO"]
["02CD15 Alcaldía Venustiano Carranza","N001 CUMPLIMIENTO DE LOS PROGRAMAS DE PROTECCIÓN CIVIL"]
["02CD15 Alcaldía Venustiano Carranza","O001 ACTIVIDADES DE APOYO A LA FUNCIÓN PÚBLICA Y BUEN GOBIERNO"]
["02CD15 Alcaldía Venustiano Carranza","P001 PROMOCIÓN INTEGRAL PARA EL CUMPLIMIENTO DE LOS DERECHOS HUMANOS DE LAS NIÑAS Y MUJERES"]
["02CD15 Alcaldía Venustiano Carranza","P002 PROMOCIÓN INTEGRAL PARA EL CUMPLIMIENTO DE LOS DERECHOS HUMANOS"]
["02CD15 Alcaldía Venustiano Carranza","P004 PROMOCIÓN INTEGRAL PARA EL CUMPLIMIENTO DE LOS DERECHOS DE LA NIÑEZ Y DE LA ADOLECENCIA"]
["02CD15 Alcaldía Venustiano Carranza","P048 PLANEACIÓN, SEGUIMIENTO Y EVALUACIÓN A POLÍTICAS PÚBLICAS"]
["02CD15 Alcaldía Venustiano Carranza","U026 APOYOS ECONÓMICOS Y OTRAS AYUDAS SOCIALES"]
["02CD16 Alcaldía Xochimilco","E118 ACCIONES POLICIALES Y PREVENCIÓN DEL DELITO"]
["02CD16 Alcaldía Xochimilco","E123 MANEJO INTEGRAL DE RESIDUOS SÓLIDOS URBANOS"]
["02CD16 Alcaldía Xochimilco","E127 PREVENCIÓN Y CONTROL DE ENFERMEDADES"]
["02CD16 Alcaldía Xochimilco","E128 MANTENIMIENTO Y REHABILITACIÓN DE ÁREAS VERDES"]
["02CD16 Alcaldía Xochimilco","E129 PROVISIÓN EMERGENTE DE AGUA POTABLE"]
["02CD16 Alcaldía Xochimilco","E150 FOMENTO Y MEJORAMIENTO DE LOS MERCADOS PÚBLICOS DE LA CIUDAD DE MÉXICO"]
["02CD16 Alcaldía Xochimilco","F027 PROMOCIÓN Y FORTALECIMIENTO DE LA PARTICIPACIÓN CIUDADANA"]
["02CD16 Alcaldía Xochimilco","F031 ORGANIZACIÓN DE EVENTOS CÍVICOS, FESTIVIDADES PATRIAS Y TRADICIONES"]
["02CD16 Alcaldía Xochimilco","K016 REHABILITACIÓN Y MANTENIMIENTO DE INFRAESTRUCTURA PÚBLICA"]
["02CD16 Alcaldía Xochimilco","M001 ACTIVIDADES DE APOYO ADMINISTRATIVO"]
["02CD16 Alcaldía Xochimilco","N001 CUMPLIMIENTO DE LOS PROGRAMAS DE PROTECCIÓN CIVIL"]
["02CD16 Alcaldía Xochimilco","O001 ACTIVIDADES DE APOYO A LA FUNCIÓN PÚBLICA Y BUEN GOBIERNO"]
["02CD16 Alcaldía Xochimilco","P001 PROMOCIÓN INTEGRAL PARA EL CUMPLIMIENTO DE LOS DERECHOS HUMANOS DE LAS NIÑAS Y MUJERES"]
["02CD16 Alcaldía Xochimilco","P047 PLANEACIÓN DE LA POLÍTICA DE TURISMO EN LAS ALCALDÍAS"]
["02CD16 Alcaldía Xochimilco","S144 ALIMENTOS A CENTROS DE DESARROLLO INFANTIL"]
["02CD16 Alcaldía Xochimilco","S145 APOYO   ECONÓMICO  A   PERSONAS  QUE   PRESTAN  SUS  INMUEBLES COMO ESPACIOS  PARA CENTROS DE DESARROLLO INFANTIL"]
["02CD16 Alcaldía Xochimilco","S146 AYUDA  A  PERSONAS  DE  ESCASOS  RECURSOS  Y PARA  TRATAMIENTOS MÉDICOS DE ENFERMEDADES CRÓNICO-DEGENERATIVAS, TERMINALES Y DISCAPACIDADES"]
["02CD16 Alcaldía Xochimilco","S147 AYUDA  ECONÓMICA PARA PROMOVER  EL DEPORTE COMPETITIVO EN JÓVENES      "]
["02CD16 Alcaldía Xochimilco","S148 ANIMALES DE CORRAL Y DE TRASPATIO"]
["02CD16 Alcaldía Xochimilco","S149 ENTREGA  DE  SEMILLAS  Y  MATERIAL  VEGETATIVO    PARA FOMENTAR   LA PRODUCCIÓN AGRÍCOLA"]
["02CD16 Alcaldía Xochimilco","U026 APOYOS ECONÓMICOS Y OTRAS AYUDAS SOCIALES"]
["02CDBP Comisión de Búsqueda de Personas de la Ciudad de México","E097 ACCIONES DE BÚSQUEDA, LOCALIZACIÓN E IDENTIFICACIÓN DE PERSONAS"]
["02CDBP Comisión de Búsqueda de Personas de la Ciudad de México","M001 ACTIVIDADES DE APOYO ADMINISTRATIVO"]
["02OD04 Autoridad del Centro Histórico","E034 MANTENIMIENTO DE ESPACIOS PÚBLICOS"]
["02OD04 Autoridad del Centro Histórico","M001 ACTIVIDADES DE APOYO ADMINISTRATIVO"]
["02OD04 Autoridad del Centro Histórico","N001 CUMPLIMIENTO DE LOS PROGRAMAS DE PROTECCIÓN CIVIL"]
["02OD04 Autoridad del Centro Histórico","O001 ACTIVIDADES DE APOYO A LA FUNCIÓN PÚBLICA Y BUEN GOBIERNO"]
["02OD04 Autoridad del Centro Histórico","P001 PROMOCIÓN INTEGRAL PARA EL CUMPLIMIENTO DE LOS DERECHOS HUMANOS DE LAS NIÑAS Y MUJERES"]
["02OD04 Autoridad del Centro Histórico","P002 PROMOCIÓN INTEGRAL PARA EL CUMPLIMIENTO DE LOS DERECHOS HUMANOS"]
["02OD04 Autoridad del Centro Histórico","P004 PROMOCIÓN INTEGRAL PARA EL CUMPLIMIENTO DE LOS DERECHOS DE LA NIÑEZ Y DE LA ADOLECENCIA"]
["02OD04 Autoridad del Centro Histórico","U026 APOYOS ECONÓMICOS Y OTRAS AYUDAS SOCIALES"]
["02OD06 Instancia Ejecutora del Sistema Integral de Derechos Humanos","M001 ACTIVIDADES DE APOYO ADMINISTRATIVO"]
["02OD06 Instancia Ejecutora del Sistema Integral de Derechos Humanos","N001 CUMPLIMIENTO DE LOS PROGRAMAS DE PROTECCIÓN CIVIL"]
["02OD06 Instancia Ejecutora del Sistema Integral de Derechos Humanos","O001 ACTIVIDADES DE APOYO A LA FUNCIÓN PÚBLICA Y BUEN GOBIERNO"]
["02OD06 Instancia Ejecutora del Sistema Integral de Derechos Humanos","P001 PROMOCIÓN INTEGRAL PARA EL CUMPLIMIENTO DE LOS DERECHOS HUMANOS DE LAS NIÑAS Y MUJERES"]
["02OD06 Instancia Ejecutora del Sistema Integral de Derechos Humanos","P002 PROMOCIÓN INTEGRAL PARA EL CUMPLIMIENTO DE LOS DERECHOS HUMANOS"]
["02OD06 Instancia Ejecutora del Sistema Integral de Derechos Humanos","P004 PROMOCIÓN INTEGRAL PARA EL CUMPLIMIENTO DE LOS DERECHOS DE LA NIÑEZ Y DE LA ADOLECENCIA"]
["02OD06 Instancia Ejecutora del Sistema Integral de Derechos Humanos","P017  ACCIONES PARA LA TRANSVERSALIZACIÓN DEL ENFOQUE DE DERECHOS HUMANOS"]
["02PDAV Comisión Ejecutiva de Atención a Victímas de la Ciudad de México","E109 APOYO INTEGRAL A VICTIMAS"]
["02PDAV Comisión Ejecutiva de Atención a Victímas de la Ciudad de México","M001 ACTIVIDADES DE APOYO ADMINISTRATIVO"]
["02PDDP Mecanismo para la Protección Integral de Personas Defensoras de Derechos Humanos y Periodistas","E038 MEDIDAS DE PREVENCIÓN Y PROTECCIÓN DE LOS DEFENSORES DE DERECHOS HUMANOS Y PERIODISTAS"]
["02PDDP Mecanismo para la Protección Integral de Personas Defensoras de Derechos Humanos y Periodistas","M001 ACTIVIDADES DE APOYO ADMINISTRATIVO"]
["02PDDP Mecanismo para la Protección Integral de Personas Defensoras de Derechos Humanos y Periodistas","N001 CUMPLIMIENTO DE LOS PROGRAMAS DE PROTECCIÓN CIVIL"]
["02PDDP Mecanismo para la Protección Integral de Personas Defensoras de Derechos Humanos y Periodistas","O001 ACTIVIDADES DE APOYO A LA FUNCIÓN PÚBLICA Y BUEN GOBIERNO"]
["02PDDP Mecanismo para la Protección Integral de Personas Defensoras de Derechos Humanos y Periodistas","P001 PROMOCIÓN INTEGRAL PARA EL CUMPLIMIENTO DE LOS DERECHOS HUMANOS DE LAS NIÑAS Y MUJERES"]
["02PDDP Mecanismo para la Protección Integral de Personas Defensoras de Derechos Humanos y Periodistas","P002 PROMOCIÓN INTEGRAL PARA EL CUMPLIMIENTO DE LOS DERECHOS HUMANOS"]
["02PDDP Mecanismo para la Protección Integral de Personas Defensoras de Derechos Humanos y Periodistas","P004 PROMOCIÓN INTEGRAL PARA EL CUMPLIMIENTO DE LOS DERECHOS DE LA NIÑEZ Y DE LA ADOLECENCIA"]
["03C001 Secretaría de Desarrollo Urbano y Vivienda","G002 DISEÑO URBANO Y REGULACIÓN DE LOS ESPACIOS PÚBLICOS"]
["03C001 Secretaría de Desarrollo Urbano y Vivienda","M001 ACTIVIDADES DE APOYO ADMINISTRATIVO"]
["03C001 Secretaría de Desarrollo Urbano y Vivienda","N001 CUMPLIMIENTO DE LOS PROGRAMAS DE PROTECCIÓN CIVIL"]
["03C001 Secretaría de Desarrollo Urbano y Vivienda","O001 ACTIVIDADES DE APOYO A LA FUNCIÓN PÚBLICA Y BUEN GOBIERNO"]
["03C001 Secretaría de Desarrollo Urbano y Vivienda","P001 PROMOCIÓN INTEGRAL PARA EL CUMPLIMIENTO DE LOS DERECHOS HUMANOS DE LAS NIÑAS Y MUJERES"]
["03C001 Secretaría de Desarrollo Urbano y Vivienda","P002 PROMOCIÓN INTEGRAL PARA EL CUMPLIMIENTO DE LOS DERECHOS HUMANOS"]
["03C001 Secretaría de Desarrollo Urbano y Vivienda","P004 PROMOCIÓN INTEGRAL PARA EL CUMPLIMIENTO DE LOS DERECHOS DE LA NIÑEZ Y DE LA ADOLECENCIA"]
["03C001 Secretaría de Desarrollo Urbano y Vivienda","P023 PLANEACIÓN Y GESTIÓN DEL ORDENAMIENTO TERRITORIAL Y ASENTAMIENTOS HUMANOS"]
["03PDIV Instituto de Vivienda","E154 ACCESO A LA JUSTICIA AMBIENTAL, URBANA Y DE PROTECCIÓN Y BIENESTAR ANIMAL"]
["03PDIV Instituto de Vivienda","M001 ACTIVIDADES DE APOYO ADMINISTRATIVO"]
["03PDIV Instituto de Vivienda","N001 CUMPLIMIENTO DE LOS PROGRAMAS DE PROTECCIÓN CIVIL"]
["03PDIV Instituto de Vivienda","O001 ACTIVIDADES DE APOYO A LA FUNCIÓN PÚBLICA Y BUEN GOBIERNO"]
["03PDIV Instituto de Vivienda","P001 PROMOCIÓN INTEGRAL PARA EL CUMPLIMIENTO DE LOS DERECHOS HUMANOS DE LAS NIÑAS Y MUJERES"]
["03PDIV Instituto de Vivienda","P002 PROMOCIÓN INTEGRAL PARA EL CUMPLIMIENTO DE LOS DERECHOS HUMANOS"]
["03PDIV Instituto de Vivienda","P004 PROMOCIÓN INTEGRAL PARA EL CUMPLIMIENTO DE LOS DERECHOS DE LA NIÑEZ Y DE LA ADOLECENCIA"]
["03PDIV Instituto de Vivienda","S027 MEJORAMIENTO DE LA VIVIENDA"]
["03PDIV Instituto de Vivienda","S061 VIVIENDA  EN CONJUNTO"]
["03PDIV Instituto de Vivienda","U007 FINANCIAMIENTO PARA EL ACCESO A LA VIVIENDA"]
["03PDIV Instituto de Vivienda","E155"]
["04C001 Secretaría de Desarrollo Económico","E091 OPERACIÓN Y MANTENIMIENTO DE LA CENTRAL DE ABASTOS"]
["04C001 Secretaría de Desarrollo Económico","E092 OPERACIÓN Y MANTENIMIENTO DE MERCADOS PÚBLICOS"]
["04C001 Secretaría de Desarrollo Económico","E150 FOMENTO Y MEJORAMIENTO DE LOS MERCADOS PÚBLICOS DE LA CIUDAD DE MÉXICO"]
["04C001 Secretaría de Desarrollo Económico","F008 PROMOCIÓN DE LA INVERSIÓN, EL DESARROLLO, COMPETITIVIDAD E INNOVACIÓN DE LOS SECTORES INDUSTRIAL, COMERCIAL Y DE SERVICIOS"]
["04C001 Secretaría de Desarrollo Económico","F034 FORTALECIMIENTO DE COMPETENCIAS EN ENERGÍA SOLAR"]
["04C001 Secretaría de Desarrollo Económico","G014 REGULACIÓN Y REGISTRO DE ESTABLECIMIENTOS MERCANTILES EN MATERIA ECONÓMICA"]
["04C001 Secretaría de Desarrollo Económico","M001 ACTIVIDADES DE APOYO ADMINISTRATIVO"]
["04C001 Secretaría de Desarrollo Económico","N001 CUMPLIMIENTO DE LOS PROGRAMAS DE PROTECCIÓN CIVIL"]
["04C001 Secretaría de Desarrollo Económico","O001 ACTIVIDADES DE APOYO A LA FUNCIÓN PÚBLICA Y BUEN GOBIERNO"]
["04C001 Secretaría de Desarrollo Económico","P001 PROMOCIÓN INTEGRAL PARA EL CUMPLIMIENTO DE LOS DERECHOS HUMANOS DE LAS NIÑAS Y MUJERES"]
["04C001 Secretaría de Desarrollo Económico","P002 PROMOCIÓN INTEGRAL PARA EL CUMPLIMIENTO DE LOS DERECHOS HUMANOS"]
["04C001 Secretaría de Desarrollo Económico","P004 PROMOCIÓN INTEGRAL PARA EL CUMPLIMIENTO DE LOS DERECHOS DE LA NIÑEZ Y DE LA ADOLECENCIA"]
["04C001 Secretaría de Desarrollo Económico","P016 DISEÑO E INSTRUMENTACIÓN DE ACCIONES EN MATERIA DE COMPETITIVIDAD, EMPRENDIMIENTO, COMPETENCIA Y POLÍTICA REGULATORIA"]
["04P0DE Fondo de Desarrollo Económico","P025 PLANEACIÓN, ELABORACIÓN Y SEGUIMIENTO DE LA POLÍTICA DE DESARROLLO ECONÓMICO"]
["04P0DS Fondo para el Desarrollo Social","F006 FINANCIAMIENTO A MICROCRÉDITOS PARA EL AUTOEMPLEO, ATENCIÓN A LAS MEDIANAS Y PEQUEÑAS EMPRESAS Y COMERCIALIZACIÓN DE PRODUCTOS RURALES"]
["04P0DS Fondo para el Desarrollo Social","M001 ACTIVIDADES DE APOYO ADMINISTRATIVO"]
["04P0DS Fondo para el Desarrollo Social","N001 CUMPLIMIENTO DE LOS PROGRAMAS DE PROTECCIÓN CIVIL"]
["04P0DS Fondo para el Desarrollo Social","O001 ACTIVIDADES DE APOYO A LA FUNCIÓN PÚBLICA Y BUEN GOBIERNO"]
["04P0DS Fondo para el Desarrollo Social","P001 PROMOCIÓN INTEGRAL PARA EL CUMPLIMIENTO DE LOS DERECHOS HUMANOS DE LAS NIÑAS Y MUJERES"]
["04P0DS Fondo para el Desarrollo Social","P002 PROMOCIÓN INTEGRAL PARA EL CUMPLIMIENTO DE LOS DERECHOS HUMANOS"]
["04P0DS Fondo para el Desarrollo Social","P004 PROMOCIÓN INTEGRAL PARA EL CUMPLIMIENTO DE LOS DERECHOS DE LA NIÑEZ Y DE LA ADOLECENCIA"]
["05C001 Secretaría de Turismo","F005 DESARROLLO Y PROMOCIÓN DE PRODUCTOS Y PROYECTOS TURÍSTICOS SUSTENTABLES"]
["05C001 Secretaría de Turismo","M001 ACTIVIDADES DE APOYO ADMINISTRATIVO"]
["05C001 Secretaría de Turismo","N001 CUMPLIMIENTO DE LOS PROGRAMAS DE PROTECCIÓN CIVIL"]
["05C001 Secretaría de Turismo","O001 ACTIVIDADES DE APOYO A LA FUNCIÓN PÚBLICA Y BUEN GOBIERNO"]
["05C001 Secretaría de Turismo","P001 PROMOCIÓN INTEGRAL PARA EL CUMPLIMIENTO DE LOS DERECHOS HUMANOS DE LAS NIÑAS Y MUJERES"]
["05C001 Secretaría de Turismo","P002 PROMOCIÓN INTEGRAL PARA EL CUMPLIMIENTO DE LOS DERECHOS HUMANOS"]
["05C001 Secretaría de Turismo","P004 PROMOCIÓN INTEGRAL PARA EL CUMPLIMIENTO DE LOS DERECHOS DE LA NIÑEZ Y DE LA ADOLECENCIA"]
["05C001 Secretaría de Turismo","P019 PLANEACIÓN DE LA POLÍTICA DE TURISMO"]
["05P0PT Fondo Mixto de Promoción Turística","F022 DESARROLLO, PROMOCIÓN Y POSICIONAMIENTO DE LA CIUDAD DE MÉXICO Y SU MARCA CDMX"]
["05P0PT Fondo Mixto de Promoción Turística","M001 ACTIVIDADES DE APOYO ADMINISTRATIVO"]
["05P0PT Fondo Mixto de Promoción Turística","N001 CUMPLIMIENTO DE LOS PROGRAMAS DE PROTECCIÓN CIVIL"]
["05P0PT Fondo Mixto de Promoción Turística","O001 ACTIVIDADES DE APOYO A LA FUNCIÓN PÚBLICA Y BUEN GOBIERNO"]
["05P0PT Fondo Mixto de Promoción Turística","P001 PROMOCIÓN INTEGRAL PARA EL CUMPLIMIENTO DE LOS DERECHOS HUMANOS DE LAS NIÑAS Y MUJERES"]
["05P0PT Fondo Mixto de Promoción Turística","P002 PROMOCIÓN INTEGRAL PARA EL CUMPLIMIENTO DE LOS DERECHOS HUMANOS"]
["05P0PT Fondo Mixto de Promoción Turística","P004 PROMOCIÓN INTEGRAL PARA EL CUMPLIMIENTO DE LOS DERECHOS DE LA NIÑEZ Y DE LA ADOLECENCIA"]
["06C001 Secretaría del Medio Ambiente","E022 CUIDADO Y CONSERVACIÓN DE LOS BOSQUES, ÁREAS  DE VALOR AMBIENTAL Y SUELO DE CONSERVACIÓN"]
["06C001 Secretaría del Medio Ambiente","E075 GESTIÓN Y OPERACIÓN DEL MUSEO DE HISTORIA NATURAL Y CULTURA AMBIENTAL"]
["06C001 Secretaría del Medio Ambiente","E107 CONSERVACIÓN Y OPERACIÓN DE ZOOLÓGICOS"]
["06C001 Secretaría del Medio Ambiente","F001 ALIANZA PARA LA PRESERVACIÓN DEL PATRIMONIO CULTURAL DE LA CIUDAD DE MÉXICO"]
["06C001 Secretaría del Medio Ambiente","G013 INSPECCIÓN Y VIGILANCIA MEDIOAMBIENTAL"]
["06C001 Secretaría del Medio Ambiente","M001 ACTIVIDADES DE APOYO ADMINISTRATIVO"]
["06C001 Secretaría del Medio Ambiente","N001 CUMPLIMIENTO DE LOS PROGRAMAS DE PROTECCIÓN CIVIL"]
["06C001 Secretaría del Medio Ambiente","O001 ACTIVIDADES DE APOYO A LA FUNCIÓN PÚBLICA Y BUEN GOBIERNO"]
["06C001 Secretaría del Medio Ambiente","P001 PROMOCIÓN INTEGRAL PARA EL CUMPLIMIENTO DE LOS DERECHOS HUMANOS DE LAS NIÑAS Y MUJERES"]
["06C001 Secretaría del Medio Ambiente","P002 PROMOCIÓN INTEGRAL PARA EL CUMPLIMIENTO DE LOS DERECHOS HUMANOS"]
["06C001 Secretaría del Medio Ambiente","P004 PROMOCIÓN INTEGRAL PARA EL CUMPLIMIENTO DE LOS DERECHOS DE LA NIÑEZ Y DE LA ADOLECENCIA"]
["06C001 Secretaría del Medio Ambiente","P005 CALIDAD DEL AIRE"]
["06C001 Secretaría del Medio Ambiente","P020 PLANEACIÓN Y SEGUIMIENTO DE LA POLÍTICA GUBERNAMENTAL"]
["06CD03 Sistema de Aguas de la Ciudad de México","K003 INFRAESTRUCTURA DE AGUA POTABLE, ALCANTARILLADO Y SANEAMIENTO"]
["06CD03 Sistema de Aguas de la Ciudad de México","M001 ACTIVIDADES DE APOYO ADMINISTRATIVO"]
["06CD03 Sistema de Aguas de la Ciudad de México","N001 CUMPLIMIENTO DE LOS PROGRAMAS DE PROTECCIÓN CIVIL"]
["06CD03 Sistema de Aguas de la Ciudad de México","O001 ACTIVIDADES DE APOYO A LA FUNCIÓN PÚBLICA Y BUEN GOBIERNO"]
["06CD03 Sistema de Aguas de la Ciudad de México","P001 PROMOCIÓN INTEGRAL PARA EL CUMPLIMIENTO DE LOS DERECHOS HUMANOS DE LAS NIÑAS Y MUJERES"]
["06CD03 Sistema de Aguas de la Ciudad de México","P002 PROMOCIÓN INTEGRAL PARA EL CUMPLIMIENTO DE LOS DERECHOS HUMANOS"]
["06CD03 Sistema de Aguas de la Ciudad de México","P004 PROMOCIÓN INTEGRAL PARA EL CUMPLIMIENTO DE LOS DERECHOS DE LA NIÑEZ Y DE LA ADOLECENCIA"]
["06CD03 Sistema de Aguas de la Ciudad de México","U002 AGUA POTABLE, DRENAJE Y SANEAMIENTO"]
["06CD05 Agencia de Atención Animal","E018 ATENCIÓN VETERINARIA"]
["06CD05 Agencia de Atención Animal","E090 ACCIONES PARA EL BIENESTAR ANIMAL"]
["06CD05 Agencia de Atención Animal","M001 ACTIVIDADES DE APOYO ADMINISTRATIVO"]
["06CD05 Agencia de Atención Animal","N001 CUMPLIMIENTO DE LOS PROGRAMAS DE PROTECCIÓN CIVIL"]
["06CD05 Agencia de Atención Animal","O001 ACTIVIDADES DE APOYO A LA FUNCIÓN PÚBLICA Y BUEN GOBIERNO"]
["06CD05 Agencia de Atención Animal","P001 PROMOCIÓN INTEGRAL PARA EL CUMPLIMIENTO DE LOS DERECHOS HUMANOS DE LAS NIÑAS Y MUJERES"]
["06CD05 Agencia de Atención Animal","P002 PROMOCIÓN INTEGRAL PARA EL CUMPLIMIENTO DE LOS DERECHOS HUMANOS"]
["06CD05 Agencia de Atención Animal","P004 PROMOCIÓN INTEGRAL PARA EL CUMPLIMIENTO DE LOS DERECHOS DE LA NIÑEZ Y DE LA ADOLECENCIA"]
["06P0FA Fondo Ambiental Público","E006 ACCIONES PARA PROYECTOS AMBIENTALES"]
["06P0FA Fondo Ambiental Público","S034 PROGRAMA SISTEMAS DE CAPTACIÓN DE AGUA DE LLUVIA EN VIVIENDAS DE LA CIUDAD DE MÉXICO"]
["06P0FA Fondo Ambiental Público","S036 PROGRAMA ALTEPETL"]
["06P0FA Fondo Ambiental Público","U026 APOYOS ECONÓMICOS Y OTRAS AYUDAS SOCIALES"]
["06PDPA Procuraduría Ambiental y del Ordenamiento Territorial","E154 ACCESO A LA JUSTICIA AMBIENTAL, URBANA Y DE PROTECCIÓN Y BIENESTAR ANIMAL"]
["06PDPA Procuraduría Ambiental y del Ordenamiento Territorial","M001 ACTIVIDADES DE APOYO ADMINISTRATIVO"]
["06PDPA Procuraduría Ambiental y del Ordenamiento Territorial","N001 CUMPLIMIENTO DE LOS PROGRAMAS DE PROTECCIÓN CIVIL"]
["06PDPA Procuraduría Ambiental y del Ordenamiento Territorial","O001 ACTIVIDADES DE APOYO A LA FUNCIÓN PÚBLICA Y BUEN GOBIERNO"]
["06PDPA Procuraduría Ambiental y del Ordenamiento Territorial","P001 PROMOCIÓN INTEGRAL PARA EL CUMPLIMIENTO DE LOS DERECHOS HUMANOS DE LAS NIÑAS Y MUJERES"]
["06PDPA Procuraduría Ambiental y del Ordenamiento Territorial","P002 PROMOCIÓN INTEGRAL PARA EL CUMPLIMIENTO DE LOS DERECHOS HUMANOS"]
["06PDPA Procuraduría Ambiental y del Ordenamiento Territorial","P004 PROMOCIÓN INTEGRAL PARA EL CUMPLIMIENTO DE LOS DERECHOS DE LA NIÑEZ Y DE LA ADOLECENCIA"]
["07C001 Secretaría de Obras y Servicios","E042 OPERACIÓN Y MANTENIMIENTO DEL TRANSPORTE PÚBLICO MASIVO, CONCESIONADO Y ALTERNO"]
["07C001 Secretaría de Obras y Servicios","E093 MANEJO INTEGRAL DE RESIDUOS SÓLIDOS URBANOS"]
["07C001 Secretaría de Obras y Servicios","E116 PROGRAMA PILARES"]
["07C001 Secretaría de Obras y Servicios","K001 CONSTRUCCIÓN Y MEJORAMIENTO DE LA INFRAESTRUCTURA DE SALUD"]
["07C001 Secretaría de Obras y Servicios","K002 CONSTRUCCIÓN Y MEJORAMIENTO DE LA INFRAESTRUCTURA EDUCATIVA"]
["07C001 Secretaría de Obras y Servicios","K004 INFRAESTRUCTURA DE TRANSPORTE PÚBLICO"]
["07C001 Secretaría de Obras y Servicios","K005 MEJORAMIENTO Y MANTENIMIENTO DE LA INFRAESTRUCTURA URBANA"]
["07C001 Secretaría de Obras y Servicios","K006 MEJORAMIENTO Y MANTENIMIENTO DE LA INFRAESTRUCTURA VIAL"]
["07C001 Secretaría de Obras y Servicios","K007 SISTEMA DE TRANSPORTE PÚBLICO CABLEBÚS"]
["07C001 Secretaría de Obras y Servicios","K008 AMPLIACIÓN, OPERACIÓN Y MANTENIMIENTO DEL ALUMBRADO PÚBLICO"]
["07C001 Secretaría de Obras y Servicios","K010 CONSTRUCCIÓN, MANTENIMIENTO Y AMPLIACIÓN DE EDIFICIOS PÚBLICOS"]
["07C001 Secretaría de Obras y Servicios","M001 ACTIVIDADES DE APOYO ADMINISTRATIVO"]
["07C001 Secretaría de Obras y Servicios","N001 CUMPLIMIENTO DE LOS PROGRAMAS DE PROTECCIÓN CIVIL"]
["07C001 Secretaría de Obras y Servicios","O001 ACTIVIDADES DE APOYO A LA FUNCIÓN PÚBLICA Y BUEN GOBIERNO"]
["07C001 Secretaría de Obras y Servicios","P001 PROMOCIÓN INTEGRAL PARA EL CUMPLIMIENTO DE LOS DERECHOS HUMANOS DE LAS NIÑAS Y MUJERES"]
["07C001 Secretaría de Obras y Servicios","P002 PROMOCIÓN INTEGRAL PARA EL CUMPLIMIENTO DE LOS DERECHOS HUMANOS"]
["07C001 Secretaría de Obras y Servicios","P004 PROMOCIÓN INTEGRAL PARA EL CUMPLIMIENTO DE LOS DERECHOS DE LA NIÑEZ Y DE LA ADOLECENCIA"]
["07CD01 Planta Productora de Mezclas Asfalticas","B001 PRODUCCIÓN Y COMERCIALIZACIÓN DE MEZCLAS ASFÁLTICAS"]
["07CD01 Planta Productora de Mezclas Asfalticas","M001 ACTIVIDADES DE APOYO ADMINISTRATIVO"]
["07CD01 Planta Productora de Mezclas Asfalticas","N001 CUMPLIMIENTO DE LOS PROGRAMAS DE PROTECCIÓN CIVIL"]
["07CD01 Planta Productora de Mezclas Asfalticas","O001 ACTIVIDADES DE APOYO A LA FUNCIÓN PÚBLICA Y BUEN GOBIERNO"]
["07CD01 Planta Productora de Mezclas Asfalticas","P001 PROMOCIÓN INTEGRAL PARA EL CUMPLIMIENTO DE LOS DERECHOS HUMANOS DE LAS NIÑAS Y MUJERES"]
["07CD01 Planta Productora de Mezclas Asfalticas","P002 PROMOCIÓN INTEGRAL PARA EL CUMPLIMIENTO DE LOS DERECHOS HUMANOS"]
["07CD01 Planta Productora de Mezclas Asfalticas","P004 PROMOCIÓN INTEGRAL PARA EL CUMPLIMIENTO DE LOS DERECHOS DE LA NIÑEZ Y DE LA ADOLECENCIA"]
["07PDIF Instituto Local de la Infraestructura Física Educativa","K012 REHABILITACIÓN, EQUIPAMIENTO Y CONSTRUCCIÓN DE INFRAESTRUCTURA EDUCATIVA"]
["07PDIF Instituto Local de la Infraestructura Física Educativa","M001 ACTIVIDADES DE APOYO ADMINISTRATIVO"]
["07PDIF Instituto Local de la Infraestructura Física Educativa","N001 CUMPLIMIENTO DE LOS PROGRAMAS DE PROTECCIÓN CIVIL"]
["07PDIF Instituto Local de la Infraestructura Física Educativa","O001 ACTIVIDADES DE APOYO A LA FUNCIÓN PÚBLICA Y BUEN GOBIERNO"]
["07PDIF Instituto Local de la Infraestructura Física Educativa","P001 PROMOCIÓN INTEGRAL PARA EL CUMPLIMIENTO DE LOS DERECHOS HUMANOS DE LAS NIÑAS Y MUJERES"]
["07PDIF Instituto Local de la Infraestructura Física Educativa","P002 PROMOCIÓN INTEGRAL PARA EL CUMPLIMIENTO DE LOS DERECHOS HUMANOS"]
["07PDIF Instituto Local de la Infraestructura Física Educativa","P004 PROMOCIÓN INTEGRAL PARA EL CUMPLIMIENTO DE LOS DERECHOS DE LA NIÑEZ Y DE LA ADOLECENCIA"]
["07PDIS Instituto para la Seguridad de las Construcciones","E067 OPERACIÓN DEL  SISTEMA PARA LA SEGURIDAD DE LAS CONSTRUCCIONES DE LA CIUDAD DE MÉXICO"]
["07PDIS Instituto para la Seguridad de las Construcciones","M001 ACTIVIDADES DE APOYO ADMINISTRATIVO"]
["07PDIS Instituto para la Seguridad de las Construcciones","N001 CUMPLIMIENTO DE LOS PROGRAMAS DE PROTECCIÓN CIVIL"]
["07PDIS Instituto para la Seguridad de las Construcciones","O001 ACTIVIDADES DE APOYO A LA FUNCIÓN PÚBLICA Y BUEN GOBIERNO"]
["07PDIS Instituto para la Seguridad de las Construcciones","P001 PROMOCIÓN INTEGRAL PARA EL CUMPLIMIENTO DE LOS DERECHOS HUMANOS DE LAS NIÑAS Y MUJERES"]
["07PDIS Instituto para la Seguridad de las Construcciones","P002 PROMOCIÓN INTEGRAL PARA EL CUMPLIMIENTO DE LOS DERECHOS HUMANOS"]
["07PDIS Instituto para la Seguridad de las Construcciones","P004 PROMOCIÓN INTEGRAL PARA EL CUMPLIMIENTO DE LOS DERECHOS DE LA NIÑEZ Y DE LA ADOLECENCIA"]
["08C001 Secretaría de Inclusión y Bienestar Social","E081 SERVICIOS INTEGRALES DE ASISTENCIA SOCIAL"]
["08C001 Secretaría de Inclusión y Bienestar Social","E147 ATENCIÓN SOCIAL INMEDIATA A POBLACIONES PRIORITARIAS (ASIPP)"]
["08C001 Secretaría de Inclusión y Bienestar Social","E148 ENTRE LA CALLE Y EL HOGAR"]
["08C001 Secretaría de Inclusión y Bienestar Social","F016 PROMOCIÓN Y FORTALECIMIENTO DE LA PARTICIPACIÓN CIUDADANA"]
["08C001 Secretaría de Inclusión y Bienestar Social","M001 ACTIVIDADES DE APOYO ADMINISTRATIVO"]
["08C001 Secretaría de Inclusión y Bienestar Social","N001 CUMPLIMIENTO DE LOS PROGRAMAS DE PROTECCIÓN CIVIL"]
["08C001 Secretaría de Inclusión y Bienestar Social","O001 ACTIVIDADES DE APOYO A LA FUNCIÓN PÚBLICA Y BUEN GOBIERNO"]
["08C001 Secretaría de Inclusión y Bienestar Social","P001 PROMOCIÓN INTEGRAL PARA EL CUMPLIMIENTO DE LOS DERECHOS HUMANOS DE LAS NIÑAS Y MUJERES"]
["08C001 Secretaría de Inclusión y Bienestar Social","P002 PROMOCIÓN INTEGRAL PARA EL CUMPLIMIENTO DE LOS DERECHOS HUMANOS"]
["08C001 Secretaría de Inclusión y Bienestar Social","P004 PROMOCIÓN INTEGRAL PARA EL CUMPLIMIENTO DE LOS DERECHOS DE LA NIÑEZ Y DE LA ADOLECENCIA"]
["08C001 Secretaría de Inclusión y Bienestar Social","S013 COMEDORES SOCIALES DE LA CIUDAD DE MÉXICO"]
["08C001 Secretaría de Inclusión y Bienestar Social","S014 COMIDA PARA LOS CAI'S"]
["08C001 Secretaría de Inclusión y Bienestar Social","S047 PROGRAMA MEJORAMIENTO BARRIAL Y COMUNITARIO, TEQUIO BARRIO"]
["08C001 Secretaría de Inclusión y Bienestar Social","S071 SERVIDORES DE LA CIUDAD (SERCDMX)"]
["08C001 Secretaría de Inclusión y Bienestar Social","S072 ATENCIÓN INTEGRAL AL ADULTO MAYOR"]
["08C001 Secretaría de Inclusión y Bienestar Social","U026 APOYOS ECONÓMICOS Y OTRAS AYUDAS SOCIALES"]
["08PDCE Consejo de Evaluación del Desarrollo Social","M001 ACTIVIDADES DE APOYO ADMINISTRATIVO"]
["08PDCE Consejo de Evaluación del Desarrollo Social","N001 CUMPLIMIENTO DE LOS PROGRAMAS DE PROTECCIÓN CIVIL"]
["08PDCE Consejo de Evaluación del Desarrollo Social","O001 ACTIVIDADES DE APOYO A LA FUNCIÓN PÚBLICA Y BUEN GOBIERNO"]
["08PDCE Consejo de Evaluación del Desarrollo Social","P001 PROMOCIÓN INTEGRAL PARA EL CUMPLIMIENTO DE LOS DERECHOS HUMANOS DE LAS NIÑAS Y MUJERES"]
["08PDCE Consejo de Evaluación del Desarrollo Social","P002 PROMOCIÓN INTEGRAL PARA EL CUMPLIMIENTO DE LOS DERECHOS HUMANOS"]
["08PDCE Consejo de Evaluación del Desarrollo Social","P004 PROMOCIÓN INTEGRAL PARA EL CUMPLIMIENTO DE LOS DERECHOS DE LA NIÑEZ Y DE LA ADOLECENCIA"]
["08PDCE Consejo de Evaluación del Desarrollo Social","P029 EVALUACIÓN DE LA POLÍTICA DE DESARROLLO SOCIAL DE LA CIUDAD DE MÉXICO"]
["08PDCE Consejo de Evaluación del Desarrollo Social","U033 ACTIVIDADES DE INVESTIGACIÓN ACADEMICAS, CIENTIFICAS Y DE DESARROLLO"]
["08PDCP Consejo para Prevenir y Eliminar la Discriminación","E046 PREVENCIÓN Y ATENCIÓN DE LA DISCRIMINACIÓN"]
["08PDCP Consejo para Prevenir y Eliminar la Discriminación","M001 ACTIVIDADES DE APOYO ADMINISTRATIVO"]
["08PDCP Consejo para Prevenir y Eliminar la Discriminación","N001 CUMPLIMIENTO DE LOS PROGRAMAS DE PROTECCIÓN CIVIL"]
["08PDCP Consejo para Prevenir y Eliminar la Discriminación","O001 ACTIVIDADES DE APOYO A LA FUNCIÓN PÚBLICA Y BUEN GOBIERNO"]
["08PDCP Consejo para Prevenir y Eliminar la Discriminación","P001 PROMOCIÓN INTEGRAL PARA EL CUMPLIMIENTO DE LOS DERECHOS HUMANOS DE LAS NIÑAS Y MUJERES"]
["08PDCP Consejo para Prevenir y Eliminar la Discriminación","P002 PROMOCIÓN INTEGRAL PARA EL CUMPLIMIENTO DE LOS DERECHOS HUMANOS"]
["08PDCP Consejo para Prevenir y Eliminar la Discriminación","P004 PROMOCIÓN INTEGRAL PARA EL CUMPLIMIENTO DE LOS DERECHOS DE LA NIÑEZ Y DE LA ADOLECENCIA"]
["08PDCP Consejo para Prevenir y Eliminar la Discriminación","P027 POLÍTICAS PARA LA PREVENCIÓN Y COMBATE A LA DISCRIMINACIÓN"]
["08PDDF Sistema para el Desarrollo Integral de la Familia","E115 ATENCIÓN Y PREVENCIÓN DE LA VIOLENCIA CONTRA LAS MUJERES"]
["08PDDF Sistema para el Desarrollo Integral de la Familia","E145 APRENDE Y CREA DIFERENTE"]
["08PDDF Sistema para el Desarrollo Integral de la Familia","E146 PROTECCIÓN Y DEFENSA DE NIÑAS, NIÑOS Y ADOLECENTES"]
["08PDDF Sistema para el Desarrollo Integral de la Familia","F012 PROMOCIÓN Y FOMENTO DE LOS DERECHOS HUMANOS DE LA ADOLESCENCIA Y LA INFANCIA"]
["08PDDF Sistema para el Desarrollo Integral de la Familia","F014 PROMOCIÓN Y FOMENTO DE LAS SOCIEDADES COOPERATIVAS"]
["08PDDF Sistema para el Desarrollo Integral de la Familia","M001 ACTIVIDADES DE APOYO ADMINISTRATIVO"]
["08PDDF Sistema para el Desarrollo Integral de la Familia","N001 CUMPLIMIENTO DE LOS PROGRAMAS DE PROTECCIÓN CIVIL"]
["08PDDF Sistema para el Desarrollo Integral de la Familia","O001 ACTIVIDADES DE APOYO A LA FUNCIÓN PÚBLICA Y BUEN GOBIERNO"]
["08PDDF Sistema para el Desarrollo Integral de la Familia","O016 INTEGRACIÓN DE SERVICIOS TECNOLÓGICOS E INFORMÁTICOS"]
["08PDDF Sistema para el Desarrollo Integral de la Familia","P001 PROMOCIÓN INTEGRAL PARA EL CUMPLIMIENTO DE LOS DERECHOS HUMANOS DE LAS NIÑAS Y MUJERES"]
["08PDDF Sistema para el Desarrollo Integral de la Familia","P004 PROMOCIÓN INTEGRAL PARA EL CUMPLIMIENTO DE LOS DERECHOS DE LA NIÑEZ Y DE LA ADOLECENCIA"]
["08PDDF Sistema para el Desarrollo Integral de la Familia","S007 CAPACITACIÓN A LA POBLACIÓN OCUPADA Y DESOCUPADA DE LA CIUDAD DE MÉXICO"]
["08PDDF Sistema para el Desarrollo Integral de la Familia","S010 COINVERSIÓN PARA LA INCLUSIÓN Y EL BIENESTAR SOCIAL"]
["08PDDF Sistema para el Desarrollo Integral de la Familia","S013 COMEDORES SOCIALES DE LA CIUDAD DE MÉXICO"]
["08PDDF Sistema para el Desarrollo Integral de la Familia","S030 PROGRAMA APOYO ECONÓMICO A POLICÍAS Y BOMBEROS PENSIONADOS DE LA CAPREPOL CON DISCAPACIDAD PERMANENTE"]
["08PDDF Sistema para el Desarrollo Integral de la Familia","S035 PROGRAMA ALIMENTOS ESCOLARES"]
["08PDDF Sistema para el Desarrollo Integral de la Familia","S037 PROGRAMA ATENCIÓN A PERSONAS CON DISCAPACIDAD EN UNIDADES BÁSICAS DE REHABILITACIÓN"]
["08PDDF Sistema para el Desarrollo Integral de la Familia","S064 DESARROLLO INTEGRAL DE LAS PERSONAS CON DISCAPACIDAD"]
["08PDDF Sistema para el Desarrollo Integral de la Familia","S066 CENTROS PARA EL DESARROLLO INFANTIL"]
["08PDDF Sistema para el Desarrollo Integral de la Familia","S211 ATENCIÓN A MENORES Y MADRES EN SITUACIÓN DE VULNERABILIDAD"]
["08PDDF Sistema para el Desarrollo Integral de la Familia","U012 ASISTENCIA SOCIAL Y SERVICIOS ASISTENCIALES"]
["08PDDF Sistema para el Desarrollo Integral de la Familia","U020 PROGRAMA DE ATENCIÓN A MENORES VULNERABLES"]
["08PDDF Sistema para el Desarrollo Integral de la Familia","U021 PROGRAMA DE ATENCIÓN A PERSONAS VULNERABLES"]
["08PDDF Sistema para el Desarrollo Integral de la Familia","U027 COVNVENIOS CON CASAS HOGAR DE NIÑAS Y NIÑOS"]
["08PDDF Sistema para el Desarrollo Integral de la Familia","U029 CUIDADOS ALTERNATIVOS"]
["08PDDF Sistema para el Desarrollo Integral de la Familia","U031 AYUDAS A COOPERATIVAS"]
["08PDDF Sistema para el Desarrollo Integral de la Familia","U032 APOYO A PERSONAS QUE PERDIERON ALGÚN FAMILIAR EN EL SISMO DEL 19 DE SEPTIEMBRE DE 2017"]
["08PDII Instituto de las Personas con Discapacidad","M001 ACTIVIDADES DE APOYO ADMINISTRATIVO"]
["08PDII Instituto de las Personas con Discapacidad","N001 CUMPLIMIENTO DE LOS PROGRAMAS DE PROTECCIÓN CIVIL"]
["08PDII Instituto de las Personas con Discapacidad","O001 ACTIVIDADES DE APOYO A LA FUNCIÓN PÚBLICA Y BUEN GOBIERNO"]
["08PDII Instituto de las Personas con Discapacidad","P001 PROMOCIÓN INTEGRAL PARA EL CUMPLIMIENTO DE LOS DERECHOS HUMANOS DE LAS NIÑAS Y MUJERES"]
["08PDII Instituto de las Personas con Discapacidad","P002 PROMOCIÓN INTEGRAL PARA EL CUMPLIMIENTO DE LOS DERECHOS HUMANOS"]
["08PDII Instituto de las Personas con Discapacidad","P004 PROMOCIÓN INTEGRAL PARA EL CUMPLIMIENTO DE LOS DERECHOS DE LA NIÑEZ Y DE LA ADOLECENCIA"]
["08PDII Instituto de las Personas con Discapacidad","P031 PLANEACIÓN, SEGUIMIENTO Y EVALUACIÓN A POLÍTICAS PÚBLICAS PARA EL DESARROLLO DE LAS PERSONAS CON DISCAPACIDAD"]
["08PDII Instituto de las Personas con Discapacidad","S064 DESARROLLO INTEGRAL DE LAS PERSONAS CON DISCAPACIDAD"]
["08PDIJ Instituto de la Juventud","E047 PREVENCIÓN Y TRATAMIENTO DE LAS ADICCIONES"]
["08PDIJ Instituto de la Juventud","M001 ACTIVIDADES DE APOYO ADMINISTRATIVO"]
["08PDIJ Instituto de la Juventud","N001 CUMPLIMIENTO DE LOS PROGRAMAS DE PROTECCIÓN CIVIL"]
["08PDIJ Instituto de la Juventud","O001 ACTIVIDADES DE APOYO A LA FUNCIÓN PÚBLICA Y BUEN GOBIERNO"]
["08PDIJ Instituto de la Juventud","P001 PROMOCIÓN INTEGRAL PARA EL CUMPLIMIENTO DE LOS DERECHOS HUMANOS DE LAS NIÑAS Y MUJERES"]
["08PDIJ Instituto de la Juventud","P002 PROMOCIÓN INTEGRAL PARA EL CUMPLIMIENTO DE LOS DERECHOS HUMANOS"]
["08PDIJ Instituto de la Juventud","P004 PROMOCIÓN INTEGRAL PARA EL CUMPLIMIENTO DE LOS DERECHOS DE LA NIÑEZ Y DE LA ADOLECENCIA"]
["08PDIJ Instituto de la Juventud","S004 APOYOS PARA EL DESARROLLO INTEGRAL DE LOS JÓVENES"]
["08PDIJ Instituto de la Juventud","S007 CAPACITACIÓN A LA POBLACIÓN OCUPADA Y DESOCUPADA DE LA CIUDAD DE MÉXICO"]
["08PDIJ Instituto de la Juventud","S025 LOS JÓVENES UNEN AL BARRIO"]
["08PDIJ Instituto de la Juventud","S050 PROMOCIÓN DE ACTIVIDADES CULTURALES Y RECREATIVAS"]
["08PDIJ Instituto de la Juventud","S212 NÚCLEOS URBANOS DE BIENESTAR EMOCIONAL (NUBE)"]
["08PDPS Procuraduría Social","E111 ASESORAMIENTO EN MATERIA JURÍDICA"]
["08PDPS Procuraduría Social","M001 ACTIVIDADES DE APOYO ADMINISTRATIVO"]
["08PDPS Procuraduría Social","N001 CUMPLIMIENTO DE LOS PROGRAMAS DE PROTECCIÓN CIVIL"]
["08PDPS Procuraduría Social","O001 ACTIVIDADES DE APOYO A LA FUNCIÓN PÚBLICA Y BUEN GOBIERNO"]
["08PDPS Procuraduría Social","P001 PROMOCIÓN INTEGRAL PARA EL CUMPLIMIENTO DE LOS DERECHOS HUMANOS DE LAS NIÑAS Y MUJERES"]
["08PDPS Procuraduría Social","P002 PROMOCIÓN INTEGRAL PARA EL CUMPLIMIENTO DE LOS DERECHOS HUMANOS"]
["08PDPS Procuraduría Social","P004 PROMOCIÓN INTEGRAL PARA EL CUMPLIMIENTO DE LOS DERECHOS DE LA NIÑEZ Y DE LA ADOLECENCIA"]
["08PDPS Procuraduría Social","S053 RESCATE INNOVADOR Y PARTICIPATIVO EN UNIDADES HABITACIONALES"]
["09C001 Secretaría de Administración y Finanzas","E059 REPRESENTACIÓN Y DEFENSA DEL GOBIERNO EN MATERIA FISCAL Y HACENDARIA"]
["09C001 Secretaría de Administración y Finanzas","E083 VALUACIÓN DE LOS BIENES INMUEBLES"]
["09C001 Secretaría de Administración y Finanzas","E104 PROFESIONALIZACIÓN  Y EVALUACIÓN DEL SERVIDOR PÚBLICO PARA EL BUEN GOBIERNO"]
["09C001 Secretaría de Administración y Finanzas","F023 PROMOCIÓN Y DIFUSIÓN DE ACCIONES DE GOBIERNO"]
["09C001 Secretaría de Administración y Finanzas","G009 DICTAMINACIÓN DE LAS ESTRUCTURAS ORGANIZACIONALES"]
["09C001 Secretaría de Administración y Finanzas","G072 INVESTIGACIÓN Y SEGUIMIENTO DE DELITOS FINANCIEROS"]
["09C001 Secretaría de Administración y Finanzas","M001 ACTIVIDADES DE APOYO ADMINISTRATIVO"]
["09C001 Secretaría de Administración y Finanzas","N001 CUMPLIMIENTO DE LOS PROGRAMAS DE PROTECCIÓN CIVIL"]
["09C001 Secretaría de Administración y Finanzas","O001 ACTIVIDADES DE APOYO A LA FUNCIÓN PÚBLICA Y BUEN GOBIERNO"]
["09C001 Secretaría de Administración y Finanzas","O002 IMPULSO A LA TRANSPARENCIA Y RENDICIÓN DE CUENTAS"]
["09C001 Secretaría de Administración y Finanzas","O004 INTEGRACIÓN DE SERVICIOS TECNOLÓGICOS E INFORMÁTICOS"]
["09C001 Secretaría de Administración y Finanzas","P001 PROMOCIÓN INTEGRAL PARA EL CUMPLIMIENTO DE LOS DERECHOS HUMANOS DE LAS NIÑAS Y MUJERES"]
["09C001 Secretaría de Administración y Finanzas","P002 PROMOCIÓN INTEGRAL PARA EL CUMPLIMIENTO DE LOS DERECHOS HUMANOS"]
["09C001 Secretaría de Administración y Finanzas","P004 PROMOCIÓN INTEGRAL PARA EL CUMPLIMIENTO DE LOS DERECHOS DE LA NIÑEZ Y DE LA ADOLECENCIA"]
["09C001 Secretaría de Administración y Finanzas","P014 DISEÑO DE LA POLÍTICA DE EGRESOS"]
["09C001 Secretaría de Administración y Finanzas","P026 DISEÑO, COORDINACIÓN Y OPERACIÓN DE LA POLÍTICA FISCAL Y HACENDARIA"]
["09PDLR Caja de Previsión para Trabajadores a Lista de Raya","E044 PRESTACIÓN DE SERVICIOS PARA LAS CAJAS DE PREVISIÓN"]
["09PDLR Caja de Previsión para Trabajadores a Lista de Raya","E076 SERVICIOS INTEGRALES A JUBILADOS Y PENSIONADOS"]
["09PDLR Caja de Previsión para Trabajadores a Lista de Raya","J001 PAGO DE PENSIONES Y JUBILACIONES"]
["09PDLR Caja de Previsión para Trabajadores a Lista de Raya","M001 ACTIVIDADES DE APOYO ADMINISTRATIVO"]
["09PDLR Caja de Previsión para Trabajadores a Lista de Raya","N001 CUMPLIMIENTO DE LOS PROGRAMAS DE PROTECCIÓN CIVIL"]
["09PDLR Caja de Previsión para Trabajadores a Lista de Raya","O001 ACTIVIDADES DE APOYO A LA FUNCIÓN PÚBLICA Y BUEN GOBIERNO"]
["09PDLR Caja de Previsión para Trabajadores a Lista de Raya","P001 PROMOCIÓN INTEGRAL PARA EL CUMPLIMIENTO DE LOS DERECHOS HUMANOS DE LAS NIÑAS Y MUJERES"]
["09PDLR Caja de Previsión para Trabajadores a Lista de Raya","P002 PROMOCIÓN INTEGRAL PARA EL CUMPLIMIENTO DE LOS DERECHOS HUMANOS"]
["09PDLR Caja de Previsión para Trabajadores a Lista de Raya","P004 PROMOCIÓN INTEGRAL PARA EL CUMPLIMIENTO DE LOS DERECHOS DE LA NIÑEZ Y DE LA ADOLECENCIA"]
["09PDPA Caja de Previsión de la Policía Auxiliar","E044 PRESTACIÓN DE SERVICIOS PARA LAS CAJAS DE PREVISIÓN"]
["09PDPA Caja de Previsión de la Policía Auxiliar","E076 SERVICIOS INTEGRALES A JUBILADOS Y PENSIONADOS"]
["09PDPA Caja de Previsión de la Policía Auxiliar","J001 PAGO DE PENSIONES Y JUBILACIONES"]
["09PDPA Caja de Previsión de la Policía Auxiliar","M001 ACTIVIDADES DE APOYO ADMINISTRATIVO"]
["09PDPA Caja de Previsión de la Policía Auxiliar","N001 CUMPLIMIENTO DE LOS PROGRAMAS DE PROTECCIÓN CIVIL"]
["09PDPA Caja de Previsión de la Policía Auxiliar","O001 ACTIVIDADES DE APOYO A LA FUNCIÓN PÚBLICA Y BUEN GOBIERNO"]
["09PDPA Caja de Previsión de la Policía Auxiliar","P001 PROMOCIÓN INTEGRAL PARA EL CUMPLIMIENTO DE LOS DERECHOS HUMANOS DE LAS NIÑAS Y MUJERES"]
["09PDPA Caja de Previsión de la Policía Auxiliar","P002 PROMOCIÓN INTEGRAL PARA EL CUMPLIMIENTO DE LOS DERECHOS HUMANOS"]
["09PDPA Caja de Previsión de la Policía Auxiliar","P004 PROMOCIÓN INTEGRAL PARA EL CUMPLIMIENTO DE LOS DERECHOS DE LA NIÑEZ Y DE LA ADOLECENCIA"]
["09PDPP Caja de Previsión de la Policía Preventiva","E044 PRESTACIÓN DE SERVICIOS PARA LAS CAJAS DE PREVISIÓN"]
["09PDPP Caja de Previsión de la Policía Preventiva","E076 SERVICIOS INTEGRALES A JUBILADOS Y PENSIONADOS"]
["09PDPP Caja de Previsión de la Policía Preventiva","J001 PAGO DE PENSIONES Y JUBILACIONES"]
["09PDPP Caja de Previsión de la Policía Preventiva","M001 ACTIVIDADES DE APOYO ADMINISTRATIVO"]
["09PDPP Caja de Previsión de la Policía Preventiva","N001 CUMPLIMIENTO DE LOS PROGRAMAS DE PROTECCIÓN CIVIL"]
["09PDPP Caja de Previsión de la Policía Preventiva","O001 ACTIVIDADES DE APOYO A LA FUNCIÓN PÚBLICA Y BUEN GOBIERNO"]
["09PDPP Caja de Previsión de la Policía Preventiva","P001 PROMOCIÓN INTEGRAL PARA EL CUMPLIMIENTO DE LOS DERECHOS HUMANOS DE LAS NIÑAS Y MUJERES"]
["09PDPP Caja de Previsión de la Policía Preventiva","P002 PROMOCIÓN INTEGRAL PARA EL CUMPLIMIENTO DE LOS DERECHOS HUMANOS"]
["09PDPP Caja de Previsión de la Policía Preventiva","P004 PROMOCIÓN INTEGRAL PARA EL CUMPLIMIENTO DE LOS DERECHOS DE LA NIÑEZ Y DE LA ADOLECENCIA"]
["09PECM Corporación Mexicana de Impresión, S.A. de C.V.","E077 SERVICIOS DE IMPRENTA DE LA CIUDAD DE MÉXICO"]
["09PECM Corporación Mexicana de Impresión, S.A. de C.V.","M001 ACTIVIDADES DE APOYO ADMINISTRATIVO"]
["09PECM Corporación Mexicana de Impresión, S.A. de C.V.","N001 CUMPLIMIENTO DE LOS PROGRAMAS DE PROTECCIÓN CIVIL"]
["09PECM Corporación Mexicana de Impresión, S.A. de C.V.","O001 ACTIVIDADES DE APOYO A LA FUNCIÓN PÚBLICA Y BUEN GOBIERNO"]
["09PECM Corporación Mexicana de Impresión, S.A. de C.V.","P001 PROMOCIÓN INTEGRAL PARA EL CUMPLIMIENTO DE LOS DERECHOS HUMANOS DE LAS NIÑAS Y MUJERES"]
["09PECM Corporación Mexicana de Impresión, S.A. de C.V.","P002 PROMOCIÓN INTEGRAL PARA EL CUMPLIMIENTO DE LOS DERECHOS HUMANOS"]
["09PECM Corporación Mexicana de Impresión, S.A. de C.V.","P004 PROMOCIÓN INTEGRAL PARA EL CUMPLIMIENTO DE LOS DERECHOS DE LA NIÑEZ Y DE LA ADOLECENCIA"]
["09PECV PROCDMX, S.A. de C.V.","M001 ACTIVIDADES DE APOYO ADMINISTRATIVO"]
["09PECV PROCDMX, S.A. de C.V.","N001 CUMPLIMIENTO DE LOS PROGRAMAS DE PROTECCIÓN CIVIL"]
["09PECV PROCDMX, S.A. de C.V.","O001 ACTIVIDADES DE APOYO A LA FUNCIÓN PÚBLICA Y BUEN GOBIERNO"]
["09PECV PROCDMX, S.A. de C.V.","P001 PROMOCIÓN INTEGRAL PARA EL CUMPLIMIENTO DE LOS DERECHOS HUMANOS DE LAS NIÑAS Y MUJERES"]
["09PECV PROCDMX, S.A. de C.V.","P002 PROMOCIÓN INTEGRAL PARA EL CUMPLIMIENTO DE LOS DERECHOS HUMANOS"]
["09PECV PROCDMX, S.A. de C.V.","P004 PROMOCIÓN INTEGRAL PARA EL CUMPLIMIENTO DE LOS DERECHOS DE LA NIÑEZ Y DE LA ADOLECENCIA"]
["09PECV PROCDMX, S.A. de C.V.","P034 PROYECTOS Y SERVICIOS ESTRATÉGICOS PARA BENEFICIO DE LA POBLACIÓN"]
["09PESM Servicios Metropolitanos, S.A. de C.V.","E084 SERVICIOS INTEGRALES METROPOLITANOS"]
["09PESM Servicios Metropolitanos, S.A. de C.V.","M001 ACTIVIDADES DE APOYO ADMINISTRATIVO"]
["09PESM Servicios Metropolitanos, S.A. de C.V.","N001 CUMPLIMIENTO DE LOS PROGRAMAS DE PROTECCIÓN CIVIL"]
["09PESM Servicios Metropolitanos, S.A. de C.V.","O001 ACTIVIDADES DE APOYO A LA FUNCIÓN PÚBLICA Y BUEN GOBIERNO"]
["09PESM Servicios Metropolitanos, S.A. de C.V.","P001 PROMOCIÓN INTEGRAL PARA EL CUMPLIMIENTO DE LOS DERECHOS HUMANOS DE LAS NIÑAS Y MUJERES"]
["09PESM Servicios Metropolitanos, S.A. de C.V.","P002 PROMOCIÓN INTEGRAL PARA EL CUMPLIMIENTO DE LOS DERECHOS HUMANOS"]
["09PESM Servicios Metropolitanos, S.A. de C.V.","P004 PROMOCIÓN INTEGRAL PARA EL CUMPLIMIENTO DE LOS DERECHOS DE LA NIÑEZ Y DE LA ADOLECENCIA"]
["09PFCH Fideicomiso del Centro Histórico","E003 ACCIONES DE OBRAS Y SERVICIOS PARA LA RECUPERACIÓN, PROMOCIÓN Y PROTECCIÓN DEL CENTRO HISTÓRICO"]
["09PFCH Fideicomiso del Centro Histórico","M001 ACTIVIDADES DE APOYO ADMINISTRATIVO"]
["09PFCH Fideicomiso del Centro Histórico","N001 CUMPLIMIENTO DE LOS PROGRAMAS DE PROTECCIÓN CIVIL"]
["09PFCH Fideicomiso del Centro Histórico","O001 ACTIVIDADES DE APOYO A LA FUNCIÓN PÚBLICA Y BUEN GOBIERNO"]
["09PFCH Fideicomiso del Centro Histórico","P001 PROMOCIÓN INTEGRAL PARA EL CUMPLIMIENTO DE LOS DERECHOS HUMANOS DE LAS NIÑAS Y MUJERES"]
["09PFCH Fideicomiso del Centro Histórico","P002 PROMOCIÓN INTEGRAL PARA EL CUMPLIMIENTO DE LOS DERECHOS HUMANOS"]
["09PFCH Fideicomiso del Centro Histórico","P004 PROMOCIÓN INTEGRAL PARA EL CUMPLIMIENTO DE LOS DERECHOS DE LA NIÑEZ Y DE LA ADOLECENCIA"]
["09PFRC Fideicomiso de Recuperación Crediticia","G010  RECUPERACIÓN ÓPTIMA DE LOS CRÉDITOS"]
["09PFRC Fideicomiso de Recuperación Crediticia","M001 ACTIVIDADES DE APOYO ADMINISTRATIVO"]
["09PFRC Fideicomiso de Recuperación Crediticia","N001 CUMPLIMIENTO DE LOS PROGRAMAS DE PROTECCIÓN CIVIL"]
["09PFRC Fideicomiso de Recuperación Crediticia","O001 ACTIVIDADES DE APOYO A LA FUNCIÓN PÚBLICA Y BUEN GOBIERNO"]
["09PFRC Fideicomiso de Recuperación Crediticia","P001 PROMOCIÓN INTEGRAL PARA EL CUMPLIMIENTO DE LOS DERECHOS HUMANOS DE LAS NIÑAS Y MUJERES"]
["09PFRC Fideicomiso de Recuperación Crediticia","P002 PROMOCIÓN INTEGRAL PARA EL CUMPLIMIENTO DE LOS DERECHOS HUMANOS"]
["09PFRC Fideicomiso de Recuperación Crediticia","P004 PROMOCIÓN INTEGRAL PARA EL CUMPLIMIENTO DE LOS DERECHOS DE LA NIÑEZ Y DE LA ADOLECENCIA"]
["09PFRI Fideicomiso para la Reconstrucción Integral de la Ciudad de México","M001 ACTIVIDADES DE APOYO ADMINISTRATIVO"]
["09PFRI Fideicomiso para la Reconstrucción Integral de la Ciudad de México","U035 PROGRAMA PARA LA RECONSTRUCCIÓN, REHABILITACIÓN DE VIVIENDAS Y OTRAS PREVISIONES"]
["10C001 Secretaría de Movilidad","E112 OPERACIÓN Y PROMOCIÓN DE MOVILIDAD SUSTENTABLE"]
["10C001 Secretaría de Movilidad","F024 ACCIONES DE EDUCACIÓN, PREVENCIÓN Y ATENCIÓN DE POLÍTICAS DE SEGURIDAD VIAL"]
["10C001 Secretaría de Movilidad","G018 GESTIÓN Y REGULACIÓN DE SISTEMAS DE MOVILIDAD Y TRANSPORTE, Y ESTACIONAMIENTOS"]
["10C001 Secretaría de Movilidad","G019 CONTROL, ORDENAMIENTO Y SISTEMATIZACIÓN DEL TRANSPORTE"]
["10C001 Secretaría de Movilidad","M001 ACTIVIDADES DE APOYO ADMINISTRATIVO"]
["10C001 Secretaría de Movilidad","N001 CUMPLIMIENTO DE LOS PROGRAMAS DE PROTECCIÓN CIVIL"]
["10C001 Secretaría de Movilidad","O001 ACTIVIDADES DE APOYO A LA FUNCIÓN PÚBLICA Y BUEN GOBIERNO"]
["10C001 Secretaría de Movilidad","P001 PROMOCIÓN INTEGRAL PARA EL CUMPLIMIENTO DE LOS DERECHOS HUMANOS DE LAS NIÑAS Y MUJERES"]
["10C001 Secretaría de Movilidad","P004 PROMOCIÓN INTEGRAL PARA EL CUMPLIMIENTO DE LOS DERECHOS DE LA NIÑEZ Y DE LA ADOLECENCIA"]
["10C001 Secretaría de Movilidad","P044 ACCIONES PARA LA INTEGRACIÓN DEL TRANSPORTE PÚBLICO"]
["10C001 Secretaría de Movilidad","P045  DISEÑO INTEGRAL DE INFRAESTRUCTURA PEATONAL Y CICLISTA"]
["10C001 Secretaría de Movilidad","U026 APOYOS ECONÓMICOS Y OTRAS AYUDAS SOCIALES"]
["10CD01 Órgano Regulador de Transporte","G005 REGULACIÓN DE CORREDORES DE TRANSPORTE PÚBLICO Y CENTROS DE TRANSFERENCIA MODAL"]
["10CD01 Órgano Regulador de Transporte","K004 INFRAESTRUCTURA DE TRANSPORTE PÚBLICO"]
["10CD01 Órgano Regulador de Transporte","K007 SISTEMA DE TRANSPORTE PÚBLICO CABLEBÚS"]
["10CD01 Órgano Regulador de Transporte","M001 ACTIVIDADES DE APOYO ADMINISTRATIVO"]
["10CD01 Órgano Regulador de Transporte","N001 CUMPLIMIENTO DE LOS PROGRAMAS DE PROTECCIÓN CIVIL"]
["10CD01 Órgano Regulador de Transporte","O001 ACTIVIDADES DE APOYO A LA FUNCIÓN PÚBLICA Y BUEN GOBIERNO"]
["10CD01 Órgano Regulador de Transporte","P001 PROMOCIÓN INTEGRAL PARA EL CUMPLIMIENTO DE LOS DERECHOS HUMANOS DE LAS NIÑAS Y MUJERES"]
["10CD01 Órgano Regulador de Transporte","P002 PROMOCIÓN INTEGRAL PARA EL CUMPLIMIENTO DE LOS DERECHOS HUMANOS"]
["10CD01 Órgano Regulador de Transporte","P004 PROMOCIÓN INTEGRAL PARA EL CUMPLIMIENTO DE LOS DERECHOS DE LA NIÑEZ Y DE LA ADOLECENCIA"]
["10P0AC Fondo Público de Atención al Ciclista y al Peatón","E039 MEJORAS A LA INFRAESTRUCTURA PARA MOVILIDAD NO MOTORIZADA Y PEATONAL"]
["10P0TP Fideicomiso para el Fondo de Promoción para el Financiamiento del Transporte Público","U022 ACCIONES PARA MEJORAR EL SERVICIO DE TRANSPORTE PÚBLICO, ASÍ COMO LA INFRAESTRUCTURA ASOCIADA"]
["10PDMB Metrobús","E042 OPERACIÓN Y MANTENIMIENTO DEL TRANSPORTE PÚBLICO MASIVO, CONCESIONADO Y ALTERNO"]
["10PDMB Metrobús","M001 ACTIVIDADES DE APOYO ADMINISTRATIVO"]
["10PDMB Metrobús","N001 CUMPLIMIENTO DE LOS PROGRAMAS DE PROTECCIÓN CIVIL"]
["10PDMB Metrobús","O001 ACTIVIDADES DE APOYO A LA FUNCIÓN PÚBLICA Y BUEN GOBIERNO"]
["10PDMB Metrobús","P001 PROMOCIÓN INTEGRAL PARA EL CUMPLIMIENTO DE LOS DERECHOS HUMANOS DE LAS NIÑAS Y MUJERES"]
["10PDMB Metrobús","P002 PROMOCIÓN INTEGRAL PARA EL CUMPLIMIENTO DE LOS DERECHOS HUMANOS"]
["10PDMB Metrobús","P004 PROMOCIÓN INTEGRAL PARA EL CUMPLIMIENTO DE LOS DERECHOS DE LA NIÑEZ Y DE LA ADOLECENCIA"]
["10PDME Sistema de Transporte Colectivo Metro","E042 OPERACIÓN Y MANTENIMIENTO DEL TRANSPORTE PÚBLICO MASIVO, CONCESIONADO Y ALTERNO"]
["10PDME Sistema de Transporte Colectivo Metro","K004 INFRAESTRUCTURA DE TRANSPORTE PÚBLICO"]
["10PDME Sistema de Transporte Colectivo Metro","M001 ACTIVIDADES DE APOYO ADMINISTRATIVO"]
["10PDME Sistema de Transporte Colectivo Metro","N001 CUMPLIMIENTO DE LOS PROGRAMAS DE PROTECCIÓN CIVIL"]
["10PDME Sistema de Transporte Colectivo Metro","O001 ACTIVIDADES DE APOYO A LA FUNCIÓN PÚBLICA Y BUEN GOBIERNO"]
["10PDME Sistema de Transporte Colectivo Metro","P001 PROMOCIÓN INTEGRAL PARA EL CUMPLIMIENTO DE LOS DERECHOS HUMANOS DE LAS NIÑAS Y MUJERES"]
["10PDME Sistema de Transporte Colectivo Metro","P002 PROMOCIÓN INTEGRAL PARA EL CUMPLIMIENTO DE LOS DERECHOS HUMANOS"]
["10PDME Sistema de Transporte Colectivo Metro","P004 PROMOCIÓN INTEGRAL PARA EL CUMPLIMIENTO DE LOS DERECHOS DE LA NIÑEZ Y DE LA ADOLECENCIA"]
["10PDRT Red de Transporte de Pasajeros (RTP)","E088 OPERACIÓN Y MANTENIMIENTO DE LA RED DE TRANSPORTE DE PASAJEROS (RTP)"]
["10PDRT Red de Transporte de Pasajeros (RTP)","M001 ACTIVIDADES DE APOYO ADMINISTRATIVO"]
["10PDRT Red de Transporte de Pasajeros (RTP)","N001 CUMPLIMIENTO DE LOS PROGRAMAS DE PROTECCIÓN CIVIL"]
["10PDRT Red de Transporte de Pasajeros (RTP)","O001 ACTIVIDADES DE APOYO A LA FUNCIÓN PÚBLICA Y BUEN GOBIERNO"]
["10PDRT Red de Transporte de Pasajeros (RTP)","P001 PROMOCIÓN INTEGRAL PARA EL CUMPLIMIENTO DE LOS DERECHOS HUMANOS DE LAS NIÑAS Y MUJERES"]
["10PDRT Red de Transporte de Pasajeros (RTP)","P002 PROMOCIÓN INTEGRAL PARA EL CUMPLIMIENTO DE LOS DERECHOS HUMANOS"]
["10PDRT Red de Transporte de Pasajeros (RTP)","P004 PROMOCIÓN INTEGRAL PARA EL CUMPLIMIENTO DE LOS DERECHOS DE LA NIÑEZ Y DE LA ADOLECENCIA"]
["10PDTE Servicio de Transportes Eléctricos","E042 OPERACIÓN Y MANTENIMIENTO DEL TRANSPORTE PÚBLICO MASIVO, CONCESIONADO Y ALTERNO"]
["10PDTE Servicio de Transportes Eléctricos","J001 PAGO DE PENSIONES Y JUBILACIONES"]
["10PDTE Servicio de Transportes Eléctricos","M001 ACTIVIDADES DE APOYO ADMINISTRATIVO"]
["10PDTE Servicio de Transportes Eléctricos","N001 CUMPLIMIENTO DE LOS PROGRAMAS DE PROTECCIÓN CIVIL"]
["10PDTE Servicio de Transportes Eléctricos","O001 ACTIVIDADES DE APOYO A LA FUNCIÓN PÚBLICA Y BUEN GOBIERNO"]
["10PDTE Servicio de Transportes Eléctricos","P001 PROMOCIÓN INTEGRAL PARA EL CUMPLIMIENTO DE LOS DERECHOS HUMANOS DE LAS NIÑAS Y MUJERES"]
["10PDTE Servicio de Transportes Eléctricos","P002 PROMOCIÓN INTEGRAL PARA EL CUMPLIMIENTO DE LOS DERECHOS HUMANOS"]
["10PDTE Servicio de Transportes Eléctricos","P004 PROMOCIÓN INTEGRAL PARA EL CUMPLIMIENTO DE LOS DERECHOS DE LA NIÑEZ Y DE LA ADOLECENCIA"]
["11C001 Secretaría de Seguridad Ciudadana","E007 PREVENCIÓN DEL DELITO"]
["11C001 Secretaría de Seguridad Ciudadana","E021 SEGURIDAD CIUDADANA EN CUADRANTES"]
["11C001 Secretaría de Seguridad Ciudadana","E053 PROTECCIÓN CIUDADANA ORDEN PÚBLICO Y PAZ SOCIAL"]
["11C001 Secretaría de Seguridad Ciudadana","M001 ACTIVIDADES DE APOYO ADMINISTRATIVO"]
["11C001 Secretaría de Seguridad Ciudadana","N001 CUMPLIMIENTO DE LOS PROGRAMAS DE PROTECCIÓN CIVIL"]
["11C001 Secretaría de Seguridad Ciudadana","O001 ACTIVIDADES DE APOYO A LA FUNCIÓN PÚBLICA Y BUEN GOBIERNO"]
["11C001 Secretaría de Seguridad Ciudadana","P001 PROMOCIÓN INTEGRAL PARA EL CUMPLIMIENTO DE LOS DERECHOS HUMANOS DE LAS NIÑAS Y MUJERES"]
["11C001 Secretaría de Seguridad Ciudadana","P002 PROMOCIÓN INTEGRAL PARA EL CUMPLIMIENTO DE LOS DERECHOS HUMANOS"]
["11C001 Secretaría de Seguridad Ciudadana","P004 PROMOCIÓN INTEGRAL PARA EL CUMPLIMIENTO DE LOS DERECHOS DE LA NIÑEZ Y DE LA ADOLECENCIA"]
["11CD01 Universidad de la Policía","E025 FORMACIÓN CONTINÚA PARA POLICÍAS PREVENTIVOS"]
["11CD01 Universidad de la Policía","E026 FORMACIÓN DE ASPIRANTES A POLICÍAS"]
["11CD01 Universidad de la Policía","M001 ACTIVIDADES DE APOYO ADMINISTRATIVO"]
["11CD01 Universidad de la Policía","N001 CUMPLIMIENTO DE LOS PROGRAMAS DE PROTECCIÓN CIVIL"]
["11CD01 Universidad de la Policía","O001 ACTIVIDADES DE APOYO A LA FUNCIÓN PÚBLICA Y BUEN GOBIERNO"]
["11CD01 Universidad de la Policía","P001 PROMOCIÓN INTEGRAL PARA EL CUMPLIMIENTO DE LOS DERECHOS HUMANOS DE LAS NIÑAS Y MUJERES"]
["11CD01 Universidad de la Policía","P002 PROMOCIÓN INTEGRAL PARA EL CUMPLIMIENTO DE LOS DERECHOS HUMANOS"]
["11CD01 Universidad de la Policía","P004 PROMOCIÓN INTEGRAL PARA EL CUMPLIMIENTO DE LOS DERECHOS DE LA NIÑEZ Y DE LA ADOLECENCIA"]
["11CD02 Policía Auxiliar","E026 FORMACIÓN DE ASPIRANTES A POLICÍAS"]
["11CD02 Policía Auxiliar","E043 POLICÍA AUXILIAR"]
["11CD02 Policía Auxiliar","M001 ACTIVIDADES DE APOYO ADMINISTRATIVO"]
["11CD02 Policía Auxiliar","N001 CUMPLIMIENTO DE LOS PROGRAMAS DE PROTECCIÓN CIVIL"]
["11CD02 Policía Auxiliar","O001 ACTIVIDADES DE APOYO A LA FUNCIÓN PÚBLICA Y BUEN GOBIERNO"]
["11CD02 Policía Auxiliar","P001 PROMOCIÓN INTEGRAL PARA EL CUMPLIMIENTO DE LOS DERECHOS HUMANOS DE LAS NIÑAS Y MUJERES"]
["11CD02 Policía Auxiliar","P002 PROMOCIÓN INTEGRAL PARA EL CUMPLIMIENTO DE LOS DERECHOS HUMANOS"]
["11CD02 Policía Auxiliar","P004 PROMOCIÓN INTEGRAL PARA EL CUMPLIMIENTO DE LOS DERECHOS DE LA NIÑEZ Y DE LA ADOLECENCIA"]
["11CD03 Policía Bancaria e Industrial","E054 PROTECCIÓN Y VIGILANCIA DEL SECTOR PÚBLICO Y PRIVADO"]
["11CD03 Policía Bancaria e Industrial","M001 ACTIVIDADES DE APOYO ADMINISTRATIVO"]
["11CD03 Policía Bancaria e Industrial","N001 CUMPLIMIENTO DE LOS PROGRAMAS DE PROTECCIÓN CIVIL"]
["11CD03 Policía Bancaria e Industrial","O001 ACTIVIDADES DE APOYO A LA FUNCIÓN PÚBLICA Y BUEN GOBIERNO"]
["11CD03 Policía Bancaria e Industrial","P001 PROMOCIÓN INTEGRAL PARA EL CUMPLIMIENTO DE LOS DERECHOS HUMANOS DE LAS NIÑAS Y MUJERES"]
["11CD03 Policía Bancaria e Industrial","P002 PROMOCIÓN INTEGRAL PARA EL CUMPLIMIENTO DE LOS DERECHOS HUMANOS"]
["11CD03 Policía Bancaria e Industrial","P004 PROMOCIÓN INTEGRAL PARA EL CUMPLIMIENTO DE LOS DERECHOS DE LA NIÑEZ Y DE LA ADOLECENCIA"]
["13C001 Secretaría de la Contraloría General","M001 ACTIVIDADES DE APOYO ADMINISTRATIVO"]
["13C001 Secretaría de la Contraloría General","N001 CUMPLIMIENTO DE LOS PROGRAMAS DE PROTECCIÓN CIVIL"]
["13C001 Secretaría de la Contraloría General","O001 ACTIVIDADES DE APOYO A LA FUNCIÓN PÚBLICA Y BUEN GOBIERNO"]
["13C001 Secretaría de la Contraloría General","O003 INHIBICIÓN Y SANCIÓN DE LAS PRÁCTICAS DE CORRUPCIÓN"]
["13C001 Secretaría de la Contraloría General","O005 PROMOCIÓN DE LA CULTURA A LEGALIDAD"]
["13C001 Secretaría de la Contraloría General","O006 FISCALIZACIÓN A LA GESTIÓN PÚBLICA"]
["13C001 Secretaría de la Contraloría General","P001 PROMOCIÓN INTEGRAL PARA EL CUMPLIMIENTO DE LOS DERECHOS HUMANOS DE LAS NIÑAS Y MUJERES"]
["13C001 Secretaría de la Contraloría General","P002 PROMOCIÓN INTEGRAL PARA EL CUMPLIMIENTO DE LOS DERECHOS HUMANOS"]
["13C001 Secretaría de la Contraloría General","P003 PLANEACIÓN, SEGUIMIENTO Y EVALUACIÓN A POLÍTICAS PÚBLICAS"]
["13C001 Secretaría de la Contraloría General","P004 PROMOCIÓN INTEGRAL PARA EL CUMPLIMIENTO DE LOS DERECHOS DE LA NIÑEZ Y DE LA ADOLECENCIA"]
["13PDEA Escuela de Administración Pública","E080 PROFESIONALIZACIÓN DE SERVIDORES PÚBLICOS E INVESTIGACIÓN APLICADA PARA LA BUENA ADMINISTRACIÓN"]
["13PDEA Escuela de Administración Pública","M001 ACTIVIDADES DE APOYO ADMINISTRATIVO"]
["13PDEA Escuela de Administración Pública","N001 CUMPLIMIENTO DE LOS PROGRAMAS DE PROTECCIÓN CIVIL"]
["13PDEA Escuela de Administración Pública","O001 ACTIVIDADES DE APOYO A LA FUNCIÓN PÚBLICA Y BUEN GOBIERNO"]
["13PDEA Escuela de Administración Pública","P001 PROMOCIÓN INTEGRAL PARA EL CUMPLIMIENTO DE LOS DERECHOS HUMANOS DE LAS NIÑAS Y MUJERES"]
["13PDEA Escuela de Administración Pública","P002 PROMOCIÓN INTEGRAL PARA EL CUMPLIMIENTO DE LOS DERECHOS HUMANOS"]
["13PDEA Escuela de Administración Pública","P004 PROMOCIÓN INTEGRAL PARA EL CUMPLIMIENTO DE LOS DERECHOS DE LA NIÑEZ Y DE LA ADOLECENCIA"]
["13PDVA Instituto de Verificación Administrativa","G011 ACCIONES PARA EL CUMPLIMIENTO  DE LAS DISPOSICIONES MERCANTILES, JURÍDICAS Y ADMINISTRATIVAS"]
["13PDVA Instituto de Verificación Administrativa","M001 ACTIVIDADES DE APOYO ADMINISTRATIVO"]
["13PDVA Instituto de Verificación Administrativa","N001 CUMPLIMIENTO DE LOS PROGRAMAS DE PROTECCIÓN CIVIL"]
["13PDVA Instituto de Verificación Administrativa","O001 ACTIVIDADES DE APOYO A LA FUNCIÓN PÚBLICA Y BUEN GOBIERNO"]
["13PDVA Instituto de Verificación Administrativa","P001 PROMOCIÓN INTEGRAL PARA EL CUMPLIMIENTO DE LOS DERECHOS HUMANOS DE LAS NIÑAS Y MUJERES"]
["13PDVA Instituto de Verificación Administrativa","P002 PROMOCIÓN INTEGRAL PARA EL CUMPLIMIENTO DE LOS DERECHOS HUMANOS"]
["13PDVA Instituto de Verificación Administrativa","P004 PROMOCIÓN INTEGRAL PARA EL CUMPLIMIENTO DE LOS DERECHOS DE LA NIÑEZ Y DE LA ADOLECENCIA"]
["14P0PJ Fideicomiso Público del Fondo de Apoyo a la Procuración de Justicia","E002 ACCIONES DE FORTALECIMIENTO PARA LA PROCURACIÓN DE JUSTICIA"]
["15C006 Tesorería","U009 OTROS SUBSIDIOS"]
["16C000 Deuda Pública","D001 SERVICIO DE LA DEUDA"]
["16C000 Deuda Pública","D002 VOLUCIÓN DE INGRESOS PERCIBIDOS INDEBIDAMENTE"]
["17L000 Congreso de la Ciudad de México","0000 ÓRGANOS AUTÓNOMOS Y DE GOBIERNO"]
["18L000 Auditoría Superior de la Ciudad de México","0000 ÓRGANOS AUTÓNOMOS Y DE GOBIERNO"]
["19J000 Tribunal Superior de Justicia","0000 ÓRGANOS AUTÓNOMOS Y DE GOBIERNO"]
["20J000 Consejo de la Judicatura","0000 ÓRGANOS AUTÓNOMOS Y DE GOBIERNO"]
["21A000 Tribunal de Justicia Administrativa","0000 ÓRGANOS AUTÓNOMOS Y DE GOBIERNO"]
["22A000 Junta Local de Conciliación y Arbitraje","0000 ÓRGANOS AUTÓNOMOS Y DE GOBIERNO"]
["23A000 Comisión de Derechos Humanos","0000 ÓRGANOS AUTÓNOMOS Y DE GOBIERNO"]
["24A000 Instituto Electoral","0000 ÓRGANOS AUTÓNOMOS Y DE GOBIERNO"]
["25C001 Consejería Jurídica y de Servicios Legales","E011 FORTALECIMIENTO EN MATERIA JURÍDICA"]
["25C001 Consejería Jurídica y de Servicios Legales","E031 PRESTACIÓN DE SERVICIOS PARA LOS TRAMITES DE IDENTIDAD Y PROPIEDAD"]
["25C001 Consejería Jurídica y de Servicios Legales","E082 REGULARIZACIÓN DE LA TENENCIA DE LA TIERRA"]
["25C001 Consejería Jurídica y de Servicios Legales","M001 ACTIVIDADES DE APOYO ADMINISTRATIVO"]
["25C001 Consejería Jurídica y de Servicios Legales","N001 CUMPLIMIENTO DE LOS PROGRAMAS DE PROTECCIÓN CIVIL"]
["25C001 Consejería Jurídica y de Servicios Legales","O001 ACTIVIDADES DE APOYO A LA FUNCIÓN PÚBLICA Y BUEN GOBIERNO"]
["25C001 Consejería Jurídica y de Servicios Legales","P001 PROMOCIÓN INTEGRAL PARA EL CUMPLIMIENTO DE LOS DERECHOS HUMANOS DE LAS NIÑAS Y MUJERES"]
["25C001 Consejería Jurídica y de Servicios Legales","P002 PROMOCIÓN INTEGRAL PARA EL CUMPLIMIENTO DE LOS DERECHOS HUMANOS"]
["25C001 Consejería Jurídica y de Servicios Legales","P004 PROMOCIÓN INTEGRAL PARA EL CUMPLIMIENTO DE LOS DERECHOS DE LA NIÑEZ Y DE LA ADOLECENCIA"]
["26C001 Secretaría de Salud","E004 PREVENCIÓN DE CÁNCER DE MAMA Y CERVICOUTERINO"]
["26C001 Secretaría de Salud","E012 ATENCIÓN MEDICA"]
["26C001 Secretaría de Salud","E017 ATENCIÓN MÉDICA A PERSONAS PRIVADAS DE SU LIBERTAD Y EN PROCEDIMIENTO LEGAL"]
["26C001 Secretaría de Salud","E019  PREVENCIÓN Y ATENCIÓN  DE LA VIOLENCIA CONTRA LAS MUJERES"]
["26C001 Secretaría de Salud","E061 SALUD MATERNA, SEXUAL Y REPRODUCTIVA"]
["26C001 Secretaría de Salud","E070 CONSERVACIÓN Y MANTENIMIENTO MENOR DE INMUEBLES Y EQUIPOS"]
["26C001 Secretaría de Salud","E078 ATENCIÓN MÉDICA DE URGENCIAS"]
["26C001 Secretaría de Salud","E102 PROFESIONALIZACIÓN DE SERVIDORES PÚBLICOS DE LA SALUD"]
["26C001 Secretaría de Salud","M001 ACTIVIDADES DE APOYO ADMINISTRATIVO"]
["26C001 Secretaría de Salud","N001 CUMPLIMIENTO DE LOS PROGRAMAS DE PROTECCIÓN CIVIL"]
["26C001 Secretaría de Salud","O001 ACTIVIDADES DE APOYO A LA FUNCIÓN PÚBLICA Y BUEN GOBIERNO"]
["26C001 Secretaría de Salud","P001 PROMOCIÓN INTEGRAL PARA EL CUMPLIMIENTO DE LOS DERECHOS HUMANOS DE LAS NIÑAS Y MUJERES"]
["26C001 Secretaría de Salud","P002 PROMOCIÓN INTEGRAL PARA EL CUMPLIMIENTO DE LOS DERECHOS HUMANOS"]
["26C001 Secretaría de Salud","P004 PROMOCIÓN INTEGRAL PARA EL CUMPLIMIENTO DE LOS DERECHOS DE LA NIÑEZ Y DE LA ADOLECENCIA"]
["26C001 Secretaría de Salud","U010 PREVENCIÓN DE ENFERMEDADES Y PROMOCIÓN A LA SALUD"]
["26CD01 Agencia de Protección Sanitaria","F026 FOMENTO SANITARIO EN ESTABLECIMIENTOS, PRODUCTOS, ACTIVIDADES, SERVICIOS Y PERSONAS"]
["26CD01 Agencia de Protección Sanitaria","G016 CONTROL Y REGULACIÓN SANITARIA"]
["26CD01 Agencia de Protección Sanitaria","G017 VIGILANCIA SANITARIA EN ESTABLECIMIENTOS, PRODUCTOS, ACTIVIDADES, SERVICIOS Y PERSONAS"]
["26CD01 Agencia de Protección Sanitaria","M001 ACTIVIDADES DE APOYO ADMINISTRATIVO"]
["26CD01 Agencia de Protección Sanitaria","N001 CUMPLIMIENTO DE LOS PROGRAMAS DE PROTECCIÓN CIVIL"]
["26CD01 Agencia de Protección Sanitaria","O001 ACTIVIDADES DE APOYO A LA FUNCIÓN PÚBLICA Y BUEN GOBIERNO"]
["26CD01 Agencia de Protección Sanitaria","P001 PROMOCIÓN INTEGRAL PARA EL CUMPLIMIENTO DE LOS DERECHOS HUMANOS DE LAS NIÑAS Y MUJERES"]
["26CD01 Agencia de Protección Sanitaria","P002 PROMOCIÓN INTEGRAL PARA EL CUMPLIMIENTO DE LOS DERECHOS HUMANOS"]
["26CD01 Agencia de Protección Sanitaria","P004 PROMOCIÓN INTEGRAL PARA EL CUMPLIMIENTO DE LOS DERECHOS DE LA NIÑEZ Y DE LA ADOLECENCIA"]
["26PDIA Instituto para la Atención y Prevención de las Adicciones","E016 ATENCIÓN INTEGRAL Y TRATAMIENTO DE ADICCIONES"]
["26PDIA Instituto para la Atención y Prevención de las Adicciones","M001 ACTIVIDADES DE APOYO ADMINISTRATIVO"]
["26PDIA Instituto para la Atención y Prevención de las Adicciones","N001 CUMPLIMIENTO DE LOS PROGRAMAS DE PROTECCIÓN CIVIL"]
["26PDIA Instituto para la Atención y Prevención de las Adicciones","O001 ACTIVIDADES DE APOYO A LA FUNCIÓN PÚBLICA Y BUEN GOBIERNO"]
["26PDIA Instituto para la Atención y Prevención de las Adicciones","P001 PROMOCIÓN INTEGRAL PARA EL CUMPLIMIENTO DE LOS DERECHOS HUMANOS DE LAS NIÑAS Y MUJERES"]
["26PDIA Instituto para la Atención y Prevención de las Adicciones","P002 PROMOCIÓN INTEGRAL PARA EL CUMPLIMIENTO DE LOS DERECHOS HUMANOS"]
["26PDIA Instituto para la Atención y Prevención de las Adicciones","P004 PROMOCIÓN INTEGRAL PARA EL CUMPLIMIENTO DE LOS DERECHOS DE LA NIÑEZ Y DE LA ADOLECENCIA"]
["26PDIA Instituto para la Atención y Prevención de las Adicciones","P022 PLANEACIÓN DE POLÍTICAS PÚBLICAS PARA MEJORAR LA ATENCIÓN DE LAS ADICCIONES"]
["26PDIA Instituto para la Atención y Prevención de las Adicciones","U018 APOYO PARA LA ATENCIÓN Y PREVENCIÓN DE LAS ADICCIONES"]
["26PDSP Servicios de Salud Pública","E018 ATENCIÓN VETERINARIA"]
["26PDSP Servicios de Salud Pública","E061 SALUD MATERNA, SEXUAL Y REPRODUCTIVA"]
["26PDSP Servicios de Salud Pública","E066 SERVICIOS DE SALUD DEL PRIMER NIVEL"]
["26PDSP Servicios de Salud Pública","M001 ACTIVIDADES DE APOYO ADMINISTRATIVO"]
["26PDSP Servicios de Salud Pública","N001 CUMPLIMIENTO DE LOS PROGRAMAS DE PROTECCIÓN CIVIL"]
["26PDSP Servicios de Salud Pública","O001 ACTIVIDADES DE APOYO A LA FUNCIÓN PÚBLICA Y BUEN GOBIERNO"]
["26PDSP Servicios de Salud Pública","P001 PROMOCIÓN INTEGRAL PARA EL CUMPLIMIENTO DE LOS DERECHOS HUMANOS DE LAS NIÑAS Y MUJERES"]
["26PDSP Servicios de Salud Pública","P002 PROMOCIÓN INTEGRAL PARA EL CUMPLIMIENTO DE LOS DERECHOS HUMANOS"]
["26PDSP Servicios de Salud Pública","P004 PROMOCIÓN INTEGRAL PARA EL CUMPLIMIENTO DE LOS DERECHOS DE LA NIÑEZ Y DE LA ADOLECENCIA"]
["27A000 Tribunal Electoral","0000 ÓRGANOS AUTÓNOMOS Y DE GOBIERNO"]
["29A000 Universidad Autónoma de la Ciudad de México","0000 ÓRGANOS AUTÓNOMOS Y DE GOBIERNO"]
["31C000 Secretaría de Cultura","E048 PRODUCCIÓN DE CONTENIDO CULTURAL Y ARTÍSTICO"]
["31C000 Secretaría de Cultura","E072 PRESERVACIÓN Y CUIDADO DEL PATRIMONIO MATERIAL E INMATERIAL"]
["31C000 Secretaría de Cultura","E079 PROMOCIÓN Y OPERACIÓN INTEGRAL DE LA ORQUESTA FILARMÓNICA DE LA CIUDAD DE MÉXICO"]
["31C000 Secretaría de Cultura","F013 OPERACIÓN DE CENTROS CULTURALES, MUSEOS, TEATROS Y ESPACIOS PARA EL ARTE Y CULTURA"]
["31C000 Secretaría de Cultura","F018 VINCULACIÓN Y FORTALECIMIENTO DE LA CULTURA Y LAS ARTES"]
["31C000 Secretaría de Cultura","M001 ACTIVIDADES DE APOYO ADMINISTRATIVO"]
["31C000 Secretaría de Cultura","O001 ACTIVIDADES DE APOYO A LA FUNCIÓN PÚBLICA Y BUEN GOBIERNO"]
["31C000 Secretaría de Cultura","P001 PROMOCIÓN INTEGRAL PARA EL CUMPLIMIENTO DE LOS DERECHOS HUMANOS DE LAS NIÑAS Y MUJERES"]
["31C000 Secretaría de Cultura","P002 PROMOCIÓN INTEGRAL PARA EL CUMPLIMIENTO DE LOS DERECHOS HUMANOS"]
["31C000 Secretaría de Cultura","P004 PROMOCIÓN INTEGRAL PARA EL CUMPLIMIENTO DE LOS DERECHOS DE LA NIÑEZ Y DE LA ADOLECENCIA"]
["31C000 Secretaría de Cultura","S012 COLECTIVOS CULTURALES COMUNITARIOS CIUDAD DE MÉXICO"]
["31C000 Secretaría de Cultura","S051 PROMOTORES CULTURALES CIUDAD DE MÉXICO"]
["31C000 Secretaría de Cultura","S057 TALLERES DE ARTES Y OFICIOS COMUNITARIOS"]
["31C000 Secretaría de Cultura","U014 FINANCIAMIENTO Y PROMOCIÓN DE PROYECTOS CULTURALES Y ARTÍSTICOS"]
["31PFMA Fideicomiso Museo de Arte Popular Mexicano","E028 OPERACIÓN DEL MUSEO DE ARTE POPULAR"]
["31PFMA Fideicomiso Museo de Arte Popular Mexicano","M001 ACTIVIDADES DE APOYO ADMINISTRATIVO"]
["31PFMA Fideicomiso Museo de Arte Popular Mexicano","N001 CUMPLIMIENTO DE LOS PROGRAMAS DE PROTECCIÓN CIVIL"]
["31PFMA Fideicomiso Museo de Arte Popular Mexicano","O001 ACTIVIDADES DE APOYO A LA FUNCIÓN PÚBLICA Y BUEN GOBIERNO"]
["31PFMA Fideicomiso Museo de Arte Popular Mexicano","P001 PROMOCIÓN INTEGRAL PARA EL CUMPLIMIENTO DE LOS DERECHOS HUMANOS DE LAS NIÑAS Y MUJERES"]
["31PFMA Fideicomiso Museo de Arte Popular Mexicano","P002 PROMOCIÓN INTEGRAL PARA EL CUMPLIMIENTO DE LOS DERECHOS HUMANOS"]
["31PFMA Fideicomiso Museo de Arte Popular Mexicano","P004 PROMOCIÓN INTEGRAL PARA EL CUMPLIMIENTO DE LOS DERECHOS DE LA NIÑEZ Y DE LA ADOLECENCIA"]
["31PFME Fideicomiso Museo del Estanquillo","E073 OPERACIÓN DEL MUSEO DEL ESTANQUILLO"]
["31PFME Fideicomiso Museo del Estanquillo","M001 ACTIVIDADES DE APOYO ADMINISTRATIVO"]
["31PFME Fideicomiso Museo del Estanquillo","N001 CUMPLIMIENTO DE LOS PROGRAMAS DE PROTECCIÓN CIVIL"]
["31PFME Fideicomiso Museo del Estanquillo","O001 ACTIVIDADES DE APOYO A LA FUNCIÓN PÚBLICA Y BUEN GOBIERNO"]
["31PFME Fideicomiso Museo del Estanquillo","P001 PROMOCIÓN INTEGRAL PARA EL CUMPLIMIENTO DE LOS DERECHOS HUMANOS DE LAS NIÑAS Y MUJERES"]
["31PFME Fideicomiso Museo del Estanquillo","P002 PROMOCIÓN INTEGRAL PARA EL CUMPLIMIENTO DE LOS DERECHOS HUMANOS"]
["31PFPC Fideicomiso de Promocion y Desarrollo del Cine Mexicano","E049 PRODUCCIÓN Y SERVICIOS FÍLMICOS Y CINEMATOGRÁFICOS"]
["31PFPC Fideicomiso de Promocion y Desarrollo del Cine Mexicano","M001 ACTIVIDADES DE APOYO ADMINISTRATIVO"]
["31PFPC Fideicomiso de Promocion y Desarrollo del Cine Mexicano","N001 CUMPLIMIENTO DE LOS PROGRAMAS DE PROTECCIÓN CIVIL"]
["31PFPC Fideicomiso de Promocion y Desarrollo del Cine Mexicano","O001 ACTIVIDADES DE APOYO A LA FUNCIÓN PÚBLICA Y BUEN GOBIERNO"]
["31PFPC Fideicomiso de Promocion y Desarrollo del Cine Mexicano","P001 PROMOCIÓN INTEGRAL PARA EL CUMPLIMIENTO DE LOS DERECHOS HUMANOS DE LAS NIÑAS Y MUJERES"]
["31PFPC Fideicomiso de Promocion y Desarrollo del Cine Mexicano","P002 PROMOCIÓN INTEGRAL PARA EL CUMPLIMIENTO DE LOS DERECHOS HUMANOS"]
["31PFPC Fideicomiso de Promocion y Desarrollo del Cine Mexicano","P004 PROMOCIÓN INTEGRAL PARA EL CUMPLIMIENTO DE LOS DERECHOS DE LA NIÑEZ Y DE LA ADOLECENCIA"]
["32A000 Instituto de Transparencia, Acceso a la Información Pública, Protección de Datos Personales y Rendición de Cuentas","0000 ÓRGANOS AUTÓNOMOS Y DE GOBIERNO"]
["33C001 Secretaría de Trabajo y Fomento Al Empleo","E098 SUPERVISIÓN Y PROMOCIÓN DE LOS DERECHOS LABORALES"]
["33C001 Secretaría de Trabajo y Fomento Al Empleo","E099 ACCIONES JURÍDICAS EN MATERIA LABORAL"]
["33C001 Secretaría de Trabajo y Fomento Al Empleo","M001 ACTIVIDADES DE APOYO ADMINISTRATIVO"]
["33C001 Secretaría de Trabajo y Fomento Al Empleo","N001 CUMPLIMIENTO DE LOS PROGRAMAS DE PROTECCIÓN CIVIL"]
["33C001 Secretaría de Trabajo y Fomento Al Empleo","O001 ACTIVIDADES DE APOYO A LA FUNCIÓN PÚBLICA Y BUEN GOBIERNO"]
["33C001 Secretaría de Trabajo y Fomento Al Empleo","P001 PROMOCIÓN INTEGRAL PARA EL CUMPLIMIENTO DE LOS DERECHOS HUMANOS DE LAS NIÑAS Y MUJERES"]
["33C001 Secretaría de Trabajo y Fomento Al Empleo","P002 PROMOCIÓN INTEGRAL PARA EL CUMPLIMIENTO DE LOS DERECHOS HUMANOS"]
["33C001 Secretaría de Trabajo y Fomento Al Empleo","S022 FOMENTO AL TRABAJO DIGNO"]
["33C001 Secretaría de Trabajo y Fomento Al Empleo","S023 FOMENTO, CONSTITUCIÓN Y FORTALECIMIENTO DE LAS EMPRESAS SOCIALES Y SOLIDARIAS DE LA CIUDAD DE MÉXICO (FOCOFESS)"]
["33C001 Secretaría de Trabajo y Fomento Al Empleo","S054 SEGURO DE DESEMPLEO"]
["33PDIT Instituto de Capacitación para el Trabajo","E100 CAPACITACIÓN A LA POBLACIÓN OCUPADA Y DESOCUPADA DE LA CIUDAD DE MÉXICO"]
["33PDIT Instituto de Capacitación para el Trabajo","M001 ACTIVIDADES DE APOYO ADMINISTRATIVO"]
["33PDIT Instituto de Capacitación para el Trabajo","N001 CUMPLIMIENTO DE LOS PROGRAMAS DE PROTECCIÓN CIVIL"]
["33PDIT Instituto de Capacitación para el Trabajo","O001 ACTIVIDADES DE APOYO A LA FUNCIÓN PÚBLICA Y BUEN GOBIERNO"]
["33PDIT Instituto de Capacitación para el Trabajo","P001 PROMOCIÓN INTEGRAL PARA EL CUMPLIMIENTO DE LOS DERECHOS HUMANOS DE LAS NIÑAS Y MUJERES"]
["33PDIT Instituto de Capacitación para el Trabajo","P002 PROMOCIÓN INTEGRAL PARA EL CUMPLIMIENTO DE LOS DERECHOS HUMANOS"]
["33PDIT Instituto de Capacitación para el Trabajo","P004 PROMOCIÓN INTEGRAL PARA EL CUMPLIMIENTO DE LOS DERECHOS DE LA NIÑEZ Y DE LA ADOLECENCIA"]
["34C001 Secretaría de Gestión Integral de Riesgos y Protección Civil","E113 GESTIÓN INTEGRAL DE RIESGOS"]
["34C001 Secretaría de Gestión Integral de Riesgos y Protección Civil","M001 ACTIVIDADES DE APOYO ADMINISTRATIVO"]
["34C001 Secretaría de Gestión Integral de Riesgos y Protección Civil","N001 CUMPLIMIENTO DE LOS PROGRAMAS DE PROTECCIÓN CIVIL"]
["34C001 Secretaría de Gestión Integral de Riesgos y Protección Civil","O001 ACTIVIDADES DE APOYO A LA FUNCIÓN PÚBLICA Y BUEN GOBIERNO"]
["34C001 Secretaría de Gestión Integral de Riesgos y Protección Civil","P001 PROMOCIÓN INTEGRAL PARA EL CUMPLIMIENTO DE LOS DERECHOS HUMANOS DE LAS NIÑAS Y MUJERES"]
["34C001 Secretaría de Gestión Integral de Riesgos y Protección Civil","P002 PROMOCIÓN INTEGRAL PARA EL CUMPLIMIENTO DE LOS DERECHOS HUMANOS"]
["34C001 Secretaría de Gestión Integral de Riesgos y Protección Civil","P004 PROMOCIÓN INTEGRAL PARA EL CUMPLIMIENTO DE LOS DERECHOS DE LA NIÑEZ Y DE LA ADOLECENCIA"]
["34PDHB Heroico Cuerpo de Bomberos","M001 ACTIVIDADES DE APOYO ADMINISTRATIVO"]
["34PDHB Heroico Cuerpo de Bomberos","N001 CUMPLIMIENTO DE LOS PROGRAMAS DE PROTECCIÓN CIVIL"]
["34PDHB Heroico Cuerpo de Bomberos","N004 PREVENCIÓN Y COMBATE DE INCENDIOS"]
["34PDHB Heroico Cuerpo de Bomberos","O001 ACTIVIDADES DE APOYO A LA FUNCIÓN PÚBLICA Y BUEN GOBIERNO"]
["34PDHB Heroico Cuerpo de Bomberos","P001 PROMOCIÓN INTEGRAL PARA EL CUMPLIMIENTO DE LOS DERECHOS HUMANOS DE LAS NIÑAS Y MUJERES"]
["34PDHB Heroico Cuerpo de Bomberos","P002 PROMOCIÓN INTEGRAL PARA EL CUMPLIMIENTO DE LOS DERECHOS HUMANOS"]
["34PDHB Heroico Cuerpo de Bomberos","P004 PROMOCIÓN INTEGRAL PARA EL CUMPLIMIENTO DE LOS DERECHOS DE LA NIÑEZ Y DE LA ADOLECENCIA"]
["35C001 Secretaría de Pueblos y Barrios Originarios y Comunidades Indígenas Residentes","M001 ACTIVIDADES DE APOYO ADMINISTRATIVO"]
["35C001 Secretaría de Pueblos y Barrios Originarios y Comunidades Indígenas Residentes","N001 CUMPLIMIENTO DE LOS PROGRAMAS DE PROTECCIÓN CIVIL"]
["35C001 Secretaría de Pueblos y Barrios Originarios y Comunidades Indígenas Residentes","O001 ACTIVIDADES DE APOYO A LA FUNCIÓN PÚBLICA Y BUEN GOBIERNO"]
["35C001 Secretaría de Pueblos y Barrios Originarios y Comunidades Indígenas Residentes","P001 PROMOCIÓN INTEGRAL PARA EL CUMPLIMIENTO DE LOS DERECHOS HUMANOS DE LAS NIÑAS Y MUJERES"]
["35C001 Secretaría de Pueblos y Barrios Originarios y Comunidades Indígenas Residentes","P002 PROMOCIÓN INTEGRAL PARA EL CUMPLIMIENTO DE LOS DERECHOS HUMANOS"]
["35C001 Secretaría de Pueblos y Barrios Originarios y Comunidades Indígenas Residentes","P004 PROMOCIÓN INTEGRAL PARA EL CUMPLIMIENTO DE LOS DERECHOS DE LA NIÑEZ Y DE LA ADOLECENCIA"]
["35C001 Secretaría de Pueblos y Barrios Originarios y Comunidades Indígenas Residentes","P036 PLANEACIÓN DE POLÍTICAS PÚBLICAS ENFOCADAS AL DESARROLLO DE LOS PUEBLOS Y BARRIOS ORIGINARIOS Y COMUNIDADES INDÍGENAS RESIDENTES"]
["35C001 Secretaría de Pueblos y Barrios Originarios y Comunidades Indígenas Residentes","S042 PROGRAMA PARA EL FORTALECIMIENTO Y APOYO A LAS COMUNIDADES INDÍGENAS"]
["36C001 Secretaría de Educación, Ciencia, Tecnología e Innovación","E027 FORTALECIMIENTO A LA EDUCACIÓN COMPLEMENTARIA"]
["36C001 Secretaría de Educación, Ciencia, Tecnología e Innovación","E086 FORTALECIMIENTO A LA EDUCACIÓN MEDIA SUPERIOR"]
["36C001 Secretaría de Educación, Ciencia, Tecnología e Innovación","E087 FORTALECIMIENTO A LA EDUCACIÓN BÁSICA"]
["36C001 Secretaría de Educación, Ciencia, Tecnología e Innovación","E094 FORTALECIMIENTO PARA EL ACCESO A LA EDUCACIÓN SUPERIOR"]
["36C001 Secretaría de Educación, Ciencia, Tecnología e Innovación","E114 ATENCIÓN Y SEGUIMIENTO ESPECIAL A GRUPOS VULNERABLES VÍCTIMAS DE LA VIOLENCIA"]
["36C001 Secretaría de Educación, Ciencia, Tecnología e Innovación","F003 CONVENIOS EN MATERIA DE EDUCACIÓN, INNOVACIÓN, CIENCIA Y TECNOLOGÍA"]
["36C001 Secretaría de Educación, Ciencia, Tecnología e Innovación","F021 DIVULGACIÓN DE CONOCIMIENTO CIENTÍFICO TECNOLÓGICO Y DE INNOVACIÓN"]
["36C001 Secretaría de Educación, Ciencia, Tecnología e Innovación","M001 ACTIVIDADES DE APOYO ADMINISTRATIVO"]
["36C001 Secretaría de Educación, Ciencia, Tecnología e Innovación","N001 CUMPLIMIENTO DE LOS PROGRAMAS DE PROTECCIÓN CIVIL"]
["36C001 Secretaría de Educación, Ciencia, Tecnología e Innovación","O001 ACTIVIDADES DE APOYO A LA FUNCIÓN PÚBLICA Y BUEN GOBIERNO"]
["36C001 Secretaría de Educación, Ciencia, Tecnología e Innovación","P001 PROMOCIÓN INTEGRAL PARA EL CUMPLIMIENTO DE LOS DERECHOS HUMANOS DE LAS NIÑAS Y MUJERES"]
["36C001 Secretaría de Educación, Ciencia, Tecnología e Innovación","P002 PROMOCIÓN INTEGRAL PARA EL CUMPLIMIENTO DE LOS DERECHOS HUMANOS"]
["36C001 Secretaría de Educación, Ciencia, Tecnología e Innovación","P004 PROMOCIÓN INTEGRAL PARA EL CUMPLIMIENTO DE LOS DERECHOS DE LA NIÑEZ Y DE LA ADOLECENCIA"]
["36C001 Secretaría de Educación, Ciencia, Tecnología e Innovación","S008 CIBERESCUELAS EN PILARES"]
["36C001 Secretaría de Educación, Ciencia, Tecnología e Innovación","S016 EDUCACIÓN PARA LA AUTONOMÍA ECONÓMICA EN PILARES"]
["36C001 Secretaría de Educación, Ciencia, Tecnología e Innovación","S073 BECA PILARES"]
["36C001 Secretaría de Educación, Ciencia, Tecnología e Innovación","U017 APOYO A LA FORMACIÓN DE CAPITAL HUMANO EN EDUCACIÓN Y CIENCIA"]
["36CD01 Universidad de la Salud","E153 PROGRAMA PARA LA FORMACION DE PROFESIONALES DE LA SALUD"]
["36CD01 Universidad de la Salud","M001 ACTIVIDADES DE APOYO ADMINISTRATIVO"]
["36CDES Instituto de Estudios Superiores de la Ciudad de México \"Rosario Castellanos\"","E094 FORTALECIMIENTO PARA EL ACCESO A LA EDUCACIÓN SUPERIOR"]
["36CDES Instituto de Estudios Superiores de la Ciudad de México \"Rosario Castellanos\"","E095 FORTALECIMIENTO PARA EL ACCESO A POSGRADOS E INVESTIGACIÓN"]
["36CDES Instituto de Estudios Superiores de la Ciudad de México \"Rosario Castellanos\"","M001 ACTIVIDADES DE APOYO ADMINISTRATIVO"]
["36CDES Instituto de Estudios Superiores de la Ciudad de México \"Rosario Castellanos\"","N001 CUMPLIMIENTO DE LOS PROGRAMAS DE PROTECCIÓN CIVIL"]
["36CDES Instituto de Estudios Superiores de la Ciudad de México \"Rosario Castellanos\"","O001 ACTIVIDADES DE APOYO A LA FUNCIÓN PÚBLICA Y BUEN GOBIERNO"]
["36CDES Instituto de Estudios Superiores de la Ciudad de México \"Rosario Castellanos\"","P001 PROMOCIÓN INTEGRAL PARA EL CUMPLIMIENTO DE LOS DERECHOS HUMANOS DE LAS NIÑAS Y MUJERES"]
["36CDES Instituto de Estudios Superiores de la Ciudad de México \"Rosario Castellanos\"","P002 PROMOCIÓN INTEGRAL PARA EL CUMPLIMIENTO DE LOS DERECHOS HUMANOS"]
["36CDES Instituto de Estudios Superiores de la Ciudad de México \"Rosario Castellanos\"","P004 PROMOCIÓN INTEGRAL PARA EL CUMPLIMIENTO DE LOS DERECHOS DE LA NIÑEZ Y DE LA ADOLECENCIA"]
["36PDID Instituto del Deporte","E116 PROGRAMA PILARES"]
["36PDID Instituto del Deporte","F017 PROGRAMA DE CULTURA FÍSICA Y EVENTOS DEPORTIVOS"]
["36PDID Instituto del Deporte","M001 ACTIVIDADES DE APOYO ADMINISTRATIVO"]
["36PDID Instituto del Deporte","N001 CUMPLIMIENTO DE LOS PROGRAMAS DE PROTECCIÓN CIVIL"]
["36PDID Instituto del Deporte","O001 ACTIVIDADES DE APOYO A LA FUNCIÓN PÚBLICA Y BUEN GOBIERNO"]
["36PDID Instituto del Deporte","P001 PROMOCIÓN INTEGRAL PARA EL CUMPLIMIENTO DE LOS DERECHOS HUMANOS DE LAS NIÑAS Y MUJERES"]
["36PDID Instituto del Deporte","P002 PROMOCIÓN INTEGRAL PARA EL CUMPLIMIENTO DE LOS DERECHOS HUMANOS"]
["36PDID Instituto del Deporte","P004 PROMOCIÓN INTEGRAL PARA EL CUMPLIMIENTO DE LOS DERECHOS DE LA NIÑEZ Y DE LA ADOLECENCIA"]
["36PDID Instituto del Deporte","S018 ESTÍMULOS ECONÓMICOS A LAS ASOCIACIONES DEPORTIVAS QUE PARTICIPAN EN LA OLIMPIADA, PARALIMPIADA Y NACIONAL JUVENIL"]
["36PDID Instituto del Deporte","S019 ESTÍMULOS ECONÓMICOS A DEPORTISTAS DESTACADOS REPRESENTATIVOS DE LA CIUDAD DE MÉXICO"]
["36PDID Instituto del Deporte","S029 PONTE PILA, DEPORTE COMUNITARIO"]
["36PDIE Instituto de Educación Media Superior","E086 FORTALECIMIENTO A LA EDUCACIÓN MEDIA SUPERIOR"]
["36PDIE Instituto de Educación Media Superior","F003 CONVENIOS EN MATERIA DE EDUCACIÓN, INNOVACIÓN, CIENCIA Y TECNOLOGÍA"]
["36PDIE Instituto de Educación Media Superior","M001 ACTIVIDADES DE APOYO ADMINISTRATIVO"]
["36PDIE Instituto de Educación Media Superior","N001 CUMPLIMIENTO DE LOS PROGRAMAS DE PROTECCIÓN CIVIL"]
["36PDIE Instituto de Educación Media Superior","O001 ACTIVIDADES DE APOYO A LA FUNCIÓN PÚBLICA Y BUEN GOBIERNO"]
["36PDIE Instituto de Educación Media Superior","P001 PROMOCIÓN INTEGRAL PARA EL CUMPLIMIENTO DE LOS DERECHOS HUMANOS DE LAS NIÑAS Y MUJERES"]
["36PDIE Instituto de Educación Media Superior","P002 PROMOCIÓN INTEGRAL PARA EL CUMPLIMIENTO DE LOS DERECHOS HUMANOS"]
["36PDIE Instituto de Educación Media Superior","P004 PROMOCIÓN INTEGRAL PARA EL CUMPLIMIENTO DE LOS DERECHOS DE LA NIÑEZ Y DE LA ADOLECENCIA"]
["36PDIE Instituto de Educación Media Superior","S039 PROGRAMA DE BECAS DEL INSTITUTO DE EDUCACIÓN MEDIA SUPERIOR DE LA CIUDAD DE MÉXICO"]
["36PDIE Instituto de Educación Media Superior","U017 APOYO A LA FORMACIÓN DE CAPITAL HUMANO EN EDUCACIÓN Y CIENCIA"]
["36PFEG Fideicomiso Educación Garantizada","M001 ACTIVIDADES DE APOYO ADMINISTRATIVO"]
["36PFEG Fideicomiso Educación Garantizada","N001 CUMPLIMIENTO DE LOS PROGRAMAS DE PROTECCIÓN CIVIL"]
["36PFEG Fideicomiso Educación Garantizada","O001 ACTIVIDADES DE APOYO A LA FUNCIÓN PÚBLICA Y BUEN GOBIERNO"]
["36PFEG Fideicomiso Educación Garantizada","P001 PROMOCIÓN INTEGRAL PARA EL CUMPLIMIENTO DE LOS DERECHOS HUMANOS DE LAS NIÑAS Y MUJERES"]
["36PFEG Fideicomiso Educación Garantizada","P002 PROMOCIÓN INTEGRAL PARA EL CUMPLIMIENTO DE LOS DERECHOS HUMANOS"]
["36PFEG Fideicomiso Educación Garantizada","P004 PROMOCIÓN INTEGRAL PARA EL CUMPLIMIENTO DE LOS DERECHOS DE LA NIÑEZ Y DE LA ADOLECENCIA"]
["36PFEG Fideicomiso Educación Garantizada","S026 MEJOR ESCUELA"]
["36PFEG Fideicomiso Educación Garantizada","S033 PROGRAMA BECAS ESCOLARES PARA NIÑAS Y NIÑOS EN CONDICIONES DE VULNERABILIDAD SOCIAL (MÁS BECAS, MEJOR EDUCACIÓN)"]
["36PFEG Fideicomiso Educación Garantizada","S055 SEGURO CONTRA ACCIDENTES PERSONALES DE ESCOLARES, \"VA SEGUR@\""]
["36PFEG Fideicomiso Educación Garantizada","S074 PROGRAMA MI BECA PARA EMPEZAR"]
["36PFEG Fideicomiso Educación Garantizada","S209 SERVIDORES DE LA EDUCACIÓN"]
["36PFEG Fideicomiso Educación Garantizada","S210 PROGRAMA UNIFORMES Y ÚTILES ESCOLARES GRATUITOS"]
["36PFEG Fideicomiso Educación Garantizada","U026 APOYOS ECONÓMICOS Y OTRAS AYUDAS SOCIALES"]
["38C001 Secretaría de las Mujeres","E001 ACCESO A LA JUSTICIA PARA LAS MUJERES Y NIÑAS VÍCTIMAS DE VIOLENCIA Y DISCRIMINACIÓN DE GÉNERO"]
["38C001 Secretaría de las Mujeres","E020 CENTROS DE ATENCIÓN LUNAS"]
["38C001 Secretaría de las Mujeres","E101 ATENCIÓN INTEGRAL EN ESPACIOS DE REFUGIO A MUJERES, HIJAS E HIJOS EN SITUACIÓN DE VIOLENCIA EXTREMA Y PROMOVER EL EJERCICIO DE SUS DERECHOS"]
["38C001 Secretaría de las Mujeres","E108 CIUDAD SEGURA Y AMIGABLE PARA LAS MUJERES Y NIÑAS"]
["38C001 Secretaría de las Mujeres","M001 ACTIVIDADES DE APOYO ADMINISTRATIVO"]
["38C001 Secretaría de las Mujeres","N001 CUMPLIMIENTO DE LOS PROGRAMAS DE PROTECCIÓN CIVIL"]
["38C001 Secretaría de las Mujeres","O001 ACTIVIDADES DE APOYO A LA FUNCIÓN PÚBLICA Y BUEN GOBIERNO"]
["38C001 Secretaría de las Mujeres","P001 PROMOCIÓN INTEGRAL PARA EL CUMPLIMIENTO DE LOS DERECHOS HUMANOS DE LAS NIÑAS Y MUJERES"]
["38C001 Secretaría de las Mujeres","P002 PROMOCIÓN INTEGRAL PARA EL CUMPLIMIENTO DE LOS DERECHOS HUMANOS"]
["38C001 Secretaría de las Mujeres","P003 PLANEACIÓN, SEGUIMIENTO Y EVALUACIÓN A POLÍTICAS PÚBLICAS"]
["38C001 Secretaría de las Mujeres","P004 PROMOCIÓN INTEGRAL PARA EL CUMPLIMIENTO DE LOS DERECHOS DE LA NIÑEZ Y DE LA ADOLECENCIA"]
["38C001 Secretaría de las Mujeres","S011 COINVERSIÓN PARA IGUALDAD DE LA CIUDAD DE MÉXICO"]
["38C001 Secretaría de las Mujeres","S056 APOYO A MUJERES EN SITUACIÓN DE VIOLENCIA DE GÉNERO"]
["38C001 Secretaría de las Mujeres","U034 PROGRAMA DE APOYO PARA IMPLEMENTAR Y EJECUTAR ACCIONES DE PREVENCIÓN DE LA VIOLENCIA CONTRA LAS MUJERES"]
["39PDSR Sistema Público de Radiodifusión de la Ciudad de México","E048 PRODUCCIÓN DE CONTENIDO CULTURAL Y ARTÍSTICO"]
["39PDSR Sistema Público de Radiodifusión de la Ciudad de México","M001 ACTIVIDADES DE APOYO ADMINISTRATIVO"]
["39PDSR Sistema Público de Radiodifusión de la Ciudad de México","N001 CUMPLIMIENTO DE LOS PROGRAMAS DE PROTECCIÓN CIVIL"]
["39PDSR Sistema Público de Radiodifusión de la Ciudad de México","O001 ACTIVIDADES DE APOYO A LA FUNCIÓN PÚBLICA Y BUEN GOBIERNO"]
["39PDSR Sistema Público de Radiodifusión de la Ciudad de México","P001 PROMOCIÓN INTEGRAL PARA EL CUMPLIMIENTO DE LOS DERECHOS HUMANOS DE LAS NIÑAS Y MUJERES"]
["39PDSR Sistema Público de Radiodifusión de la Ciudad de México","P002 PROMOCIÓN INTEGRAL PARA EL CUMPLIMIENTO DE LOS DERECHOS HUMANOS"]
["39PDSR Sistema Público de Radiodifusión de la Ciudad de México","P004 PROMOCIÓN INTEGRAL PARA EL CUMPLIMIENTO DE LOS DERECHOS DE LA NIÑEZ Y DE LA ADOLECENCIA"]
["40A000 Fiscalía General de Justicia","0000 ÓRGANOS AUTÓNOMOS Y DE GOBIERNO"]
["41PDIP Instituto de Planeación Democrática y Prospectiva de la Ciudad de México","M001 ACTIVIDADES DE APOYO ADMINISTRATIVO"]

{"sheet":"CAT_CONSO","index":19,"n_rows":52,"n_cols":3,"rows_kept":52,"cut":false,"hidden":true,"merged":[]}
["UR_CONSOLIDA","PTDA","N_PTDA"]
["06CD03 Sistema de Aguas de la Ciudad de México",3131,"3131 Agua potable."]
["07C001 Secretaría de Obras y Servicios",3112,"3112 Servicio de energía eléctrica."]
["07CD01 Planta Productora de Mezclas Asfalticas",2411,"2411 Mezcla asfáltica."]
["07CD01 Planta Productora de Mezclas Asfalticas",3471,"3471 Fletes y maniobras."]
["09C001 Secretaría de Administración y Finanzas",1411,"1411 Aportaciones a instituciones de seguridad social."]
["09C001 Secretaría de Administración y Finanzas",1412,"1412 Aportaciones al instituto mexicano del seguro social."]
["09C001 Secretaría de Administración y Finanzas",1421,"1421 Aportaciones a fondos de vivienda."]
["09C001 Secretaría de Administración y Finanzas",1422,"1422 Aportaciones al fondo de vivienda del infonavit."]
["09C001 Secretaría de Administración y Finanzas",1431,"1431 Aportaciones al sistema para el retiro o a la administradora de fondos para el retiro y ahorro solidario."]
["09C001 Secretaría de Administración y Finanzas",1441,"1441 Primas por seguro de vida del personal civil."]
["09C001 Secretaría de Administración y Finanzas",1442,"1442 Primas por seguro de vida del personal de los cuerpos de seguridad pública y bomberos."]
["09C001 Secretaría de Administración y Finanzas",1443,"1443 Primas por seguro de retiro del personal al servicio de las unidades responsables del gasto del distrito federal."]
["09C001 Secretaría de Administración y Finanzas",1511,"1511 Cuotas para el fondo de ahorro y fondo de trabajo."]
["09C001 Secretaría de Administración y Finanzas",1531,"1531 Prestaciones y haberes de retiro."]
["09C001 Secretaría de Administración y Finanzas",1541,"1541 Vales."]
["09C001 Secretaría de Administración y Finanzas",1543,"1543 Estancias de desarrollo infantil."]
["09C001 Secretaría de Administración y Finanzas",2111,"2111 Materiales, útiles y eqs menores de oficina."]
["09C001 Secretaría de Administración y Finanzas",2141,"2141 Materiales, útiles y eqs menores de tecnologías de la información y comunicaciones."]
["09C001 Secretaría de Administración y Finanzas",2161,"2161 Material de limpieza."]
["09C001 Secretaría de Administración y Finanzas",2541,"2541 Materiales, acces y suministros médicos."]
["09C001 Secretaría de Administración y Finanzas",2551,"2551 Materiales, acces y suministros de laboratorio."]
["09C001 Secretaría de Administración y Finanzas",2611,"2611 Combustibles, lubricantes y aditivos."]
["09C001 Secretaría de Administración y Finanzas",2711,"2711 Vestuario y uniformes."]
["09C001 Secretaría de Administración y Finanzas",2721,"2721 Prendas de seguridad y protección personal."]
["09C001 Secretaría de Administración y Finanzas",2751,"2751 Blancos y otros textiles, excepto prendas de vestir."]
["09C001 Secretaría de Administración y Finanzas",2961,"2961 Ref y acces menores de eq de transporte."]
["09C001 Secretaría de Administración y Finanzas",3141,"3141 Telefonía tradicional."]
["09C001 Secretaría de Administración y Finanzas",3151,"3151 Telefonía celular."]
["09C001 Secretaría de Administración y Finanzas",3171,"3171 Servicios de acceso de internet, redes y procesamiento de información."]
["09C001 Secretaría de Administración y Finanzas",3191,"3191 Servicios integrales y otros servicios."]
["09C001 Secretaría de Administración y Finanzas",3231,"3231 Arrendamiento de mob y eq de admón, educacional y recreativo."]
["09C001 Secretaría de Administración y Finanzas",3252,"3252 Arrendamiento de eq de transporte destinado a servicios públicos y la operación de programas públicos."]
["09C001 Secretaría de Administración y Finanzas",3361,"3361 Servicios de apoyo administrativo y fotocopiado"]
["09C001 Secretaría de Administración y Finanzas",3381,"3381 Servicios de vigilancia."]
["09C001 Secretaría de Administración y Finanzas",3411,"3411 Servicios financieros y bancarios."]
["09C001 Secretaría de Administración y Finanzas",3432,"3432 Gastos de ensobretado y traslado de nómina."]
["09C001 Secretaría de Administración y Finanzas",3451,"3451 Seguro de bienes patrimoniales."]
["09C001 Secretaría de Administración y Finanzas",3611,"3611 Difusión por radio, televisión y otros medios de mensajes sobre programas y actividades gubernamentales."]
["09C001 Secretaría de Administración y Finanzas",3951,"3951 Penas, multas, acces y actualizaciones."]
["09C001 Secretaría de Administración y Finanzas",3969,"3969 Otros gastos por responsabilidades."]
["09C001 Secretaría de Administración y Finanzas",3981,"3981 Impuesto sobre nóminas"]
["09C001 Secretaría de Administración y Finanzas",5111,"5111 Muebles de oficina y estantería."]
["09C001 Secretaría de Administración y Finanzas",5151,"5151 Equipo de cómputo y de tecnologías de la información."]
["09C001 Secretaría de Administración y Finanzas",5191,"5191 Otros mobs y eqs de admón."]
["09C001 Secretaría de Administración y Finanzas",5311,"5311 Equipo médico y de laboratorio."]
["09C001 Secretaría de Administración y Finanzas",5321,"5321 Instrumental médico y de laboratorio."]
["09C001 Secretaría de Administración y Finanzas",5412,"5412 Vehículos y equipo terrestre destinados a servicios públicos y la operación de programas públicos."]
["09C001 Secretaría de Administración y Finanzas",5413,"5413 Vehículos y equipo terrestre destinados a servidores públicos y servicios administrativos."]
["09C001 Secretaría de Administración y Finanzas",5491,"5491 Otros eqs de transporte."]
["09C001 Secretaría de Administración y Finanzas",5911,"5911 Software."]
["11CD02 Policía Auxiliar",3381,"3381 Servicios de vigilancia."]